Workbook

Sheet Germiston
C1: TE22-GMX-9IA-07530
A2: Germiston and surrounding areas | B2: Item No. | C2: Description of Item | D2: Alternative Item for Costing purpose | E2: Unit | F2: QTY | G2: Unit Price (R) | H2: Total Price (R) | I2: Comments on Quantity
B3: 068019631 | C3: Internal inspection | E3: R/Wagon | F3: 966 wagons per year
B4: 068019632 | C4: External inspection | E4: R/Wagon | F4: 966 wagons per year
B5: 068HYDROST | C5: Barrel test | D5: 9001407INSP | E5: R/Wagon | F5: 966 wagons per year
B6: 068019643 | C6: Material verification at suppliers (includes transfer of heat and cast numbers and issuing of report). Travelling cost should also be inclusive) | E6: R/Verification + R/km | F6: 665verification per year and 655 visits per year (Assume 50km radius from Germiston)
B7: 068001092 | C7: External barrel inspection/witnessing and issuing of report at Trichardt Depot | E7: R/Wagon | F7: 200 wagons per year (From Germiston to Trichard)
B8: 068019647 | C8: Travelling cost to Trichardt Depot | E8: R/km | F8: 2000 km per year
B9: 068001094 | C9: WPQ; Welders/operators Performance Qualification Record (include the following; witness test process, witness NDT, witness laboratory tests and issuing of report). | E9: R/test plate | F9: 650 test plates per year
B10: 068001095 | C10: PQR: Procedure Qualification Record (includes the following; witness tests, witness NDT, witness laboratory tests, record all values, create PQR document, final signing of document, issue document to TE). | E10: R/PQR | F10: 50 PQR's per Year
B11: 068001097 | C11: TFR: Barrel Test Extension and approval. No travelling required. TFO will supply all documentation related to maintenance history of each wagon that requires extension, after contract award. | D11: 9001407INSP | E11: R/Wagon | F11: 50 wagons per Year
B14: TOTAL PRICE, exclusive of VAT
B15: VAT 15% (if applicable)
B16: SUB-TOTAL GERMISTON Incl. VAT

Sheet New Build
A2: New Build, Design and Prototype Verification | B2: Item No. | C2: Description of Item | D2: Unit | E2: QTY | F2: Unit Price (R) | G2: Total Price (R) | H2: =#REF! -> 
B3: 068001098 | C3: Inspection/witnessing of welds on newly built wagons | D3: R/Barrel | E3: 45 wagon per year
B4: 068001099 | C4: Inspection/witnessing of welds on newly built wagons (after hours) | D4: R/Barrel | E4: 45 wagons per year
B5: 068019652 | C5: Design verification (includes the following: document and drawings register, design report, technical specification, quality control plan (QCP), repair quality control procedure, Welder ID schematic, Post weld heat treatment procedure, Procedure Qualification Record (PQR), Welding Procedures Specification (WPS), Welder performance qualification (WPQ) and all applicable drawings and contract review meetings) | D5: R/design verification | E5: 10 design verifications per year
B6: 068000105 | C6: Resubmission of Design verification | D6: R/design verification | E6: 60 design verifications per year
B7: 068001094 | C7: WPQ; Welders/operators Performance Qualification Record (include the following; witness test process, witness NDT, witness laboratory tests and issuing of report). Travelling cost should also be inclusive | D7: R/test plate | E7: 400 test plates per month
B8: 068001095 | C8: PQR: Procedure Qualification Record (includes the following; witness tests, witness NDT, witness laboratory tests, record all values, create PQR document, final signing of document, issue document to TE). Travelling cost should also be inclusive | D8: R/PQR | E8: 40 PQR's per Year
B9: 068019643 | C9: Material verification at suppliers (includes transfer of heat and cast numbers and issuing of report). Travelling cost should also be inclusive) | D9: R/Verification + R/km | E9: 60 verification per year +60 visits per year (Assume 50km rad ius from Germiston)
B10: 068001091 | C10: Material verification at suppliers (includes transfer of heat and cast numbers and issuing of report) no travelling cost included | D10: R/visit | E10: 60 visits per year
B11: 068001107 | C11: Witness & inspect structural test at RTDC (Railway Technology Development Centre) | D11: R/Wagon | E11: 2 wagons per year
B12: 068001108 | C12: Witness & inspect Structural test (Static Testing) Tank Container | D12: R/Tank Container | E12: 2 Tank containers per year
B13: 068019631 | C13: Internal inspection | D13: R/Wagon | E13: 60 wagons per year
B14: 068019632 | C14: External inspection | D14: R/Wagon | E14: 60 wagons per year
B15: 068HYDROST/ 9001407INSP | C15: Barrel test | D15: R/Wagon | E15: 966 wagons per year
B16: 068019642 | C16: Emergency travelling cost | D16: R/visit | E16: 60 visits per year (50km radius from Germiston)
B17: TOTAL PRICE, exclusive of VAT
B18: VAT 15% (if applicable)
B19: SUB-TOTAL NEWBUILD Incl. VAT

Sheet Sasol
A2: Sasol Wagons | B2: Item No. | C2: Description of Item | D2: Unit | E2: QTY | F2: Unit Price (R) | G2: Total Price (R)
B3: 068019631 | C3: In-service: • Internal inspection/witnessing | D3: R/h | E3: 95 wagons per year
B4: 068019632 | C4: In-service: • External inspection/witnessing | D4: R/h | E4: 95 wagons per year | H4: Approval of dispensation • External inspection/witnessing
B5: 068001094 | C5: In-service: WPQ; Welders/operators Performance Qualification Record (include the following; witness test process, witness NDT, witness laboratory tests and issuing of report). Travelling cost should also be inclusive | D5: R/test plate | E5: 150 test plates per year
B6: 068001095 | C6: In-service: PQR: Procedure Qualification Record (includes the following; witness tests, witness NDT, witness laboratory tests, record all values, create PQR document, final signing of document, issue document to TE). Travelling cost should also be inclusive | D6: R/PQR | E6: 10 PQR's per Year
B7: 9001407INSP | C7: In-service: • Inspection/witnessing of Barrel test | D7: R/h | E7: 95 wagons per year | H7: Manufacturing AIA: Issuing of Barrel Test certificate
B8: 068001101 | C8: Corrosion and remain life (When required) | D8: R/h | E8: 95 wagons per year
B9: 068019652R | C9: Manufacturing AIA: Design verification on repair wagon (includes the following: document and drawings register, design report, technical specification, quality control plan (QCP), repair quality control procedure, Welder ID schematic, Post weld heat treatment procedure, Procedure Qualification Record (PQR), Welding Procedures Specification (WPS), Scope of repair, Welder performance qualification (WPQ) and all applicable drawings and contract review meetings) | D9: R/design verification | E9: 95 wagons per year | I9: New item will be required for repair purpose
B10: 068000105 | C10: Manufacturing AIA: Resubmission of Design verification | D10: R/design verification | E10: 95 design verifications per year
B11: 068019643 | C11: Manufacturing AIA: Material verification at suppliers (includes transfer of heat and cast numbers and issuing of report). Travelling cost should also be inclusive) | D11: R/verification + R/visit | E11: 95 Verification per year +95 visits per year (Assume 50km radius from Germiston)
B12: 068001119 | C12: Approval of dispensation(Report) • Issue the approval certificates of dispensation | D12: R/wagon | E12: 95 wagons per year
B13: 068001106 | C13: Travelling to Sasolburg | D13: R/Km | E13: 200 visits per year (From Germiston and Sasol)
B14: TOTAL PRICE, exclusive of VAT
B15: VAT 15% (if applicable)
B16: SUB-TOTAL SASOL Incl. VAT

Sheet PO History (hidden)

Sheet Workings Copper (hidden)
A1: ITEMS BELOW ARE 100% STEEL
O2: Inflation 7,8% 2022
Q5: Inflation | R5: Copper
Q6: 0.1 | R6: 0.9
N8: Copper | Q8: =5%*R6 -> 5% | R8: =7%*R6 -> 6% | S8: =4%*R6 -> 4% | T8: =-7%*R6 -> -6% | U8: =13%*R6 -> 12% | V8: =25%*R6 -> 23% | W8: =-8%*R6 -> -7% | X8: 0% | Y8: =25%*R6 -> 23% | Z8: =33%*R6 -> 30% | AA8: =20%*R6 -> 18% | AB8: =20%*R6 -> 18% | AC8: =20%*R6 -> 18%
N9: Steel | Q9: =-1%*$Q$6 -> -0% | R9: =17%*Q6 -> 2% | S9: =3%*Q6 -> 0% | T9: =-17%*Q6 -> -2% | U9: =36%*Q6 -> 4% | V9: =11%*$Q$6 -> 1% | W9: =5%*Q6 -> 1% | X9: =-7%*Q6 -> -0.70% | Y9: =20%*Q6 -> 2.00% | Z9: =56%*Q6 -> 5.60% | AA9: =10%*Q6 -> 1.00% | AB9: =AA9 -> 1.00% | AC9: =AB9 -> 1.00%
N10: Inflation | O10: =7%*$Q$6 -> 1% | P10: 1% | Q10: 1% | R10: 1% | S10: 1% | T10: 1% | U10: 1% | V10: 1% | W10: 1% | X10: =4.4%*$Q$6 -> 0.44% | Y10: =3.1%*$Q$6 -> 0.31% | Z10: =4.41%*$Q$6 -> 0.44% | AA10: =7.8%*$Q$6 -> 0.78% | AB10: =7.8%*$Q$6 -> 0.78% | AC10: =7.8%*$Q$6 -> 0.78% | AD10: =7.8%*$Q$6 -> 0.78% | AE10: 0.78% | AF10: 0.78% | AG10: 0.78% | AH10: 0.78%
N11: total escalation | O11: =O10+O8 -> 1% | P11: =P10+P8 -> 1% | Q11: 5% | R11: 7% | S11: 4% | T11: =T10+T8 -> -6% | U11: =U10+U8 -> 12% | V11: 23% | W11: -7% | X11: 0% | Y11: 23% | Z11: 30% | AA11: 19% | AB11: 19% | AC11: 19% | AD11: 1% | AE11: 1% | AF11: 1% | AG11: 1% | AH11: 1% | AK11: 1st Year | AN11: 2nd Year
A12: Purch.Doc. | B12: Material | C12: Plant | D12: Short Text | E12: GR-IV | F12: Vendor | G12: I | H12: Quantity | I12: Net Order Value | J12: Doc. Date | K12: OUn | L12: Crcy | M12: Year | N12: Unit / Price | O12: 2010 | P12: 2011 | Q12: 2012 | R12: 2013 | S12: 2014 | T12: 2015 | U12: 2016 | V12: 2017 | W12: 2018 | X12: 2019 | Y12: 2020 | Z12: 2021 | AA12: 2022 | AB12: 2023 | AC12: 2024 | AD12: 2025 | AE12: 2026 | AF12: 2027 | AG12: 2028 | AH12: 2029 | AK12: Vendor Price | AM12: Supplier | AN12: Vendor Price | AS12: % Increase
M13: =IFERROR(YEAR(J13),"") -> 1900 | N13: =IFERROR(I13/H13,"") ->  | O13: =IF($M13=O$12,$N13,0) -> 0 | P13: =IF($M13=P$12,$N13,0)+O13*P$11+O13 -> 0 | Q13: 0 | R13: 0 | S13: 0 | T13: 0 | U13: 0 | V13: 0 | W13: 0 | X13: 0 | Y13: 0 | Z13: 0 | AA13: 0 | AB13: 0 | AC13: 0 | AD13: 0 | AE13: 0 | AF13: =IF($M13=AF$12,$N13,0)+AE13*AF$11+AE13 -> 0 | AG13: 0 | AH13: 0 | AI13: =Z13-Y13 -> 0 | AJ13: =IFERROR(AI13/Y13,"") ->  | AL13: =IFERROR(AK13-Z13,"")/Z13 ->  | AM13: =IFERROR(VLOOKUP(F13,[1]Vendor!B:I,8,0),"") ->  | AO13: =IFERROR(AN13-AK13,"")/AK13 -> 
M14: 1900 | N14: =IFERROR(I14/H14,"") ->  | O14: 0 | P14: 0 | Q14: =IF($M14=Q$12,$N14,0)+P14*Q$11+P14 -> 0 | R14: 0 | S14: 0 | T14: 0 | U14: 0 | V14: 0 | W14: 0 | X14: 0 | Y14: 0 | Z14: 0 | AA14: 0 | AB14: 0 | AC14: 0 | AD14: 0 | AE14: 0 | AF14: 0 | AG14: 0 | AH14: 0 | AI14: 0 | AM14: =IFERROR(VLOOKUP(F14,[1]Vendor!B:I,8,0),"") ->  | AR14: 150 | AS14: =(AR14-Z14)/AR14 -> 100%
M15: 1900 | O15: 0 | P15: 0 | Q15: 0 | R15: 0 | S15: 0 | T15: 0 | U15: 0 | V15: 0 | W15: 0 | X15: 0 | Y15: 0 | Z15: 0 | AA15: 0 | AB15: 0 | AC15: 0 | AD15: 0 | AE15: 0 | AF15: 0 | AG15: 0 | AH15: 0 | AI15: 0 | AM15: =IFERROR(VLOOKUP(F15,[1]Vendor!B:I,8,0),"") ->  | AQ15: Price breakdown
M16: 1900 | O16: 0 | P16: 0 | Q16: 0 | R16: 0 | S16: 0 | T16: 0 | U16: 0 | V16: 0 | W16: 0 | X16: 0 | Y16: 0 | Z16: 0 | AA16: 0 | AB16: 0 | AC16: 0 | AD16: 0 | AE16: 0 | AF16: 0 | AG16: 0 | AH16: 0 | AI16: 0 | AM16: =IFERROR(VLOOKUP(F16,[1]Vendor!B:I,8,0),"") ->  | AR16: 130 | AS16: =(AR16-Z16)/AR16 -> 100%
M17: 1900 | O17: 0 | P17: 0 | Q17: 0 | R17: 0 | S17: 0 | T17: 0 | U17: 0 | V17: 0 | W17: 0 | X17: 0 | Y17: 0 | Z17: 0 | AA17: 0 | AB17: 0 | AC17: 0 | AD17: 0 | AE17: 0 | AF17: 0 | AG17: 0 | AH17: 0 | AI17: 0 | AM17: =IFERROR(VLOOKUP(F17,[1]Vendor!B:I,8,0),"") ->  | AR17: 780 | AS17: =(AR17-Z17)/AR17 -> 100%
M18: 1900 | O18: 0 | P18: 0 | Q18: 0 | R18: 0 | S18: 0 | T18: 0 | U18: 0 | V18: 0 | W18: 0 | X18: 0 | Y18: 0 | Z18: 0 | AA18: 0 | AB18: 0 | AC18: 0 | AD18: 0 | AE18: 0 | AF18: 0 | AG18: 0 | AH18: 0 | AI18: 0 | AM18: =IFERROR(VLOOKUP(F18,[1]Vendor!B:I,8,0),"") -> 
M19: 1900 | O19: 0 | P19: 0 | Q19: 0 | R19: 0 | S19: 0 | T19: 0 | U19: 0 | V19: 0 | W19: 0 | X19: 0 | Y19: 0 | Z19: 0 | AA19: 0 | AB19: 0 | AC19: 0 | AD19: 0 | AE19: 0 | AF19: 0 | AG19: 0 | AH19: 0 | AI19: 0 | AM19: =IFERROR(VLOOKUP(F19,[1]Vendor!B:I,8,0),"") ->  | AQ19: Can give a bettere price | AR19: 940 | AS19: =(AR19-Z19)/AR19 -> 100%
M20: 1900 | O20: 0 | P20: 0 | Q20: 0 | R20: 0 | S20: 0 | T20: 0 | U20: 0 | V20: 0 | W20: 0 | X20: 0 | Y20: 0 | Z20: 0 | AA20: 0 | AB20: 0 | AC20: 0 | AD20: 0 | AE20: 0 | AF20: 0 | AG20: 0 | AH20: 0 | AI20: 0 | AJ20: =IFERROR(AI20/Y20,"") ->  | AL20: =IFERROR(AK20-Z20,"")/Z20 ->  | AM20: =IFERROR(VLOOKUP(F20,[1]Vendor!B:I,8,0),"") ->  | AO20: =IFERROR(AN20-AK20,"")/AK20 -> 
M21: 1900 | O21: 0 | P21: 0 | Q21: 0 | R21: 0 | S21: 0 | T21: 0 | U21: 0 | V21: 0 | W21: 0 | X21: 0 | Y21: 0 | Z21: 0 | AA21: 0 | AB21: 0 | AC21: 0 | AD21: 0 | AE21: 0 | AF21: 0 | AG21: 0 | AH21: 0 | AI21: 0 | AJ21: =IFERROR(AI21/Y21,"") ->  | AL21: =IFERROR(AK21-Z21,"")/Z21 ->  | AM21: =IFERROR(VLOOKUP(F21,[1]Vendor!B:I,8,0),"") ->  | AO21: =IFERROR(AN21-AK21,"")/AK21 -> 
M22: 1900 | O22: 0 | P22: 0 | Q22: 0 | R22: 0 | S22: 0 | T22: 0 | U22: 0 | V22: 0 | W22: 0 | X22: 0 | Y22: 0 | Z22: 0 | AA22: 0 | AB22: 0 | AC22: 0 | AD22: 0 | AE22: 0 | AF22: 0 | AG22: 0 | AH22: 0 | AI22: 0 | AJ22: =IFERROR(AI22/Y22,"") ->  | AL22: =IFERROR(AK22-Z22,"")/Z22 ->  | AM22: =IFERROR(VLOOKUP(F22,[1]Vendor!B:I,8,0),"") ->  | AO22: =IFERROR(AN22-AK22,"")/AK22 -> 
M23: 1900 | O23: 0 | P23: 0 | Q23: 0 | R23: 0 | S23: 0 | T23: 0 | U23: 0 | V23: 0 | W23: 0 | X23: 0 | Y23: 0 | Z23: 0 | AA23: 0 | AB23: 0 | AC23: 0 | AD23: 0 | AE23: 0 | AF23: 0 | AG23: 0 | AH23: 0 | AI23: 0 | AJ23: =IFERROR(AI23/Y23,"") ->  | AL23: =IFERROR(AK23/AA23,"") ->  | AM23: =IFERROR(VLOOKUP(F23,[1]Vendor!B:I,8,0),"") ->  | AO23: =IFERROR(AN23-AK23,"")/AK23 -> 
M24: 1900 | O24: 0 | P24: 0 | Q24: 0 | R24: 0 | S24: 0 | T24: 0 | U24: 0 | V24: 0 | W24: 0 | X24: 0 | Y24: 0 | Z24: 0 | AA24: 0 | AB24: 0 | AC24: 0 | AD24: 0 | AE24: 0 | AF24: 0 | AG24: 0 | AH24: 0 | AI24: 0 | AM24: =IFERROR(VLOOKUP(F24,[1]Vendor!B:I,8,0),"") -> 
M25: 1900 | O25: 0 | P25: 0 | Q25: 0 | R25: 0 | S25: 0 | T25: 0 | U25: 0 | V25: 0 | W25: 0 | X25: 0 | Y25: 0 | Z25: 0 | AA25: 0 | AB25: 0 | AC25: 0 | AD25: 0 | AE25: 0 | AF25: 0 | AG25: 0 | AH25: 0 | AI25: 0 | AM25: =IFERROR(VLOOKUP(F25,[1]Vendor!B:I,8,0),"") -> 
M26: 1900 | O26: 0 | P26: 0 | Q26: 0 | R26: 0 | S26: 0 | T26: 0 | U26: 0 | V26: 0 | W26: 0 | X26: 0 | Y26: 0 | Z26: 0 | AA26: 0 | AB26: 0 | AC26: 0 | AD26: 0 | AE26: 0 | AF26: 0 | AG26: 0 | AH26: 0 | AI26: 0 | AM26: =IFERROR(VLOOKUP(F26,[1]Vendor!B:I,8,0),"") -> 
M27: 1900 | O27: 0 | P27: 0 | Q27: 0 | R27: 0 | S27: 0 | T27: 0 | U27: 0 | V27: 0 | W27: 0 | X27: 0 | Y27: 0 | Z27: 0 | AA27: 0 | AB27: 0 | AC27: 0 | AD27: 0 | AE27: 0 | AF27: 0 | AG27: 0 | AH27: 0 | AI27: 0 | AM27: =IFERROR(VLOOKUP(F27,[1]Vendor!B:I,8,0),"") -> 
M28: 1900 | O28: 0 | P28: 0 | Q28: 0 | R28: 0 | S28: 0 | T28: 0 | U28: 0 | V28: 0 | W28: 0 | X28: 0 | Y28: 0 | Z28: 0 | AA28: 0 | AB28: 0 | AC28: 0 | AD28: 0 | AE28: 0 | AF28: 0 | AG28: 0 | AH28: 0 | AI28: 0 | AM28: =IFERROR(VLOOKUP(F28,[1]Vendor!B:I,8,0),"") -> 
M29: 1900 | O29: 0 | P29: =IF($M29=P$12,$N29,0)+O29*P$11+O29 -> 0 | Q29: 0 | R29: 0 | S29: 0 | T29: 0 | U29: 0 | V29: 0 | W29: 0 | X29: 0 | Y29: 0 | Z29: 0 | AA29: 0 | AB29: 0 | AC29: 0 | AD29: 0 | AE29: 0 | AF29: =IF($M29=AF$12,$N29,0)+AE29*AF$11+AE29 -> 0 | AG29: 0 | AH29: 0 | AI29: 0 | AM29: =IFERROR(VLOOKUP(F29,[1]Vendor!B:I,8,0),"") -> 
M30: 1900 | O30: 0 | P30: 0 | Q30: 0 | R30: 0 | S30: 0 | T30: 0 | U30: 0 | V30: 0 | W30: 0 | X30: 0 | Y30: 0 | Z30: 0 | AA30: 0 | AB30: 0 | AC30: 0 | AD30: 0 | AE30: 0 | AF30: 0 | AG30: 0 | AH30: 0 | AI30: 0 | AM30: =IFERROR(VLOOKUP(F30,[1]Vendor!B:I,8,0),"") -> 
M31: 1900 | O31: 0 | P31: 0 | Q31: 0 | R31: 0 | S31: 0 | T31: 0 | U31: 0 | V31: 0 | W31: 0 | X31: 0 | Y31: 0 | Z31: 0 | AA31: 0 | AB31: 0 | AC31: 0 | AD31: 0 | AE31: 0 | AF31: 0 | AG31: 0 | AH31: 0 | AI31: 0 | AM31: =IFERROR(VLOOKUP(F31,[1]Vendor!B:I,8,0),"") -> 
M32: 1900 | O32: 0 | P32: 0 | Q32: 0 | R32: 0 | S32: 0 | T32: 0 | U32: 0 | V32: 0 | W32: 0 | X32: 0 | Y32: 0 | Z32: 0 | AA32: 0 | AB32: 0 | AC32: 0 | AD32: 0 | AE32: 0 | AF32: 0 | AG32: 0 | AH32: 0 | AI32: 0 | AM32: =IFERROR(VLOOKUP(F32,[1]Vendor!B:I,8,0),"") -> 
M33: 1900 | O33: 0 | P33: 0 | Q33: 0 | R33: 0 | S33: 0 | T33: 0 | U33: 0 | V33: 0 | W33: 0 | X33: 0 | Y33: 0 | Z33: 0 | AA33: 0 | AB33: 0 | AC33: 0 | AD33: 0 | AE33: 0 | AF33: 0 | AG33: 0 | AH33: 0 | AI33: 0 | AM33: =IFERROR(VLOOKUP(F33,[1]Vendor!B:I,8,0),"") -> 
M34: 1900 | O34: 0 | P34: 0 | Q34: 0 | R34: 0 | S34: 0 | T34: 0 | U34: 0 | V34: 0 | W34: 0 | X34: 0 | Y34: 0 | Z34: 0 | AA34: 0 | AB34: 0 | AC34: 0 | AD34: 0 | AE34: 0 | AF34: 0 | AG34: 0 | AH34: 0 | AI34: 0 | AM34: =IFERROR(VLOOKUP(F34,[1]Vendor!B:I,8,0),"") -> 
M35: 1900 | O35: 0 | P35: 0 | Q35: 0 | R35: 0 | S35: 0 | T35: 0 | U35: 0 | V35: 0 | W35: 0 | X35: 0 | Y35: 0 | Z35: 0 | AA35: 0 | AB35: 0 | AC35: 0 | AD35: 0 | AE35: 0 | AF35: 0 | AG35: 0 | AH35: 0 | AI35: 0 | AM35: =IFERROR(VLOOKUP(F35,[1]Vendor!B:I,8,0),"") -> 
M36: 1900 | O36: 0 | P36: 0 | Q36: 0 | R36: 0 | S36: 0 | T36: 0 | U36: 0 | V36: 0 | W36: 0 | X36: 0 | Y36: 0 | Z36: 0 | AA36: 0 | AB36: 0 | AC36: 0 | AD36: 0 | AE36: 0 | AF36: 0 | AG36: 0 | AH36: 0 | AI36: 0 | AM36: =IFERROR(VLOOKUP(F36,[1]Vendor!B:I,8,0),"") -> 
M37: 1900 | O37: 0 | P37: 0 | Q37: 0 | R37: 0 | S37: 0 | T37: 0 | U37: 0 | V37: 0 | W37: 0 | X37: 0 | Y37: 0 | Z37: 0 | AA37: 0 | AB37: 0 | AC37: 0 | AD37: 0 | AE37: 0 | AF37: 0 | AG37: 0 | AH37: 0 | AI37: 0 | AM37: =IFERROR(VLOOKUP(F37,[1]Vendor!B:I,8,0),"") -> 
M38: 1900 | O38: 0 | P38: 0 | Q38: 0 | R38: 0 | S38: 0 | T38: 0 | U38: 0 | V38: 0 | W38: 0 | X38: 0 | Y38: 0 | Z38: 0 | AA38: 0 | AB38: 0 | AC38: 0 | AD38: 0 | AE38: 0 | AF38: 0 | AG38: 0 | AH38: 0 | AI38: 0 | AM38: =IFERROR(VLOOKUP(F38,[1]Vendor!B:I,8,0),"") -> 
M39: 1900 | O39: 0 | P39: 0 | Q39: 0 | R39: 0 | S39: 0 | T39: 0 | U39: 0 | V39: 0 | W39: 0 | X39: 0 | Y39: 0 | Z39: 0 | AA39: 0 | AB39: 0 | AC39: 0 | AD39: 0 | AE39: 0 | AF39: 0 | AG39: 0 | AH39: 0 | AI39: 0 | AM39: =IFERROR(VLOOKUP(F39,[1]Vendor!B:I,8,0),"") -> 
M40: 1900 | O40: 0 | P40: 0 | Q40: 0 | R40: 0 | S40: 0 | T40: 0 | U40: 0 | V40: 0 | W40: 0 | X40: 0 | Y40: 0 | Z40: 0 | AA40: 0 | AB40: 0 | AC40: 0 | AD40: 0 | AE40: 0 | AF40: 0 | AG40: 0 | AH40: 0 | AI40: 0 | AM40: =IFERROR(VLOOKUP(F40,[1]Vendor!B:I,8,0),"") -> 
M41: 1900 | O41: 0 | P41: 0 | Q41: 0 | R41: 0 | S41: 0 | T41: 0 | U41: 0 | V41: 0 | W41: 0 | X41: 0 | Y41: 0 | Z41: 0 | AA41: 0 | AB41: 0 | AC41: 0 | AD41: 0 | AE41: 0 | AF41: 0 | AG41: 0 | AH41: 0 | AI41: 0 | AM41: =IFERROR(VLOOKUP(F41,[1]Vendor!B:I,8,0),"") -> 
M42: 1900 | O42: 0 | P42: 0 | Q42: 0 | R42: 0 | S42: 0 | T42: 0 | U42: 0 | V42: 0 | W42: 0 | X42: 0 | Y42: 0 | Z42: 0 | AA42: 0 | AB42: 0 | AC42: 0 | AD42: 0 | AE42: 0 | AF42: 0 | AG42: 0 | AH42: 0 | AI42: 0 | AM42: =IFERROR(VLOOKUP(F42,[1]Vendor!B:I,8,0),"") -> 
M43: 1900 | O43: 0 | P43: 0 | Q43: 0 | R43: 0 | S43: 0 | T43: 0 | U43: 0 | V43: 0 | W43: 0 | X43: 0 | Y43: 0 | Z43: 0 | AA43: 0 | AB43: 0 | AC43: 0 | AD43: 0 | AE43: 0 | AF43: 0 | AG43: 0 | AH43: 0 | AI43: 0 | AM43: =IFERROR(VLOOKUP(F43,[1]Vendor!B:I,8,0),"") -> 
M44: 1900 | O44: 0 | P44: 0 | Q44: 0 | R44: 0 | S44: 0 | T44: 0 | U44: 0 | V44: 0 | W44: 0 | X44: 0 | Y44: 0 | Z44: 0 | AA44: 0 | AB44: 0 | AC44: 0 | AD44: 0 | AE44: 0 | AF44: 0 | AG44: 0 | AH44: 0 | AI44: 0 | AM44: =IFERROR(VLOOKUP(F44,[1]Vendor!B:I,8,0),"") -> 
M45: 1900 | O45: 0 | P45: =IF($M45=P$12,$N45,0)+O45*P$11+O45 -> 0 | Q45: 0 | R45: 0 | S45: 0 | T45: 0 | U45: 0 | V45: 0 | W45: 0 | X45: 0 | Y45: 0 | Z45: 0 | AA45: 0 | AB45: 0 | AC45: 0 | AD45: 0 | AE45: 0 | AF45: =IF($M45=AF$12,$N45,0)+AE45*AF$11+AE45 -> 0 | AG45: 0 | AH45: 0 | AI45: 0 | AM45: =IFERROR(VLOOKUP(F45,[1]Vendor!B:I,8,0),"") -> 
M46: 1900 | O46: 0 | P46: 0 | Q46: 0 | R46: 0 | S46: 0 | T46: 0 | U46: 0 | V46: 0 | W46: 0 | X46: 0 | Y46: 0 | Z46: 0 | AA46: 0 | AB46: 0 | AC46: 0 | AD46: 0 | AE46: 0 | AF46: 0 | AG46: 0 | AH46: 0 | AI46: 0 | AM46: =IFERROR(VLOOKUP(F46,[1]Vendor!B:I,8,0),"") -> 
M47: 1900 | O47: 0 | P47: 0 | Q47: 0 | R47: 0 | S47: 0 | T47: 0 | U47: 0 | V47: 0 | W47: 0 | X47: 0 | Y47: 0 | Z47: 0 | AA47: 0 | AB47: 0 | AC47: 0 | AD47: 0 | AE47: 0 | AF47: 0 | AG47: 0 | AH47: 0 | AI47: 0 | AM47: =IFERROR(VLOOKUP(F47,[1]Vendor!B:I,8,0),"") -> 
M48: 1900 | O48: 0 | P48: 0 | Q48: 0 | R48: 0 | S48: 0 | T48: 0 | U48: 0 | V48: 0 | W48: 0 | X48: 0 | Y48: 0 | Z48: 0 | AA48: 0 | AB48: 0 | AC48: 0 | AD48: 0 | AE48: 0 | AF48: 0 | AG48: 0 | AH48: 0 | AI48: 0 | AM48: =IFERROR(VLOOKUP(F48,[1]Vendor!B:I,8,0),"") -> 
M49: 1900 | O49: 0 | P49: 0 | Q49: 0 | R49: 0 | S49: 0 | T49: 0 | U49: 0 | V49: 0 | W49: 0 | X49: 0 | Y49: 0 | Z49: 0 | AA49: 0 | AB49: 0 | AC49: 0 | AD49: 0 | AE49: 0 | AF49: 0 | AG49: 0 | AH49: 0 | AI49: 0 | AM49: =IFERROR(VLOOKUP(F49,[1]Vendor!B:I,8,0),"") -> 
M50: 1900 | O50: 0 | P50: 0 | Q50: 0 | R50: 0 | S50: 0 | T50: 0 | U50: 0 | V50: 0 | W50: 0 | X50: 0 | Y50: 0 | Z50: 0 | AA50: 0 | AB50: 0 | AC50: 0 | AD50: 0 | AE50: 0 | AF50: 0 | AG50: 0 | AH50: 0 | AI50: 0 | AM50: =IFERROR(VLOOKUP(F50,[1]Vendor!B:I,8,0),"") -> 
M51: 1900 | O51: 0 | P51: 0 | Q51: 0 | R51: 0 | S51: 0 | T51: 0 | U51: 0 | V51: 0 | W51: 0 | X51: 0 | Y51: 0 | Z51: 0 | AA51: 0 | AB51: 0 | AC51: 0 | AD51: 0 | AE51: 0 | AF51: 0 | AG51: 0 | AH51: 0 | AI51: 0 | AM51: =IFERROR(VLOOKUP(F51,[1]Vendor!B:I,8,0),"") -> 
M52: 1900 | O52: 0 | P52: 0 | Q52: 0 | R52: 0 | S52: 0 | T52: 0 | U52: 0 | V52: 0 | W52: 0 | X52: 0 | Y52: 0 | Z52: 0 | AA52: 0 | AB52: 0 | AC52: 0 | AD52: 0 | AE52: 0 | AF52: 0 | AG52: 0 | AH52: 0 | AI52: 0 | AM52: =IFERROR(VLOOKUP(F52,[1]Vendor!B:I,8,0),"") -> 
M53: 1900 | O53: 0 | P53: 0 | Q53: 0 | R53: 0 | S53: 0 | T53: 0 | U53: 0 | V53: 0 | W53: 0 | X53: 0 | Y53: 0 | Z53: 0 | AA53: 0 | AB53: 0 | AC53: 0 | AD53: 0 | AE53: 0 | AF53: 0 | AG53: 0 | AH53: 0 | AI53: 0 | AM53: =IFERROR(VLOOKUP(F53,[1]Vendor!B:I,8,0),"") -> 
M54: 1900 | O54: 0 | P54: 0 | Q54: 0 | R54: 0 | S54: 0 | T54: 0 | U54: 0 | V54: 0 | W54: 0 | X54: 0 | Y54: 0 | Z54: 0 | AA54: 0 | AB54: 0 | AC54: 0 | AD54: 0 | AE54: 0 | AF54: 0 | AG54: 0 | AH54: 0 | AI54: 0 | AM54: =IFERROR(VLOOKUP(F54,[1]Vendor!B:I,8,0),"") -> 
M55: 1900 | O55: 0 | P55: 0 | Q55: 0 | R55: 0 | S55: 0 | T55: 0 | U55: 0 | V55: 0 | W55: 0 | X55: 0 | Y55: 0 | Z55: 0 | AA55: 0 | AB55: 0 | AC55: 0 | AD55: 0 | AE55: 0 | AF55: 0 | AG55: 0 | AH55: 0 | AI55: 0 | AM55: =IFERROR(VLOOKUP(F55,[1]Vendor!B:I,8,0),"") -> 
M56: 1900 | O56: 0 | P56: 0 | Q56: 0 | R56: 0 | S56: 0 | T56: 0 | U56: 0 | V56: 0 | W56: 0 | X56: 0 | Y56: 0 | Z56: 0 | AA56: 0 | AB56: 0 | AC56: 0 | AD56: 0 | AE56: 0 | AF56: 0 | AG56: 0 | AH56: 0 | AI56: 0 | AM56: =IFERROR(VLOOKUP(F56,[1]Vendor!B:I,8,0),"") -> 
M57: 1900 | O57: 0 | P57: 0 | Q57: 0 | R57: 0 | S57: 0 | T57: 0 | U57: 0 | V57: 0 | W57: 0 | X57: 0 | Y57: 0 | Z57: 0 | AA57: 0 | AB57: 0 | AC57: 0 | AD57: 0 | AE57: 0 | AF57: 0 | AG57: 0 | AH57: 0 | AI57: 0 | AM57: =IFERROR(VLOOKUP(F57,[1]Vendor!B:I,8,0),"") -> 
M58: 1900 | O58: 0 | P58: 0 | Q58: 0 | R58: 0 | S58: 0 | T58: 0 | U58: 0 | V58: 0 | W58: 0 | X58: 0 | Y58: 0 | Z58: 0 | AA58: 0 | AB58: 0 | AC58: 0 | AD58: 0 | AE58: 0 | AF58: 0 | AG58: 0 | AH58: 0 | AI58: 0 | AM58: =IFERROR(VLOOKUP(F58,[1]Vendor!B:I,8,0),"") -> 
M59: 1900 | O59: 0 | P59: 0 | Q59: 0 | R59: 0 | S59: 0 | T59: 0 | U59: 0 | V59: 0 | W59: 0 | X59: 0 | Y59: 0 | Z59: 0 | AA59: 0 | AB59: 0 | AC59: 0 | AD59: 0 | AE59: 0 | AF59: 0 | AG59: 0 | AH59: 0 | AI59: 0 | AM59: =IFERROR(VLOOKUP(F59,[1]Vendor!B:I,8,0),"") -> 
M60: 1900 | O60: 0 | P60: 0 | Q60: 0 | R60: 0 | S60: 0 | T60: 0 | U60: 0 | V60: 0 | W60: 0 | X60: 0 | Y60: 0 | Z60: 0 | AA60: 0 | AB60: 0 | AC60: 0 | AD60: 0 | AE60: =IF($M60=AE$12,$N60,0)+AD60*AE$11+AD60 -> 0 | AF60: 0 | AG60: 0 | AH60: 0 | AI60: 0 | AM60: =IFERROR(VLOOKUP(F60,[1]Vendor!B:I,8,0),"") -> 
M61: 1900 | O61: 0 | P61: =IF($M61=P$12,$N61,0)+O61*P$11+O61 -> 0 | Q61: 0 | R61: 0 | S61: 0 | T61: 0 | U61: 0 | V61: 0 | W61: 0 | X61: 0 | Y61: 0 | Z61: 0 | AA61: 0 | AB61: 0 | AC61: 0 | AD61: 0 | AE61: 0 | AF61: 0 | AG61: 0 | AH61: 0 | AI61: 0 | AM61: =IFERROR(VLOOKUP(F61,[1]Vendor!B:I,8,0),"") -> 
M62: 1900 | O62: 0 | P62: 0 | Q62: 0 | R62: 0 | S62: 0 | T62: 0 | U62: 0 | V62: 0 | W62: 0 | X62: 0 | Y62: 0 | Z62: 0 | AA62: 0 | AB62: 0 | AC62: 0 | AD62: 0 | AE62: 0 | AF62: 0 | AG62: 0 | AH62: 0 | AI62: 0 | AM62: =IFERROR(VLOOKUP(F62,[1]Vendor!B:I,8,0),"") -> 
M63: 1900 | O63: 0 | P63: 0 | Q63: 0 | R63: 0 | S63: 0 | T63: 0 | U63: 0 | V63: 0 | W63: 0 | X63: 0 | Y63: 0 | Z63: 0 | AA63: 0 | AB63: 0 | AC63: 0 | AD63: 0 | AE63: 0 | AF63: 0 | AG63: 0 | AH63: 0 | AI63: 0 | AM63: =IFERROR(VLOOKUP(F63,[1]Vendor!B:I,8,0),"") -> 
M64: 1900 | O64: 0 | P64: 0 | Q64: 0 | R64: 0 | S64: 0 | T64: 0 | U64: 0 | V64: 0 | W64: 0 | X64: 0 | Y64: 0 | Z64: 0 | AA64: 0 | AB64: 0 | AC64: 0 | AD64: 0 | AE64: 0 | AF64: 0 | AG64: 0 | AH64: 0 | AI64: 0 | AM64: =IFERROR(VLOOKUP(F64,[1]Vendor!B:I,8,0),"") -> 
M65: 1900 | O65: 0 | P65: 0 | Q65: 0 | R65: 0 | S65: 0 | T65: 0 | U65: 0 | V65: 0 | W65: 0 | X65: 0 | Y65: 0 | Z65: 0 | AA65: 0 | AB65: 0 | AC65: 0 | AD65: 0 | AE65: 0 | AF65: 0 | AG65: 0 | AH65: 0 | AI65: 0 | AM65: =IFERROR(VLOOKUP(F65,[1]Vendor!B:I,8,0),"") -> 
M66: 1900 | O66: 0 | P66: 0 | Q66: 0 | R66: 0 | S66: 0 | T66: 0 | U66: 0 | V66: 0 | W66: 0 | X66: 0 | Y66: 0 | Z66: 0 | AA66: 0 | AB66: 0 | AC66: 0 | AD66: 0 | AE66: 0 | AF66: 0 | AG66: 0 | AH66: 0 | AI66: 0 | AM66: =IFERROR(VLOOKUP(F66,[1]Vendor!B:I,8,0),"") -> 
M67: 1900 | O67: 0 | P67: 0 | Q67: 0 | R67: 0 | S67: 0 | T67: 0 | U67: 0 | V67: 0 | W67: 0 | X67: 0 | Y67: 0 | Z67: 0 | AA67: 0 | AB67: 0 | AC67: 0 | AD67: 0 | AE67: 0 | AF67: 0 | AG67: 0 | AH67: 0 | AI67: 0 | AM67: =IFERROR(VLOOKUP(F67,[1]Vendor!B:I,8,0),"") -> 
M68: 1900 | O68: 0 | P68: 0 | Q68: 0 | R68: 0 | S68: 0 | T68: 0 | U68: 0 | V68: 0 | W68: 0 | X68: 0 | Y68: 0 | Z68: 0 | AA68: 0 | AB68: 0 | AC68: 0 | AD68: 0 | AE68: 0 | AF68: 0 | AG68: 0 | AH68: 0 | AI68: 0 | AM68: =IFERROR(VLOOKUP(F68,[1]Vendor!B:I,8,0),"") -> 
M69: 1900 | O69: 0 | P69: 0 | Q69: 0 | R69: 0 | S69: 0 | T69: 0 | U69: 0 | V69: 0 | W69: 0 | X69: 0 | Y69: 0 | Z69: 0 | AA69: 0 | AB69: 0 | AC69: 0 | AD69: 0 | AE69: 0 | AF69: 0 | AG69: 0 | AH69: 0 | AI69: 0 | AM69: =IFERROR(VLOOKUP(F69,[1]Vendor!B:I,8,0),"") -> 
M70: 1900 | O70: 0 | P70: 0 | Q70: 0 | R70: 0 | S70: 0 | T70: 0 | U70: 0 | V70: 0 | W70: 0 | X70: 0 | Y70: 0 | Z70: 0 | AA70: 0 | AB70: 0 | AC70: 0 | AD70: 0 | AE70: 0 | AF70: 0 | AG70: 0 | AH70: 0 | AI70: 0 | AM70: =IFERROR(VLOOKUP(F70,[1]Vendor!B:I,8,0),"") -> 
M71: 1900 | O71: 0 | P71: 0 | Q71: 0 | R71: 0 | S71: 0 | T71: 0 | U71: 0 | V71: 0 | W71: 0 | X71: 0 | Y71: 0 | Z71: 0 | AA71: 0 | AB71: 0 | AC71: 0 | AD71: 0 | AE71: 0 | AF71: 0 | AG71: 0 | AH71: 0 | AI71: 0 | AM71: =IFERROR(VLOOKUP(F71,[1]Vendor!B:I,8,0),"") -> 
M72: 1900 | O72: 0 | P72: 0 | Q72: 0 | R72: 0 | S72: 0 | T72: 0 | U72: 0 | V72: 0 | W72: 0 | X72: 0 | Y72: 0 | Z72: 0 | AA72: 0 | AB72: 0 | AC72: 0 | AD72: 0 | AE72: 0 | AF72: 0 | AG72: 0 | AH72: 0 | AI72: 0 | AM72: =IFERROR(VLOOKUP(F72,[1]Vendor!B:I,8,0),"") -> 
M73: 1900 | O73: 0 | P73: 0 | Q73: 0 | R73: 0 | S73: 0 | T73: 0 | U73: 0 | V73: 0 | W73: 0 | X73: 0 | Y73: 0 | Z73: 0 | AA73: 0 | AB73: 0 | AC73: 0 | AD73: 0 | AE73: 0 | AF73: 0 | AG73: 0 | AH73: 0 | AI73: 0 | AM73: =IFERROR(VLOOKUP(F73,[1]Vendor!B:I,8,0),"") -> 
M74: 1900 | O74: 0 | P74: 0 | Q74: 0 | R74: 0 | S74: 0 | T74: 0 | U74: 0 | V74: 0 | W74: 0 | X74: 0 | Y74: 0 | Z74: 0 | AA74: 0 | AB74: 0 | AC74: 0 | AD74: 0 | AE74: 0 | AF74: 0 | AG74: 0 | AH74: 0 | AI74: 0 | AM74: =IFERROR(VLOOKUP(F74,[1]Vendor!B:I,8,0),"") -> 
M75: 1900 | O75: 0 | P75: 0 | Q75: 0 | R75: 0 | S75: 0 | T75: 0 | U75: 0 | V75: 0 | W75: 0 | X75: 0 | Y75: 0 | Z75: 0 | AA75: 0 | AB75: 0 | AC75: 0 | AD75: 0 | AE75: 0 | AF75: 0 | AG75: 0 | AH75: 0 | AI75: 0 | AM75: =IFERROR(VLOOKUP(F75,[1]Vendor!B:I,8,0),"") -> 
M76: 1900 | O76: 0 | P76: 0 | Q76: 0 | R76: 0 | S76: 0 | T76: 0 | U76: 0 | V76: 0 | W76: 0 | X76: 0 | Y76: 0 | Z76: 0 | AA76: 0 | AB76: 0 | AC76: 0 | AD76: 0 | AE76: 0 | AF76: 0 | AG76: 0 | AH76: 0 | AI76: 0 | AM76: =IFERROR(VLOOKUP(F76,[1]Vendor!B:I,8,0),"") -> 
M77: =IFERROR(YEAR(J77),"") -> 1900 | O77: =IF($M77=O$12,$N77,0) -> 0 | P77: 0 | Q77: 0 | R77: 0 | S77: 0 | T77: 0 | U77: 0 | V77: 0 | W77: 0 | X77: 0 | Y77: 0 | Z77: 0 | AA77: 0 | AB77: 0 | AC77: 0 | AD77: 0 | AE77: 0 | AF77: 0 | AG77: 0 | AH77: 0 | AI77: =Z77-Y77 -> 0 | AM77: =IFERROR(VLOOKUP(F77,[1]Vendor!B:I,8,0),"") -> 
M78: 1900 | N78: =IFERROR(I78/H78,"") ->  | O78: 0 | P78: =IF($M78=P$12,$N78,0)+O78*P$11+O78 -> 0 | Q78: 0 | R78: 0 | S78: 0 | T78: 0 | U78: 0 | V78: 0 | W78: 0 | X78: 0 | Y78: 0 | Z78: 0 | AA78: 0 | AB78: 0 | AC78: 0 | AD78: 0 | AE78: 0 | AF78: 0 | AG78: 0 | AH78: 0 | AI78: 0 | AM78: =IFERROR(VLOOKUP(F78,[1]Vendor!B:I,8,0),"") -> 
M79: 1900 | O79: 0 | P79: 0 | Q79: 0 | R79: 0 | S79: 0 | T79: 0 | U79: 0 | V79: 0 | W79: 0 | X79: 0 | Y79: 0 | Z79: 0 | AA79: 0 | AB79: 0 | AC79: 0 | AD79: 0 | AE79: 0 | AF79: 0 | AG79: 0 | AH79: 0 | AI79: 0 | AM79: =IFERROR(VLOOKUP(F79,[1]Vendor!B:I,8,0),"") -> 
M80: 1900 | O80: 0 | P80: 0 | Q80: 0 | R80: 0 | S80: 0 | T80: 0 | U80: 0 | V80: 0 | W80: 0 | X80: 0 | Y80: 0 | Z80: 0 | AA80: 0 | AB80: 0 | AC80: 0 | AD80: 0 | AE80: 0 | AF80: 0 | AG80: 0 | AH80: 0 | AI80: 0 | AM80: =IFERROR(VLOOKUP(F80,[1]Vendor!B:I,8,0),"") -> 
M81: 1900 | O81: 0 | P81: 0 | Q81: 0 | R81: 0 | S81: 0 | T81: 0 | U81: 0 | V81: 0 | W81: 0 | X81: 0 | Y81: 0 | Z81: 0 | AA81: 0 | AB81: 0 | AC81: 0 | AD81: 0 | AE81: 0 | AF81: 0 | AG81: 0 | AH81: 0 | AI81: 0 | AM81: =IFERROR(VLOOKUP(F81,[1]Vendor!B:I,8,0),"") -> 
M82: 1900 | O82: 0 | P82: 0 | Q82: 0 | R82: 0 | S82: 0 | T82: 0 | U82: 0 | V82: 0 | W82: 0 | X82: 0 | Y82: 0 | Z82: 0 | AA82: 0 | AB82: 0 | AC82: 0 | AD82: 0 | AE82: 0 | AF82: 0 | AG82: 0 | AH82: 0 | AI82: 0 | AM82: =IFERROR(VLOOKUP(F82,[1]Vendor!B:I,8,0),"") -> 
M83: 1900 | O83: 0 | P83: 0 | Q83: 0 | R83: 0 | S83: 0 | T83: 0 | U83: 0 | V83: 0 | W83: 0 | X83: 0 | Y83: 0 | Z83: 0 | AA83: 0 | AB83: 0 | AC83: 0 | AD83: 0 | AE83: 0 | AF83: 0 | AG83: 0 | AH83: 0 | AI83: 0 | AM83: =IFERROR(VLOOKUP(F83,[1]Vendor!B:I,8,0),"") -> 
M84: 1900 | O84: 0 | P84: 0 | Q84: 0 | R84: 0 | S84: 0 | T84: 0 | U84: 0 | V84: 0 | W84: 0 | X84: 0 | Y84: 0 | Z84: 0 | AA84: 0 | AB84: 0 | AC84: 0 | AD84: 0 | AE84: 0 | AF84: 0 | AG84: 0 | AH84: 0 | AI84: 0 | AM84: =IFERROR(VLOOKUP(F84,[1]Vendor!B:I,8,0),"") -> 
M85: 1900 | O85: 0 | P85: 0 | Q85: 0 | R85: 0 | S85: 0 | T85: 0 | U85: 0 | V85: 0 | W85: 0 | X85: 0 | Y85: 0 | Z85: 0 | AA85: 0 | AB85: 0 | AC85: 0 | AD85: 0 | AE85: 0 | AF85: 0 | AG85: 0 | AH85: 0 | AI85: 0 | AM85: =IFERROR(VLOOKUP(F85,[1]Vendor!B:I,8,0),"") -> 
M86: 1900 | O86: 0 | P86: 0 | Q86: 0 | R86: 0 | S86: 0 | T86: 0 | U86: 0 | V86: 0 | W86: 0 | X86: 0 | Y86: 0 | Z86: 0 | AA86: 0 | AB86: 0 | AC86: 0 | AD86: 0 | AE86: 0 | AF86: 0 | AG86: 0 | AH86: 0 | AI86: 0 | AM86: =IFERROR(VLOOKUP(F86,[1]Vendor!B:I,8,0),"") -> 
M87: 1900 | O87: 0 | P87: 0 | Q87: 0 | R87: 0 | S87: 0 | T87: 0 | U87: 0 | V87: 0 | W87: 0 | X87: 0 | Y87: 0 | Z87: 0 | AA87: 0 | AB87: 0 | AC87: 0 | AD87: 0 | AE87: 0 | AF87: 0 | AG87: 0 | AH87: 0 | AI87: 0 | AJ87: =IFERROR(AI87/Y87,"") ->  | AL87: =IFERROR(AK87/AA87,"") ->  | AM87: =IFERROR(VLOOKUP(F87,[1]Vendor!B:I,8,0),"") ->  | AO87: =IFERROR(AN87-AK87,"")/AK87 -> 
M88: 1900 | O88: 0 | P88: 0 | Q88: 0 | R88: 0 | S88: 0 | T88: 0 | U88: 0 | V88: 0 | W88: 0 | X88: 0 | Y88: 0 | Z88: 0 | AA88: 0 | AB88: 0 | AC88: 0 | AD88: 0 | AE88: 0 | AF88: 0 | AG88: 0 | AH88: 0 | AI88: 0 | AM88: =IFERROR(VLOOKUP(F88,[1]Vendor!B:I,8,0),"") -> 
M89: 1900 | O89: 0 | P89: 0 | Q89: 0 | R89: 0 | S89: 0 | T89: 0 | U89: 0 | V89: 0 | W89: 0 | X89: 0 | Y89: 0 | Z89: 0 | AA89: 0 | AB89: 0 | AC89: 0 | AD89: 0 | AE89: 0 | AF89: 0 | AG89: 0 | AH89: 0 | AI89: 0 | AM89: =IFERROR(VLOOKUP(F89,[1]Vendor!B:I,8,0),"") -> 
M90: 1900 | O90: 0 | P90: 0 | Q90: 0 | R90: 0 | S90: 0 | T90: 0 | U90: 0 | V90: 0 | W90: 0 | X90: 0 | Y90: 0 | Z90: 0 | AA90: 0 | AB90: 0 | AC90: 0 | AD90: 0 | AE90: 0 | AF90: 0 | AG90: 0 | AH90: 0 | AI90: 0 | AM90: =IFERROR(VLOOKUP(F90,[1]Vendor!B:I,8,0),"") -> 
M91: 1900 | O91: 0 | P91: 0 | Q91: 0 | R91: 0 | S91: 0 | T91: 0 | U91: 0 | V91: 0 | W91: 0 | X91: 0 | Y91: 0 | Z91: 0 | AA91: 0 | AB91: 0 | AC91: 0 | AD91: 0 | AE91: 0 | AF91: 0 | AG91: 0 | AH91: 0 | AI91: 0 | AM91: =IFERROR(VLOOKUP(F91,[1]Vendor!B:I,8,0),"") -> 
M92: 1900 | O92: 0 | P92: 0 | Q92: 0 | R92: 0 | S92: 0 | T92: 0 | U92: 0 | V92: 0 | W92: 0 | X92: 0 | Y92: 0 | Z92: 0 | AA92: 0 | AB92: 0 | AC92: 0 | AD92: 0 | AE92: 0 | AF92: 0 | AG92: 0 | AH92: 0 | AI92: 0 | AM92: =IFERROR(VLOOKUP(F92,[1]Vendor!B:I,8,0),"") -> 
M93: 1900 | O93: 0 | P93: 0 | Q93: 0 | R93: 0 | S93: 0 | T93: 0 | U93: 0 | V93: 0 | W93: 0 | X93: 0 | Y93: 0 | Z93: 0 | AA93: 0 | AB93: 0 | AC93: 0 | AD93: 0 | AE93: 0 | AF93: 0 | AG93: 0 | AH93: 0 | AI93: 0 | AM93: =IFERROR(VLOOKUP(F93,[1]Vendor!B:I,8,0),"") -> 
M94: 1900 | O94: 0 | P94: 0 | Q94: 0 | R94: 0 | S94: 0 | T94: 0 | U94: 0 | V94: 0 | W94: 0 | X94: 0 | Y94: 0 | Z94: 0 | AA94: 0 | AB94: 0 | AC94: 0 | AD94: 0 | AE94: 0 | AF94: 0 | AG94: 0 | AH94: 0 | AI94: 0 | AM94: =IFERROR(VLOOKUP(F94,[1]Vendor!B:I,8,0),"") -> 
M95: 1900 | O95: 0 | P95: =IF($M95=P$12,$N95,0)+O95*P$11+O95 -> 0 | Q95: 0 | R95: 0 | S95: 0 | T95: 0 | U95: 0 | V95: 0 | W95: 0 | X95: 0 | Y95: 0 | Z95: 0 | AA95: 0 | AB95: 0 | AC95: 0 | AD95: 0 | AE95: 0 | AF95: 0 | AG95: 0 | AH95: 0 | AI95: 0 | AM95: =IFERROR(VLOOKUP(F95,[1]Vendor!B:I,8,0),"") -> 
M96: 1900 | O96: 0 | P96: 0 | Q96: 0 | R96: 0 | S96: 0 | T96: 0 | U96: 0 | V96: 0 | W96: 0 | X96: 0 | Y96: 0 | Z96: 0 | AA96: 0 | AB96: 0 | AC96: 0 | AD96: 0 | AE96: 0 | AF96: 0 | AG96: 0 | AH96: 0 | AI96: 0 | AM96: =IFERROR(VLOOKUP(F96,[1]Vendor!B:I,8,0),"") -> 
M97: 1900 | O97: 0 | P97: 0 | Q97: 0 | R97: 0 | S97: 0 | T97: 0 | U97: 0 | V97: 0 | W97: 0 | X97: 0 | Y97: 0 | Z97: 0 | AA97: 0 | AB97: 0 | AC97: 0 | AD97: 0 | AE97: 0 | AF97: 0 | AG97: 0 | AH97: 0 | AI97: 0 | AM97: =IFERROR(VLOOKUP(F97,[1]Vendor!B:I,8,0),"") -> 
M98: 1900 | O98: 0 | P98: 0 | Q98: 0 | R98: 0 | S98: 0 | T98: 0 | U98: 0 | V98: 0 | W98: 0 | X98: 0 | Y98: 0 | Z98: 0 | AA98: 0 | AB98: 0 | AC98: 0 | AD98: 0 | AE98: 0 | AF98: 0 | AG98: 0 | AH98: 0 | AI98: 0 | AM98: =IFERROR(VLOOKUP(F98,[1]Vendor!B:I,8,0),"") -> 
M99: 1900 | O99: 0 | P99: 0 | Q99: 0 | R99: 0 | S99: 0 | T99: 0 | U99: 0 | V99: 0 | W99: 0 | X99: 0 | Y99: 0 | Z99: 0 | AA99: 0 | AB99: 0 | AC99: 0 | AD99: 0 | AE99: 0 | AF99: 0 | AG99: 0 | AH99: 0 | AI99: 0 | AM99: =IFERROR(VLOOKUP(F99,[1]Vendor!B:I,8,0),"") -> 
M100: 1900 | O100: 0 | P100: 0 | Q100: 0 | R100: 0 | S100: 0 | T100: 0 | U100: 0 | V100: 0 | W100: 0 | X100: 0 | Y100: 0 | Z100: 0 | AA100: 0 | AB100: 0 | AC100: 0 | AD100: 0 | AE100: 0 | AF100: 0 | AG100: 0 | AH100: 0 | AI100: 0 | AM100: =IFERROR(VLOOKUP(F100,[1]Vendor!B:I,8,0),"") -> 
M101: 1900 | O101: 0 | P101: 0 | Q101: 0 | R101: 0 | S101: 0 | T101: 0 | U101: 0 | V101: 0 | W101: 0 | X101: 0 | Y101: 0 | Z101: 0 | AA101: 0 | AB101: 0 | AC101: 0 | AD101: 0 | AE101: 0 | AF101: 0 | AG101: 0 | AH101: 0 | AI101: 0 | AM101: =IFERROR(VLOOKUP(F101,[1]Vendor!B:I,8,0),"") -> 
M102: 1900 | O102: 0 | P102: 0 | Q102: 0 | R102: 0 | S102: 0 | T102: 0 | U102: 0 | V102: 0 | W102: 0 | X102: 0 | Y102: 0 | Z102: 0 | AA102: 0 | AB102: 0 | AC102: 0 | AD102: 0 | AE102: 0 | AF102: 0 | AG102: 0 | AH102: 0 | AI102: 0 | AM102: =IFERROR(VLOOKUP(F102,[1]Vendor!B:I,8,0),"") -> 
M103: 1900 | O103: 0 | P103: 0 | Q103: 0 | R103: 0 | S103: 0 | T103: 0 | U103: 0 | V103: 0 | W103: 0 | X103: 0 | Y103: 0 | Z103: 0 | AA103: 0 | AB103: 0 | AC103: 0 | AD103: 0 | AE103: 0 | AF103: 0 | AG103: 0 | AH103: 0 | AI103: 0 | AM103: =IFERROR(VLOOKUP(F103,[1]Vendor!B:I,8,0),"") -> 
M104: 1900 | O104: 0 | P104: 0 | Q104: 0 | R104: 0 | S104: 0 | T104: 0 | U104: 0 | V104: 0 | W104: 0 | X104: 0 | Y104: 0 | Z104: 0 | AA104: 0 | AB104: 0 | AC104: 0 | AD104: 0 | AE104: 0 | AF104: 0 | AG104: 0 | AH104: 0 | AI104: 0 | AM104: =IFERROR(VLOOKUP(F104,[1]Vendor!B:I,8,0),"") -> 
M105: 1900 | O105: 0 | P105: 0 | Q105: 0 | R105: 0 | S105: 0 | T105: 0 | U105: 0 | V105: 0 | W105: 0 | X105: 0 | Y105: 0 | Z105: 0 | AA105: 0 | AB105: 0 | AC105: 0 | AD105: 0 | AE105: 0 | AF105: 0 | AG105: 0 | AH105: 0 | AI105: 0 | AM105: =IFERROR(VLOOKUP(F105,[1]Vendor!B:I,8,0),"") -> 
M106: 1900 | O106: 0 | P106: 0 | Q106: 0 | R106: 0 | S106: 0 | T106: 0 | U106: 0 | V106: 0 | W106: 0 | X106: 0 | Y106: 0 | Z106: 0 | AA106: 0 | AB106: 0 | AC106: 0 | AD106: 0 | AE106: 0 | AF106: 0 | AG106: 0 | AH106: 0 | AI106: 0 | AM106: =IFERROR(VLOOKUP(F106,[1]Vendor!B:I,8,0),"") -> 
M107: 1900 | O107: 0 | P107: 0 | Q107: 0 | R107: 0 | S107: 0 | T107: 0 | U107: 0 | V107: 0 | W107: 0 | X107: 0 | Y107: 0 | Z107: 0 | AA107: 0 | AB107: 0 | AC107: 0 | AD107: 0 | AE107: 0 | AF107: 0 | AG107: 0 | AH107: 0 | AI107: 0 | AM107: =IFERROR(VLOOKUP(F107,[1]Vendor!B:I,8,0),"") -> 
M108: 1900 | O108: 0 | P108: 0 | Q108: 0 | R108: 0 | S108: 0 | T108: 0 | U108: 0 | V108: 0 | W108: 0 | X108: 0 | Y108: 0 | Z108: 0 | AA108: 0 | AB108: 0 | AC108: 0 | AD108: 0 | AE108: 0 | AF108: 0 | AG108: 0 | AH108: 0 | AI108: 0 | AM108: =IFERROR(VLOOKUP(F108,[1]Vendor!B:I,8,0),"") -> 
M109: 1900 | O109: 0 | P109: 0 | Q109: 0 | R109: 0 | S109: 0 | T109: 0 | U109: 0 | V109: 0 | W109: 0 | X109: 0 | Y109: 0 | Z109: 0 | AA109: 0 | AB109: 0 | AC109: 0 | AD109: 0 | AE109: 0 | AF109: 0 | AG109: 0 | AH109: 0 | AI109: 0 | AM109: =IFERROR(VLOOKUP(F109,[1]Vendor!B:I,8,0),"") -> 
M110: 1900 | O110: 0 | P110: 0 | Q110: 0 | R110: 0 | S110: 0 | T110: 0 | U110: 0 | V110: 0 | W110: 0 | X110: 0 | Y110: 0 | Z110: 0 | AA110: 0 | AB110: 0 | AC110: 0 | AD110: 0 | AE110: 0 | AF110: 0 | AG110: 0 | AH110: 0 | AI110: 0 | AM110: =IFERROR(VLOOKUP(F110,[1]Vendor!B:I,8,0),"") -> 
M111: 1900 | O111: 0 | P111: 0 | Q111: 0 | R111: 0 | S111: 0 | T111: 0 | U111: 0 | V111: 0 | W111: 0 | X111: 0 | Y111: 0 | Z111: 0 | AA111: 0 | AB111: 0 | AC111: 0 | AD111: 0 | AE111: 0 | AF111: 0 | AG111: 0 | AH111: 0 | AI111: 0 | AM111: =IFERROR(VLOOKUP(F111,[1]Vendor!B:I,8,0),"") -> 
M112: 1900 | O112: 0 | P112: =IF($M112=P$12,$N112,0)+O112*P$11+O112 -> 0 | Q112: 0 | R112: 0 | S112: 0 | T112: 0 | U112: 0 | V112: 0 | W112: 0 | X112: 0 | Y112: 0 | Z112: 0 | AA112: 0 | AB112: 0 | AC112: 0 | AD112: 0 | AE112: 0 | AF112: 0 | AG112: 0 | AH112: 0 | AI112: 0 | AM112: =IFERROR(VLOOKUP(F112,[1]Vendor!B:I,8,0),"") -> 
M113: 1900 | O113: 0 | P113: 0 | Q113: 0 | R113: 0 | S113: 0 | T113: 0 | U113: 0 | V113: 0 | W113: 0 | X113: 0 | Y113: 0 | Z113: 0 | AA113: 0 | AB113: 0 | AC113: 0 | AD113: 0 | AE113: 0 | AF113: 0 | AG113: 0 | AH113: 0 | AI113: 0 | AM113: =IFERROR(VLOOKUP(F113,[1]Vendor!B:I,8,0),"") -> 
M114: 1900 | O114: 0 | P114: 0 | Q114: 0 | R114: 0 | S114: 0 | T114: 0 | U114: 0 | V114: 0 | W114: 0 | X114: 0 | Y114: 0 | Z114: 0 | AA114: 0 | AB114: 0 | AC114: 0 | AD114: 0 | AE114: 0 | AF114: 0 | AG114: 0 | AH114: 0 | AI114: 0 | AM114: =IFERROR(VLOOKUP(F114,[1]Vendor!B:I,8,0),"") -> 
M115: 1900 | O115: 0 | P115: 0 | Q115: 0 | R115: 0 | S115: 0 | T115: 0 | U115: 0 | V115: 0 | W115: 0 | X115: 0 | Y115: 0 | Z115: 0 | AA115: 0 | AB115: 0 | AC115: 0 | AD115: 0 | AE115: 0 | AF115: 0 | AG115: 0 | AH115: 0 | AI115: 0 | AM115: =IFERROR(VLOOKUP(F115,[1]Vendor!B:I,8,0),"") -> 
M116: 1900 | O116: 0 | P116: 0 | Q116: 0 | R116: 0 | S116: 0 | T116: 0 | U116: 0 | V116: 0 | W116: 0 | X116: 0 | Y116: 0 | Z116: 0 | AA116: 0 | AB116: 0 | AC116: 0 | AD116: 0 | AE116: 0 | AF116: 0 | AG116: 0 | AH116: 0 | AI116: 0 | AM116: =IFERROR(VLOOKUP(F116,[1]Vendor!B:I,8,0),"") -> 
M117: 1900 | O117: 0 | P117: 0 | Q117: 0 | R117: 0 | S117: 0 | T117: 0 | U117: 0 | V117: 0 | W117: 0 | X117: 0 | Y117: 0 | Z117: 0 | AA117: 0 | AB117: 0 | AC117: 0 | AD117: 0 | AE117: 0 | AF117: 0 | AG117: 0 | AH117: 0 | AI117: 0 | AM117: =IFERROR(VLOOKUP(F117,[1]Vendor!B:I,8,0),"") -> 
M118: 1900 | O118: 0 | P118: 0 | Q118: 0 | R118: 0 | S118: 0 | T118: 0 | U118: 0 | V118: 0 | W118: 0 | X118: 0 | Y118: 0 | Z118: 0 | AA118: 0 | AB118: 0 | AC118: 0 | AD118: 0 | AE118: 0 | AF118: 0 | AG118: 0 | AH118: 0 | AI118: 0 | AM118: =IFERROR(VLOOKUP(F118,[1]Vendor!B:I,8,0),"") -> 
M119: 1900 | O119: 0 | P119: 0 | Q119: 0 | R119: 0 | S119: 0 | T119: 0 | U119: 0 | V119: 0 | W119: 0 | X119: 0 | Y119: 0 | Z119: 0 | AA119: 0 | AB119: 0 | AC119: 0 | AD119: 0 | AE119: 0 | AF119: 0 | AG119: 0 | AH119: 0 | AI119: 0 | AM119: =IFERROR(VLOOKUP(F119,[1]Vendor!B:I,8,0),"") -> 
M120: 1900 | O120: 0 | P120: 0 | Q120: 0 | R120: 0 | S120: 0 | T120: 0 | U120: 0 | V120: 0 | W120: 0 | X120: 0 | Y120: 0 | Z120: 0 | AA120: 0 | AB120: 0 | AC120: 0 | AD120: 0 | AE120: 0 | AF120: 0 | AG120: 0 | AH120: 0 | AI120: 0 | AM120: =IFERROR(VLOOKUP(F120,[1]Vendor!B:I,8,0),"") -> 
M121: 1900 | O121: 0 | P121: 0 | Q121: 0 | R121: 0 | S121: 0 | T121: 0 | U121: 0 | V121: 0 | W121: 0 | X121: 0 | Y121: 0 | Z121: 0 | AA121: 0 | AB121: 0 | AC121: 0 | AD121: 0 | AE121: 0 | AF121: 0 | AG121: 0 | AH121: 0 | AI121: 0 | AM121: =IFERROR(VLOOKUP(F121,[1]Vendor!B:I,8,0),"") -> 
M122: 1900 | O122: 0 | P122: 0 | Q122: 0 | R122: 0 | S122: 0 | T122: 0 | U122: 0 | V122: 0 | W122: 0 | X122: 0 | Y122: 0 | Z122: 0 | AA122: 0 | AB122: 0 | AC122: 0 | AD122: 0 | AE122: 0 | AF122: 0 | AG122: 0 | AH122: 0 | AI122: 0 | AM122: =IFERROR(VLOOKUP(F122,[1]Vendor!B:I,8,0),"") -> 
M123: 1900 | O123: 0 | P123: 0 | Q123: 0 | R123: 0 | S123: 0 | T123: 0 | U123: 0 | V123: 0 | W123: 0 | X123: 0 | Y123: 0 | Z123: 0 | AA123: 0 | AB123: 0 | AC123: 0 | AD123: 0 | AE123: 0 | AF123: 0 | AG123: 0 | AH123: 0 | AI123: 0 | AM123: =IFERROR(VLOOKUP(F123,[1]Vendor!B:I,8,0),"") -> 
M124: 1900 | O124: 0 | P124: 0 | Q124: 0 | R124: 0 | S124: 0 | T124: 0 | U124: 0 | V124: 0 | W124: 0 | X124: 0 | Y124: 0 | Z124: 0 | AA124: 0 | AB124: 0 | AC124: 0 | AD124: 0 | AE124: 0 | AF124: =IF($M124=AF$12,$N124,0)+AE124*AF$11+AE124 -> 0 | AG124: 0 | AH124: 0 | AI124: 0 | AM124: =IFERROR(VLOOKUP(F124,[1]Vendor!B:I,8,0),"") -> 
M125: 1900 | O125: 0 | P125: 0 | Q125: 0 | R125: 0 | S125: 0 | T125: 0 | U125: 0 | V125: 0 | W125: 0 | X125: 0 | Y125: 0 | Z125: 0 | AA125: 0 | AB125: 0 | AC125: 0 | AD125: 0 | AE125: 0 | AF125: 0 | AG125: 0 | AH125: 0 | AI125: 0 | AM125: =IFERROR(VLOOKUP(F125,[1]Vendor!B:I,8,0),"") -> 
M126: 1900 | O126: 0 | P126: 0 | Q126: 0 | R126: 0 | S126: 0 | T126: 0 | U126: 0 | V126: 0 | W126: 0 | X126: 0 | Y126: 0 | Z126: 0 | AA126: 0 | AB126: 0 | AC126: 0 | AD126: 0 | AE126: 0 | AF126: 0 | AG126: 0 | AH126: 0 | AI126: 0 | AM126: =IFERROR(VLOOKUP(F126,[1]Vendor!B:I,8,0),"") -> 
M127: 1900 | O127: 0 | P127: 0 | Q127: 0 | R127: 0 | S127: 0 | T127: 0 | U127: 0 | V127: 0 | W127: 0 | X127: 0 | Y127: 0 | Z127: 0 | AA127: 0 | AB127: 0 | AC127: 0 | AD127: 0 | AE127: 0 | AF127: 0 | AG127: 0 | AH127: 0 | AI127: 0 | AM127: =IFERROR(VLOOKUP(F127,[1]Vendor!B:I,8,0),"") -> 
M128: 1900 | O128: 0 | P128: 0 | Q128: 0 | R128: 0 | S128: 0 | T128: 0 | U128: 0 | V128: 0 | W128: 0 | X128: 0 | Y128: =IF($M128=Y$12,$N128,0)+X128*Y$11+X128 -> 0 | Z128: 0 | AA128: 0 | AB128: 0 | AC128: 0 | AD128: 0 | AE128: 0 | AF128: 0 | AG128: 0 | AH128: 0 | AI128: 0 | AM128: =IFERROR(VLOOKUP(F128,[1]Vendor!B:I,8,0),"") -> 
M129: 1900 | O129: 0 | P129: 0 | Q129: 0 | R129: 0 | S129: 0 | T129: 0 | U129: 0 | V129: 0 | W129: 0 | X129: 0 | Y129: 0 | Z129: 0 | AA129: 0 | AB129: 0 | AC129: 0 | AD129: 0 | AE129: 0 | AF129: 0 | AG129: 0 | AH129: 0 | AI129: 0 | AM129: =IFERROR(VLOOKUP(F129,[1]Vendor!B:I,8,0),"") -> 
M130: 1900 | O130: 0 | P130: 0 | Q130: 0 | R130: 0 | S130: 0 | T130: 0 | U130: 0 | V130: 0 | W130: 0 | X130: 0 | Y130: 0 | Z130: 0 | AA130: 0 | AB130: 0 | AC130: 0 | AD130: 0 | AE130: 0 | AF130: 0 | AG130: 0 | AH130: 0 | AI130: 0 | AM130: =IFERROR(VLOOKUP(F130,[1]Vendor!B:I,8,0),"") -> 
M131: 1900 | O131: 0 | P131: 0 | Q131: 0 | R131: 0 | S131: 0 | T131: 0 | U131: 0 | V131: 0 | W131: 0 | X131: 0 | Y131: 0 | Z131: 0 | AA131: 0 | AB131: 0 | AC131: 0 | AD131: 0 | AE131: 0 | AF131: 0 | AG131: 0 | AH131: 0 | AI131: 0 | AM131: =IFERROR(VLOOKUP(F131,[1]Vendor!B:I,8,0),"") -> 
M132: 1900 | O132: 0 | P132: 0 | Q132: 0 | R132: 0 | S132: 0 | T132: 0 | U132: 0 | V132: 0 | W132: 0 | X132: 0 | Y132: 0 | Z132: 0 | AA132: 0 | AB132: 0 | AC132: 0 | AD132: 0 | AE132: 0 | AF132: 0 | AG132: 0 | AH132: 0 | AI132: 0 | AM132: =IFERROR(VLOOKUP(F132,[1]Vendor!B:I,8,0),"") -> 
M133: 1900 | O133: 0 | P133: 0 | Q133: 0 | R133: 0 | S133: 0 | T133: 0 | U133: 0 | V133: 0 | W133: 0 | X133: 0 | Y133: 0 | Z133: 0 | AA133: 0 | AB133: 0 | AC133: 0 | AD133: 0 | AE133: 0 | AF133: 0 | AG133: 0 | AH133: 0 | AI133: 0 | AM133: =IFERROR(VLOOKUP(F133,[1]Vendor!B:I,8,0),"") -> 
M134: 1900 | O134: 0 | P134: 0 | Q134: 0 | R134: 0 | S134: 0 | T134: 0 | U134: 0 | V134: 0 | W134: 0 | X134: 0 | Y134: 0 | Z134: 0 | AA134: 0 | AB134: 0 | AC134: 0 | AD134: 0 | AE134: 0 | AF134: 0 | AG134: 0 | AH134: 0 | AI134: 0 | AM134: =IFERROR(VLOOKUP(F134,[1]Vendor!B:I,8,0),"") -> 
M135: 1900 | O135: 0 | P135: 0 | Q135: 0 | R135: 0 | S135: 0 | T135: 0 | U135: 0 | V135: 0 | W135: 0 | X135: 0 | Y135: 0 | Z135: 0 | AA135: 0 | AB135: 0 | AC135: 0 | AD135: 0 | AE135: 0 | AF135: 0 | AG135: 0 | AH135: 0 | AI135: 0 | AM135: =IFERROR(VLOOKUP(F135,[1]Vendor!B:I,8,0),"") -> 
M136: 1900 | O136: 0 | P136: 0 | Q136: 0 | R136: 0 | S136: 0 | T136: 0 | U136: 0 | V136: 0 | W136: 0 | X136: 0 | Y136: 0 | Z136: 0 | AA136: 0 | AB136: 0 | AC136: 0 | AD136: 0 | AE136: 0 | AF136: 0 | AG136: 0 | AH136: 0 | AI136: 0 | AM136: =IFERROR(VLOOKUP(F136,[1]Vendor!B:I,8,0),"") -> 
M137: 1900 | O137: 0 | P137: 0 | Q137: 0 | R137: 0 | S137: 0 | T137: 0 | U137: 0 | V137: 0 | W137: 0 | X137: 0 | Y137: 0 | Z137: 0 | AA137: 0 | AB137: 0 | AC137: 0 | AD137: 0 | AE137: 0 | AF137: 0 | AG137: 0 | AH137: 0 | AI137: 0 | AM137: =IFERROR(VLOOKUP(F137,[1]Vendor!B:I,8,0),"") -> 
M138: 1900 | O138: 0 | P138: 0 | Q138: 0 | R138: 0 | S138: 0 | T138: 0 | U138: 0 | V138: 0 | W138: 0 | X138: 0 | Y138: 0 | Z138: 0 | AA138: 0 | AB138: 0 | AC138: 0 | AD138: 0 | AE138: 0 | AF138: 0 | AG138: 0 | AH138: 0 | AI138: 0 | AM138: =IFERROR(VLOOKUP(F138,[1]Vendor!B:I,8,0),"") -> 
M139: 1900 | O139: 0 | P139: 0 | Q139: 0 | R139: 0 | S139: 0 | T139: 0 | U139: 0 | V139: 0 | W139: 0 | X139: 0 | Y139: 0 | Z139: 0 | AA139: 0 | AB139: 0 | AC139: 0 | AD139: 0 | AE139: 0 | AF139: 0 | AG139: 0 | AH139: 0 | AI139: 0 | AM139: =IFERROR(VLOOKUP(F139,[1]Vendor!B:I,8,0),"") -> 
M140: 1900 | O140: 0 | P140: 0 | Q140: 0 | R140: 0 | S140: 0 | T140: 0 | U140: 0 | V140: 0 | W140: 0 | X140: 0 | Y140: 0 | Z140: 0 | AA140: 0 | AB140: 0 | AC140: 0 | AD140: 0 | AE140: 0 | AF140: 0 | AG140: 0 | AH140: 0 | AI140: 0 | AM140: =IFERROR(VLOOKUP(F140,[1]Vendor!B:I,8,0),"") -> 
M141: =IFERROR(YEAR(J141),"") -> 1900 | O141: =IF($M141=O$12,$N141,0) -> 0 | P141: 0 | Q141: 0 | R141: 0 | S141: 0 | T141: 0 | U141: 0 | V141: 0 | W141: 0 | X141: 0 | Y141: 0 | Z141: 0 | AA141: 0 | AB141: 0 | AC141: 0 | AD141: 0 | AE141: 0 | AF141: 0 | AG141: 0 | AH141: 0 | AI141: =Z141-Y141 -> 0 | AM141: =IFERROR(VLOOKUP(F141,[1]Vendor!B:I,8,0),"") -> 
M142: 1900 | N142: =IFERROR(I142/H142,"") ->  | O142: 0 | P142: 0 | Q142: 0 | R142: 0 | S142: 0 | T142: 0 | U142: 0 | V142: 0 | W142: 0 | X142: 0 | Y142: 0 | Z142: 0 | AA142: 0 | AB142: 0 | AC142: 0 | AD142: 0 | AE142: 0 | AF142: 0 | AG142: 0 | AH142: 0 | AI142: 0 | AM142: =IFERROR(VLOOKUP(F142,[1]Vendor!B:I,8,0),"") -> 
M143: 1900 | O143: 0 | P143: 0 | Q143: 0 | R143: 0 | S143: 0 | T143: 0 | U143: 0 | V143: 0 | W143: 0 | X143: 0 | Y143: 0 | Z143: 0 | AA143: 0 | AB143: 0 | AC143: 0 | AD143: 0 | AE143: 0 | AF143: 0 | AG143: 0 | AH143: 0 | AI143: 0 | AM143: =IFERROR(VLOOKUP(F143,[1]Vendor!B:I,8,0),"") -> 
M144: 1900 | O144: 0 | P144: 0 | Q144: 0 | R144: 0 | S144: 0 | T144: 0 | U144: 0 | V144: 0 | W144: 0 | X144: =IF($M144=X$12,$N144,0)+W144*X$11+W144 -> 0 | Y144: 0 | Z144: 0 | AA144: 0 | AB144: 0 | AC144: 0 | AD144: 0 | AE144: 0 | AF144: 0 | AG144: 0 | AH144: 0 | AI144: 0 | AM144: =IFERROR(VLOOKUP(F144,[1]Vendor!B:I,8,0),"") -> 
M145: 1900 | O145: 0 | P145: 0 | Q145: 0 | R145: 0 | S145: 0 | T145: 0 | U145: 0 | V145: 0 | W145: 0 | X145: 0 | Y145: 0 | Z145: 0 | AA145: 0 | AB145: 0 | AC145: 0 | AD145: 0 | AE145: 0 | AF145: 0 | AG145: 0 | AH145: 0 | AI145: 0 | AM145: =IFERROR(VLOOKUP(F145,[1]Vendor!B:I,8,0),"") -> 
M146: 1900 | O146: 0 | P146: 0 | Q146: 0 | R146: 0 | S146: 0 | T146: 0 | U146: 0 | V146: 0 | W146: 0 | X146: 0 | Y146: 0 | Z146: 0 | AA146: 0 | AB146: 0 | AC146: 0 | AD146: 0 | AE146: 0 | AF146: 0 | AG146: 0 | AH146: 0 | AI146: 0 | AM146: =IFERROR(VLOOKUP(F146,[1]Vendor!B:I,8,0),"") -> 
M147: 1900 | O147: 0 | P147: 0 | Q147: 0 | R147: 0 | S147: 0 | T147: 0 | U147: 0 | V147: 0 | W147: 0 | X147: 0 | Y147: 0 | Z147: 0 | AA147: 0 | AB147: 0 | AC147: 0 | AD147: 0 | AE147: 0 | AF147: 0 | AG147: 0 | AH147: 0 | AI147: 0 | AM147: =IFERROR(VLOOKUP(F147,[1]Vendor!B:I,8,0),"") -> 
M148: 1900 | O148: 0 | P148: 0 | Q148: 0 | R148: 0 | S148: 0 | T148: 0 | U148: 0 | V148: 0 | W148: 0 | X148: 0 | Y148: 0 | Z148: 0 | AA148: 0 | AB148: 0 | AC148: 0 | AD148: 0 | AE148: 0 | AF148: 0 | AG148: 0 | AH148: 0 | AI148: 0 | AM148: =IFERROR(VLOOKUP(F148,[1]Vendor!B:I,8,0),"") -> 
M149: 1900 | O149: 0 | P149: 0 | Q149: 0 | R149: 0 | S149: 0 | T149: 0 | U149: 0 | V149: 0 | W149: 0 | X149: 0 | Y149: 0 | Z149: 0 | AA149: 0 | AB149: 0 | AC149: 0 | AD149: 0 | AE149: 0 | AF149: 0 | AG149: 0 | AH149: 0 | AI149: 0 | AM149: =IFERROR(VLOOKUP(F149,[1]Vendor!B:I,8,0),"") -> 
M150: 1900 | O150: 0 | P150: 0 | Q150: 0 | R150: 0 | S150: 0 | T150: 0 | U150: 0 | V150: 0 | W150: 0 | X150: 0 | Y150: 0 | Z150: 0 | AA150: 0 | AB150: 0 | AC150: 0 | AD150: 0 | AE150: 0 | AF150: 0 | AG150: 0 | AH150: 0 | AI150: 0 | AM150: =IFERROR(VLOOKUP(F150,[1]Vendor!B:I,8,0),"") -> 
M151: 1900 | O151: 0 | P151: 0 | Q151: 0 | R151: 0 | S151: 0 | T151: 0 | U151: 0 | V151: 0 | W151: 0 | X151: 0 | Y151: 0 | Z151: 0 | AA151: 0 | AB151: 0 | AC151: 0 | AD151: 0 | AE151: 0 | AF151: 0 | AG151: 0 | AH151: 0 | AI151: 0 | AJ151: =IFERROR(AI151/Y151,"") ->  | AL151: =IFERROR(AK151/AA151,"") ->  | AM151: =IFERROR(VLOOKUP(F151,[1]Vendor!B:I,8,0),"") ->  | AO151: =IFERROR(AN151-AK151,"")/AK151 -> 
M152: 1900 | O152: 0 | P152: 0 | Q152: 0 | R152: 0 | S152: 0 | T152: 0 | U152: 0 | V152: 0 | W152: 0 | X152: 0 | Y152: 0 | Z152: 0 | AA152: 0 | AB152: 0 | AC152: 0 | AD152: 0 | AE152: 0 | AF152: 0 | AG152: 0 | AH152: 0 | AI152: 0 | AM152: =IFERROR(VLOOKUP(F152,[1]Vendor!B:I,8,0),"") -> 
M153: 1900 | O153: 0 | P153: 0 | Q153: 0 | R153: 0 | S153: 0 | T153: 0 | U153: 0 | V153: 0 | W153: 0 | X153: 0 | Y153: 0 | Z153: 0 | AA153: 0 | AB153: 0 | AC153: 0 | AD153: 0 | AE153: 0 | AF153: 0 | AG153: 0 | AH153: 0 | AI153: 0 | AM153: =IFERROR(VLOOKUP(F153,[1]Vendor!B:I,8,0),"") -> 
M154: 1900 | O154: 0 | P154: 0 | Q154: 0 | R154: 0 | S154: 0 | T154: 0 | U154: 0 | V154: 0 | W154: 0 | X154: 0 | Y154: 0 | Z154: 0 | AA154: 0 | AB154: 0 | AC154: 0 | AD154: 0 | AE154: 0 | AF154: 0 | AG154: 0 | AH154: 0 | AI154: 0 | AM154: =IFERROR(VLOOKUP(F154,[1]Vendor!B:I,8,0),"") -> 
M155: 1900 | O155: 0 | P155: 0 | Q155: 0 | R155: 0 | S155: 0 | T155: 0 | U155: 0 | V155: 0 | W155: 0 | X155: 0 | Y155: 0 | Z155: 0 | AA155: 0 | AB155: 0 | AC155: 0 | AD155: 0 | AE155: 0 | AF155: 0 | AG155: 0 | AH155: 0 | AI155: 0 | AM155: =IFERROR(VLOOKUP(F155,[1]Vendor!B:I,8,0),"") -> 
M156: 1900 | O156: 0 | P156: 0 | Q156: 0 | R156: 0 | S156: 0 | T156: 0 | U156: 0 | V156: 0 | W156: 0 | X156: 0 | Y156: 0 | Z156: 0 | AA156: 0 | AB156: 0 | AC156: 0 | AD156: 0 | AE156: 0 | AF156: 0 | AG156: 0 | AH156: 0 | AI156: 0 | AM156: =IFERROR(VLOOKUP(F156,[1]Vendor!B:I,8,0),"") -> 
M157: 1900 | O157: 0 | P157: 0 | Q157: 0 | R157: 0 | S157: 0 | T157: 0 | U157: 0 | V157: 0 | W157: 0 | X157: 0 | Y157: 0 | Z157: 0 | AA157: 0 | AB157: 0 | AC157: 0 | AD157: 0 | AE157: 0 | AF157: 0 | AG157: 0 | AH157: 0 | AI157: 0 | AM157: =IFERROR(VLOOKUP(F157,[1]Vendor!B:I,8,0),"") -> 
M158: 1900 | O158: 0 | P158: 0 | Q158: 0 | R158: 0 | S158: 0 | T158: 0 | U158: 0 | V158: 0 | W158: 0 | X158: 0 | Y158: 0 | Z158: 0 | AA158: 0 | AB158: 0 | AC158: 0 | AD158: 0 | AE158: 0 | AF158: 0 | AG158: 0 | AH158: 0 | AI158: 0 | AM158: =IFERROR(VLOOKUP(F158,[1]Vendor!B:I,8,0),"") -> 
M159: 1900 | O159: 0 | P159: 0 | Q159: 0 | R159: 0 | S159: 0 | T159: 0 | U159: 0 | V159: 0 | W159: 0 | X159: 0 | Y159: 0 | Z159: 0 | AA159: 0 | AB159: 0 | AC159: 0 | AD159: 0 | AE159: 0 | AF159: 0 | AG159: 0 | AH159: 0 | AI159: 0 | AM159: =IFERROR(VLOOKUP(F159,[1]Vendor!B:I,8,0),"") -> 
M160: 1900 | O160: 0 | P160: 0 | Q160: 0 | R160: 0 | S160: 0 | T160: 0 | U160: 0 | V160: 0 | W160: =IF($M160=W$12,$N160,0)+V160*W$11+V160 -> 0 | X160: 0 | Y160: 0 | Z160: 0 | AA160: 0 | AB160: 0 | AC160: 0 | AD160: 0 | AE160: 0 | AF160: 0 | AG160: 0 | AH160: 0 | AI160: 0 | AM160: =IFERROR(VLOOKUP(F160,[1]Vendor!B:I,8,0),"") -> 
M161: 1900 | O161: 0 | P161: =IF($M161=P$12,$N161,0)+O161*P$11+O161 -> 0 | Q161: 0 | R161: 0 | S161: 0 | T161: 0 | U161: 0 | V161: 0 | W161: 0 | X161: 0 | Y161: 0 | Z161: 0 | AA161: 0 | AB161: 0 | AC161: 0 | AD161: 0 | AE161: 0 | AF161: 0 | AG161: 0 | AH161: 0 | AI161: 0 | AM161: =IFERROR(VLOOKUP(F161,[1]Vendor!B:I,8,0),"") -> 
M162: 1900 | O162: 0 | P162: 0 | Q162: 0 | R162: 0 | S162: 0 | T162: 0 | U162: 0 | V162: 0 | W162: 0 | X162: 0 | Y162: 0 | Z162: 0 | AA162: 0 | AB162: 0 | AC162: 0 | AD162: 0 | AE162: 0 | AF162: 0 | AG162: 0 | AH162: 0 | AI162: 0 | AM162: =IFERROR(VLOOKUP(F162,[1]Vendor!B:I,8,0),"") -> 
M163: 1900 | O163: 0 | P163: 0 | Q163: 0 | R163: 0 | S163: 0 | T163: 0 | U163: 0 | V163: 0 | W163: 0 | X163: 0 | Y163: 0 | Z163: 0 | AA163: 0 | AB163: 0 | AC163: 0 | AD163: 0 | AE163: 0 | AF163: 0 | AG163: 0 | AH163: 0 | AI163: 0 | AM163: =IFERROR(VLOOKUP(F163,[1]Vendor!B:I,8,0),"") -> 
M164: 1900 | O164: 0 | P164: 0 | Q164: 0 | R164: 0 | S164: 0 | T164: 0 | U164: 0 | V164: 0 | W164: 0 | X164: 0 | Y164: 0 | Z164: 0 | AA164: 0 | AB164: 0 | AC164: 0 | AD164: 0 | AE164: 0 | AF164: 0 | AG164: 0 | AH164: 0 | AI164: 0 | AM164: =IFERROR(VLOOKUP(F164,[1]Vendor!B:I,8,0),"") -> 
M165: 1900 | O165: 0 | P165: 0 | Q165: 0 | R165: 0 | S165: 0 | T165: 0 | U165: 0 | V165: 0 | W165: 0 | X165: 0 | Y165: 0 | Z165: 0 | AA165: 0 | AB165: 0 | AC165: 0 | AD165: 0 | AE165: 0 | AF165: 0 | AG165: 0 | AH165: 0 | AI165: 0 | AM165: =IFERROR(VLOOKUP(F165,[1]Vendor!B:I,8,0),"") -> 
M166: 1900 | O166: 0 | P166: 0 | Q166: 0 | R166: 0 | S166: 0 | T166: 0 | U166: 0 | V166: 0 | W166: 0 | X166: 0 | Y166: 0 | Z166: 0 | AA166: 0 | AB166: 0 | AC166: 0 | AD166: 0 | AE166: 0 | AF166: 0 | AG166: 0 | AH166: 0 | AI166: 0 | AM166: =IFERROR(VLOOKUP(F166,[1]Vendor!B:I,8,0),"") -> 
M167: 1900 | O167: 0 | P167: 0 | Q167: 0 | R167: 0 | S167: 0 | T167: 0 | U167: 0 | V167: 0 | W167: 0 | X167: 0 | Y167: 0 | Z167: 0 | AA167: 0 | AB167: 0 | AC167: 0 | AD167: 0 | AE167: 0 | AF167: 0 | AG167: 0 | AH167: 0 | AI167: 0 | AM167: =IFERROR(VLOOKUP(F167,[1]Vendor!B:I,8,0),"") -> 
M168: 1900 | O168: 0 | P168: 0 | Q168: 0 | R168: 0 | S168: 0 | T168: 0 | U168: 0 | V168: 0 | W168: 0 | X168: 0 | Y168: 0 | Z168: 0 | AA168: 0 | AB168: 0 | AC168: 0 | AD168: 0 | AE168: 0 | AF168: 0 | AG168: 0 | AH168: 0 | AI168: 0 | AM168: =IFERROR(VLOOKUP(F168,[1]Vendor!B:I,8,0),"") -> 
M169: 1900 | O169: 0 | P169: 0 | Q169: 0 | R169: 0 | S169: 0 | T169: 0 | U169: 0 | V169: 0 | W169: 0 | X169: 0 | Y169: 0 | Z169: 0 | AA169: 0 | AB169: 0 | AC169: 0 | AD169: 0 | AE169: 0 | AF169: 0 | AG169: 0 | AH169: 0 | AI169: 0 | AM169: =IFERROR(VLOOKUP(F169,[1]Vendor!B:I,8,0),"") -> 
M170: 1900 | O170: 0 | P170: 0 | Q170: 0 | R170: 0 | S170: 0 | T170: 0 | U170: 0 | V170: 0 | W170: 0 | X170: 0 | Y170: 0 | Z170: 0 | AA170: 0 | AB170: 0 | AC170: 0 | AD170: 0 | AE170: 0 | AF170: 0 | AG170: 0 | AH170: 0 | AI170: 0 | AM170: =IFERROR(VLOOKUP(F170,[1]Vendor!B:I,8,0),"") -> 
M171: 1900 | O171: 0 | P171: 0 | Q171: 0 | R171: 0 | S171: 0 | T171: 0 | U171: 0 | V171: 0 | W171: 0 | X171: 0 | Y171: 0 | Z171: 0 | AA171: 0 | AB171: 0 | AC171: 0 | AD171: 0 | AE171: 0 | AF171: 0 | AG171: 0 | AH171: 0 | AI171: 0 | AM171: =IFERROR(VLOOKUP(F171,[1]Vendor!B:I,8,0),"") -> 
M172: 1900 | O172: 0 | P172: 0 | Q172: 0 | R172: 0 | S172: 0 | T172: 0 | U172: 0 | V172: 0 | W172: 0 | X172: 0 | Y172: 0 | Z172: 0 | AA172: 0 | AB172: 0 | AC172: 0 | AD172: 0 | AE172: 0 | AF172: 0 | AG172: 0 | AH172: 0 | AI172: 0 | AM172: =IFERROR(VLOOKUP(F172,[1]Vendor!B:I,8,0),"") -> 
M173: 1900 | O173: 0 | P173: 0 | Q173: 0 | R173: 0 | S173: 0 | T173: 0 | U173: 0 | V173: 0 | W173: 0 | X173: 0 | Y173: 0 | Z173: 0 | AA173: 0 | AB173: 0 | AC173: 0 | AD173: 0 | AE173: 0 | AF173: 0 | AG173: 0 | AH173: 0 | AI173: 0 | AM173: =IFERROR(VLOOKUP(F173,[1]Vendor!B:I,8,0),"") -> 
M174: 1900 | O174: 0 | P174: 0 | Q174: 0 | R174: 0 | S174: 0 | T174: 0 | U174: 0 | V174: 0 | W174: 0 | X174: 0 | Y174: 0 | Z174: 0 | AA174: 0 | AB174: 0 | AC174: 0 | AD174: 0 | AE174: 0 | AF174: 0 | AG174: 0 | AH174: 0 | AI174: 0 | AM174: =IFERROR(VLOOKUP(F174,[1]Vendor!B:I,8,0),"") -> 
M175: 1900 | O175: 0 | P175: 0 | Q175: 0 | R175: 0 | S175: 0 | T175: 0 | U175: 0 | V175: 0 | W175: 0 | X175: 0 | Y175: 0 | Z175: 0 | AA175: 0 | AB175: 0 | AC175: 0 | AD175: 0 | AE175: 0 | AF175: 0 | AG175: 0 | AH175: 0 | AI175: 0 | AM175: =IFERROR(VLOOKUP(F175,[1]Vendor!B:I,8,0),"") -> 
M176: 1900 | O176: 0 | P176: 0 | Q176: 0 | R176: 0 | S176: 0 | T176: 0 | U176: 0 | V176: 0 | W176: 0 | X176: 0 | Y176: 0 | Z176: 0 | AA176: 0 | AB176: 0 | AC176: 0 | AD176: 0 | AE176: 0 | AF176: 0 | AG176: 0 | AH176: 0 | AI176: 0 | AM176: =IFERROR(VLOOKUP(F176,[1]Vendor!B:I,8,0),"") -> 
M177: 1900 | O177: 0 | P177: 0 | Q177: 0 | R177: 0 | S177: 0 | T177: 0 | U177: 0 | V177: 0 | W177: 0 | X177: 0 | Y177: 0 | Z177: 0 | AA177: 0 | AB177: 0 | AC177: 0 | AD177: 0 | AE177: 0 | AF177: 0 | AG177: 0 | AH177: 0 | AI177: 0 | AM177: =IFERROR(VLOOKUP(F177,[1]Vendor!B:I,8,0),"") -> 
M178: 1900 | O178: 0 | P178: 0 | Q178: 0 | R178: 0 | S178: 0 | T178: 0 | U178: 0 | V178: 0 | W178: 0 | X178: 0 | Y178: 0 | Z178: 0 | AA178: 0 | AB178: 0 | AC178: 0 | AD178: 0 | AE178: 0 | AF178: 0 | AG178: 0 | AH178: 0 | AI178: 0 | AM178: =IFERROR(VLOOKUP(F178,[1]Vendor!B:I,8,0),"") -> 
M179: 1900 | O179: 0 | P179: 0 | Q179: 0 | R179: 0 | S179: 0 | T179: 0 | U179: 0 | V179: 0 | W179: 0 | X179: 0 | Y179: 0 | Z179: 0 | AA179: 0 | AB179: 0 | AC179: 0 | AD179: 0 | AE179: 0 | AF179: 0 | AG179: 0 | AH179: 0 | AI179: 0 | AM179: =IFERROR(VLOOKUP(F179,[1]Vendor!B:I,8,0),"") -> 
M180: 1900 | O180: 0 | P180: 0 | Q180: 0 | R180: 0 | S180: 0 | T180: 0 | U180: 0 | V180: 0 | W180: 0 | X180: 0 | Y180: 0 | Z180: 0 | AA180: 0 | AB180: 0 | AC180: 0 | AD180: 0 | AE180: 0 | AF180: 0 | AG180: 0 | AH180: 0 | AI180: 0 | AM180: =IFERROR(VLOOKUP(F180,[1]Vendor!B:I,8,0),"") -> 
M181: 1900 | O181: 0 | P181: 0 | Q181: 0 | R181: 0 | S181: 0 | T181: 0 | U181: 0 | V181: 0 | W181: 0 | X181: 0 | Y181: 0 | Z181: 0 | AA181: 0 | AB181: 0 | AC181: 0 | AD181: 0 | AE181: 0 | AF181: 0 | AG181: 0 | AH181: 0 | AI181: 0 | AM181: =IFERROR(VLOOKUP(F181,[1]Vendor!B:I,8,0),"") -> 
M182: 1900 | O182: 0 | P182: 0 | Q182: 0 | R182: 0 | S182: 0 | T182: 0 | U182: 0 | V182: 0 | W182: 0 | X182: 0 | Y182: 0 | Z182: 0 | AA182: 0 | AB182: 0 | AC182: 0 | AD182: 0 | AE182: 0 | AF182: 0 | AG182: 0 | AH182: 0 | AI182: 0 | AM182: =IFERROR(VLOOKUP(F182,[1]Vendor!B:I,8,0),"") -> 
M183: 1900 | O183: 0 | P183: 0 | Q183: 0 | R183: 0 | S183: 0 | T183: 0 | U183: 0 | V183: 0 | W183: 0 | X183: 0 | Y183: 0 | Z183: 0 | AA183: 0 | AB183: 0 | AC183: 0 | AD183: 0 | AE183: 0 | AF183: 0 | AG183: 0 | AH183: 0 | AI183: 0 | AM183: =IFERROR(VLOOKUP(F183,[1]Vendor!B:I,8,0),"") -> 
M184: 1900 | O184: 0 | P184: 0 | Q184: 0 | R184: 0 | S184: 0 | T184: 0 | U184: 0 | V184: 0 | W184: 0 | X184: 0 | Y184: 0 | Z184: 0 | AA184: 0 | AB184: 0 | AC184: 0 | AD184: 0 | AE184: 0 | AF184: 0 | AG184: 0 | AH184: 0 | AI184: 0 | AM184: =IFERROR(VLOOKUP(F184,[1]Vendor!B:I,8,0),"") -> 
M185: 1900 | O185: 0 | P185: 0 | Q185: 0 | R185: 0 | S185: 0 | T185: 0 | U185: 0 | V185: 0 | W185: 0 | X185: 0 | Y185: 0 | Z185: 0 | AA185: 0 | AB185: 0 | AC185: 0 | AD185: 0 | AE185: 0 | AF185: 0 | AG185: 0 | AH185: 0 | AI185: 0 | AM185: =IFERROR(VLOOKUP(F185,[1]Vendor!B:I,8,0),"") -> 
M186: 1900 | O186: 0 | P186: 0 | Q186: 0 | R186: 0 | S186: 0 | T186: 0 | U186: 0 | V186: 0 | W186: 0 | X186: 0 | Y186: 0 | Z186: 0 | AA186: 0 | AB186: 0 | AC186: 0 | AD186: 0 | AE186: 0 | AF186: 0 | AG186: 0 | AH186: 0 | AI186: 0 | AM186: =IFERROR(VLOOKUP(F186,[1]Vendor!B:I,8,0),"") -> 
M187: 1900 | O187: 0 | P187: 0 | Q187: 0 | R187: 0 | S187: 0 | T187: 0 | U187: 0 | V187: 0 | W187: 0 | X187: 0 | Y187: 0 | Z187: 0 | AA187: 0 | AB187: 0 | AC187: 0 | AD187: 0 | AE187: 0 | AF187: 0 | AG187: 0 | AH187: 0 | AI187: 0 | AM187: =IFERROR(VLOOKUP(F187,[1]Vendor!B:I,8,0),"") -> 
M188: 1900 | O188: 0 | P188: 0 | Q188: 0 | R188: 0 | S188: 0 | T188: 0 | U188: 0 | V188: 0 | W188: 0 | X188: 0 | Y188: 0 | Z188: 0 | AA188: 0 | AB188: 0 | AC188: 0 | AD188: 0 | AE188: 0 | AF188: =IF($M188=AF$12,$N188,0)+AE188*AF$11+AE188 -> 0 | AG188: 0 | AH188: 0 | AI188: 0 | AM188: =IFERROR(VLOOKUP(F188,[1]Vendor!B:I,8,0),"") -> 
M189: 1900 | O189: 0 | P189: 0 | Q189: 0 | R189: 0 | S189: 0 | T189: 0 | U189: 0 | V189: 0 | W189: 0 | X189: 0 | Y189: 0 | Z189: 0 | AA189: 0 | AB189: 0 | AC189: 0 | AD189: 0 | AE189: 0 | AF189: 0 | AG189: 0 | AH189: 0 | AI189: 0 | AM189: =IFERROR(VLOOKUP(F189,[1]Vendor!B:I,8,0),"") -> 
M190: 1900 | O190: 0 | P190: 0 | Q190: 0 | R190: 0 | S190: 0 | T190: 0 | U190: 0 | V190: 0 | W190: 0 | X190: 0 | Y190: 0 | Z190: 0 | AA190: 0 | AB190: 0 | AC190: 0 | AD190: 0 | AE190: 0 | AF190: 0 | AG190: 0 | AH190: 0 | AI190: 0 | AM190: =IFERROR(VLOOKUP(F190,[1]Vendor!B:I,8,0),"") -> 
M191: 1900 | O191: 0 | P191: 0 | Q191: 0 | R191: 0 | S191: 0 | T191: 0 | U191: 0 | V191: 0 | W191: 0 | X191: 0 | Y191: 0 | Z191: 0 | AA191: 0 | AB191: 0 | AC191: 0 | AD191: 0 | AE191: 0 | AF191: 0 | AG191: 0 | AH191: 0 | AI191: 0 | AM191: =IFERROR(VLOOKUP(F191,[1]Vendor!B:I,8,0),"") -> 
M192: 1900 | O192: 0 | P192: 0 | Q192: 0 | R192: 0 | S192: 0 | T192: 0 | U192: 0 | V192: 0 | W192: 0 | X192: 0 | Y192: 0 | Z192: 0 | AA192: 0 | AB192: 0 | AC192: =IF($M192=AC$12,$N192,0)+AB192*AC$11+AB192 -> 0 | AD192: 0 | AE192: 0 | AF192: 0 | AG192: 0 | AH192: 0 | AI192: 0 | AM192: =IFERROR(VLOOKUP(F192,[1]Vendor!B:I,8,0),"") -> 
M193: 1900 | O193: 0 | P193: =IF($M193=P$12,$N193,0)+O193*P$11+O193 -> 0 | Q193: 0 | R193: 0 | S193: 0 | T193: 0 | U193: 0 | V193: 0 | W193: 0 | X193: 0 | Y193: 0 | Z193: 0 | AA193: 0 | AB193: 0 | AC193: 0 | AD193: 0 | AE193: 0 | AF193: 0 | AG193: 0 | AH193: 0 | AI193: 0 | AM193: =IFERROR(VLOOKUP(F193,[1]Vendor!B:I,8,0),"") -> 
M194: 1900 | O194: 0 | P194: 0 | Q194: 0 | R194: 0 | S194: 0 | T194: 0 | U194: 0 | V194: 0 | W194: 0 | X194: 0 | Y194: 0 | Z194: 0 | AA194: 0 | AB194: 0 | AC194: 0 | AD194: 0 | AE194: 0 | AF194: 0 | AG194: 0 | AH194: 0 | AI194: 0 | AM194: =IFERROR(VLOOKUP(F194,[1]Vendor!B:I,8,0),"") -> 
M195: 1900 | O195: 0 | P195: 0 | Q195: 0 | R195: 0 | S195: 0 | T195: 0 | U195: 0 | V195: 0 | W195: 0 | X195: 0 | Y195: 0 | Z195: 0 | AA195: 0 | AB195: 0 | AC195: 0 | AD195: 0 | AE195: 0 | AF195: 0 | AG195: 0 | AH195: 0 | AI195: 0 | AM195: =IFERROR(VLOOKUP(F195,[1]Vendor!B:I,8,0),"") -> 
M196: 1900 | O196: 0 | P196: 0 | Q196: 0 | R196: 0 | S196: 0 | T196: 0 | U196: 0 | V196: 0 | W196: 0 | X196: 0 | Y196: 0 | Z196: 0 | AA196: 0 | AB196: 0 | AC196: 0 | AD196: 0 | AE196: 0 | AF196: 0 | AG196: 0 | AH196: 0 | AI196: 0 | AM196: =IFERROR(VLOOKUP(F196,[1]Vendor!B:I,8,0),"") -> 
M197: 1900 | O197: 0 | P197: 0 | Q197: 0 | R197: 0 | S197: 0 | T197: 0 | U197: 0 | V197: 0 | W197: 0 | X197: 0 | Y197: 0 | Z197: 0 | AA197: 0 | AB197: 0 | AC197: 0 | AD197: 0 | AE197: 0 | AF197: 0 | AG197: 0 | AH197: 0 | AI197: 0 | AM197: =IFERROR(VLOOKUP(F197,[1]Vendor!B:I,8,0),"") -> 
M198: 1900 | O198: 0 | P198: 0 | Q198: 0 | R198: 0 | S198: 0 | T198: 0 | U198: 0 | V198: 0 | W198: 0 | X198: 0 | Y198: 0 | Z198: 0 | AA198: 0 | AB198: 0 | AC198: 0 | AD198: 0 | AE198: 0 | AF198: 0 | AG198: 0 | AH198: 0 | AI198: 0 | AM198: =IFERROR(VLOOKUP(F198,[1]Vendor!B:I,8,0),"") -> 
M199: 1900 | O199: 0 | P199: 0 | Q199: 0 | R199: 0 | S199: 0 | T199: 0 | U199: 0 | V199: 0 | W199: 0 | X199: 0 | Y199: 0 | Z199: 0 | AA199: 0 | AB199: 0 | AC199: 0 | AD199: 0 | AE199: 0 | AF199: 0 | AG199: 0 | AH199: 0 | AI199: 0 | AM199: =IFERROR(VLOOKUP(F199,[1]Vendor!B:I,8,0),"") -> 
M200: 1900 | O200: 0 | P200: 0 | Q200: 0 | R200: 0 | S200: 0 | T200: 0 | U200: 0 | V200: 0 | W200: 0 | X200: 0 | Y200: 0 | Z200: 0 | AA200: 0 | AB200: 0 | AC200: 0 | AD200: 0 | AE200: 0 | AF200: 0 | AG200: 0 | AH200: 0 | AI200: 0 | AM200: =IFERROR(VLOOKUP(F200,[1]Vendor!B:I,8,0),"") -> 
M201: 1900 | O201: 0 | P201: 0 | Q201: 0 | R201: 0 | S201: 0 | T201: 0 | U201: 0 | V201: 0 | W201: 0 | X201: 0 | Y201: 0 | Z201: 0 | AA201: 0 | AB201: 0 | AC201: 0 | AD201: 0 | AE201: 0 | AF201: 0 | AG201: 0 | AH201: 0 | AI201: 0 | AM201: =IFERROR(VLOOKUP(F201,[1]Vendor!B:I,8,0),"") -> 
M202: 1900 | O202: 0 | P202: 0 | Q202: 0 | R202: 0 | S202: 0 | T202: 0 | U202: 0 | V202: 0 | W202: 0 | X202: 0 | Y202: 0 | Z202: 0 | AA202: 0 | AB202: 0 | AC202: 0 | AD202: 0 | AE202: 0 | AF202: 0 | AG202: 0 | AH202: 0 | AI202: 0 | AM202: =IFERROR(VLOOKUP(F202,[1]Vendor!B:I,8,0),"") -> 
M203: 1900 | O203: 0 | P203: 0 | Q203: 0 | R203: 0 | S203: 0 | T203: 0 | U203: 0 | V203: 0 | W203: 0 | X203: 0 | Y203: 0 | Z203: 0 | AA203: 0 | AB203: 0 | AC203: 0 | AD203: 0 | AE203: 0 | AF203: 0 | AG203: 0 | AH203: 0 | AI203: 0 | AM203: =IFERROR(VLOOKUP(F203,[1]Vendor!B:I,8,0),"") -> 
... 2047 more rows

Sheet Workings Steel (hidden)
A1: ITEMS BELOW ARE 100% STEEL
O2: Inflation 7,8% 2022
Q5: Steel | R5: Inflation
Q6: 0.8 | R6: 0.2
N8: Copper | Q8: =5%*R6 -> 1% | R8: =7%*R6 -> 1% | S8: =4%*R6 -> 1% | T8: =-7%*R6 -> -1% | U8: =13%*R6 -> 3% | V8: =25%*R6 -> 5% | W8: =-8%*R6 -> -2% | X8: 0% | Y8: =25%*R6 -> 5% | Z8: =33%*R6 -> 7% | AA8: =20%*R6 -> 4% | AB8: =20%*R6 -> 4% | AC8: =20%*R6 -> 4%
N9: Steel | Q9: =-1%*$Q$6 -> -1% | R9: =17%*Q6 -> 14% | S9: =3%*Q6 -> 2% | T9: =-17%*Q6 -> -14% | U9: =36%*Q6 -> 29% | V9: =11%*$Q$6 -> 9% | W9: =5%*Q6 -> 4% | X9: =-7%*Q6 -> -5.60% | Y9: =20%*Q6 -> 16.00% | Z9: =56%*Q6 -> 44.80% | AA9: =10%*Q6 -> 8.00% | AB9: =AA9 -> 8.00% | AC9: =AB9 -> 8.00%
N10: Inflation | O10: =7%*$R$6 -> 1% | P10: 1% | Q10: 1% | R10: 1% | S10: 1% | T10: 1% | U10: 1% | V10: =7%*$R$6 -> 1% | W10: =7%*$R$6 -> 1% | X10: =4.4%*$R$6 -> 0.88% | Y10: =3.1%*$R$6 -> 0.62% | Z10: =4.41%*$R$6 -> 0.88% | AA10: =7.8%*$R$6 -> 1.56% | AB10: =7.8%*$R$6 -> 1.56% | AC10: =7.8%*$R$6 -> 1.56% | AD10: =7.8%*$R$6 -> 1.56% | AE10: 1.56% | AF10: 1.56% | AG10: 1.56% | AH10: 1.56%
N11: total escalation | O11: =O10+O9 -> 1% | P11: =P10+P9 -> 1% | Q11: =Q10+Q9 -> 1% | R11: 15% | S11: 4% | T11: -12% | U11: 30% | V11: 10% | W11: 5% | X11: -5% | Y11: 17% | Z11: 46% | AA11: 10% | AB11: 10% | AC11: 10% | AD11: 2% | AE11: 2% | AF11: 2% | AG11: 2% | AH11: 2% | AK11: 1st Year | AN11: 2nd Year
A12: Purch.Doc. | B12: Material | C12: Plant | D12: Short Text | E12: GR-IV | F12: Vendor | G12: I | H12: Quantity | I12: Net Order Value | J12: Doc. Date | K12: OUn | L12: Crcy | M12: Year | N12: Unit / Price | O12: 2010 | P12: 2011 | Q12: 2012 | R12: 2013 | S12: 2014 | T12: 2015 | U12: 2016 | V12: 2017 | W12: 2018 | X12: 2019 | Y12: 2020 | Z12: 2021 | AA12: 2022 | AB12: 2023 | AC12: 2024 | AD12: 2025 | AE12: 2026 | AF12: 2027 | AG12: 2028 | AH12: 2029 | AK12: Vendor Price | AM12: Supplier | AN12: Vendor Price | AS12: % Increase
M13: =IFERROR(YEAR(J13),"") -> 1900 | N13: =IFERROR(I13/H13,"") ->  | O13: =IF($M13=O$12,$N13,0) -> 0 | P13: =IF($M13=P$12,$N13,0)+O13*P$11+O13 -> 0 | Q13: 0 | R13: 0 | S13: 0 | T13: 0 | U13: 0 | V13: 0 | W13: 0 | X13: 0 | Y13: 0 | Z13: 0 | AA13: 0 | AB13: 0 | AC13: 0 | AD13: 0 | AE13: 0 | AF13: 0 | AG13: 0 | AH13: 0 | AI13: =Z13-Y13 -> 0 | AJ13: =IFERROR(AI13/Y13,"") ->  | AL13: =IFERROR(AK13-Z13,"")/Z13 ->  | AM13: =IFERROR(VLOOKUP(F13,[1]Vendor!B:I,8,0),"") ->  | AO13: =IFERROR(AN13-AK13,"")/AK13 ->  | AR13: 130 | AS13: =(AR13-Z13)/AR13 -> 100%
M14: 1900 | O14: 0 | P14: 0 | Q14: 0 | R14: 0 | S14: 0 | T14: 0 | U14: 0 | V14: 0 | W14: 0 | X14: 0 | Y14: 0 | Z14: 0 | AA14: 0 | AB14: 0 | AC14: 0 | AD14: 0 | AE14: 0 | AF14: 0 | AG14: 0 | AH14: 0 | AI14: 0 | AM14: =IFERROR(VLOOKUP(F14,[1]Vendor!B:I,8,0),"") ->  | AR14: 780 | AS14: =(AR14-Z14)/AR14 -> 100%
M15: 1900 | O15: 0 | P15: 0 | Q15: 0 | R15: 0 | S15: 0 | T15: 0 | U15: 0 | V15: 0 | W15: 0 | X15: 0 | Y15: 0 | Z15: 0 | AA15: 0 | AB15: 0 | AC15: 0 | AD15: 0 | AE15: 0 | AF15: 0 | AG15: 0 | AH15: 0 | AI15: 0 | AM15: =IFERROR(VLOOKUP(F15,[1]Vendor!B:I,8,0),"") -> 
M16: 1900 | O16: 0 | P16: 0 | Q16: 0 | R16: 0 | S16: 0 | T16: 0 | U16: 0 | V16: 0 | W16: 0 | X16: 0 | Y16: 0 | Z16: 0 | AA16: 0 | AB16: 0 | AC16: 0 | AD16: 0 | AE16: 0 | AF16: 0 | AG16: 0 | AH16: 0 | AI16: 0 | AM16: =IFERROR(VLOOKUP(F16,[1]Vendor!B:I,8,0),"") ->  | AQ16: Can give a bettere price | AR16: 940 | AS16: =(AR16-Z16)/AR16 -> 100%
M17: 1900 | O17: 0 | P17: 0 | Q17: 0 | R17: 0 | S17: 0 | T17: 0 | U17: 0 | V17: 0 | W17: 0 | X17: 0 | Y17: 0 | Z17: 0 | AA17: 0 | AB17: 0 | AC17: 0 | AD17: 0 | AE17: 0 | AF17: 0 | AG17: 0 | AH17: 0 | AI17: 0 | AJ17: =IFERROR(AI17/Y17,"") ->  | AL17: =IFERROR(AK17-Z17,"")/Z17 ->  | AM17: =IFERROR(VLOOKUP(F17,[1]Vendor!B:I,8,0),"") ->  | AO17: =IFERROR(AN17-AK17,"")/AK17 -> 
M18: 1900 | O18: 0 | P18: 0 | Q18: 0 | R18: 0 | S18: 0 | T18: 0 | U18: 0 | V18: 0 | W18: 0 | X18: 0 | Y18: 0 | Z18: 0 | AA18: 0 | AB18: 0 | AC18: 0 | AD18: 0 | AE18: 0 | AF18: 0 | AG18: 0 | AH18: 0 | AI18: 0 | AJ18: =IFERROR(AI18/Y18,"") ->  | AL18: =IFERROR(AK18-Z18,"")/Z18 ->  | AM18: =IFERROR(VLOOKUP(F18,[1]Vendor!B:I,8,0),"") ->  | AO18: =IFERROR(AN18-AK18,"")/AK18 -> 
M19: 1900 | O19: 0 | P19: 0 | Q19: 0 | R19: 0 | S19: 0 | T19: 0 | U19: 0 | V19: 0 | W19: 0 | X19: 0 | Y19: 0 | Z19: 0 | AA19: 0 | AB19: 0 | AC19: 0 | AD19: 0 | AE19: 0 | AF19: 0 | AG19: 0 | AH19: 0 | AI19: 0 | AJ19: =IFERROR(AI19/Y19,"") ->  | AL19: =IFERROR(AK19/AA19,"") ->  | AM19: =IFERROR(VLOOKUP(F19,[1]Vendor!B:I,8,0),"") ->  | AO19: =IFERROR(AN19-AK19,"")/AK19 -> 
M20: 1900 | O20: 0 | P20: 0 | Q20: 0 | R20: 0 | S20: 0 | T20: 0 | U20: 0 | V20: 0 | W20: 0 | X20: 0 | Y20: 0 | Z20: 0 | AA20: 0 | AB20: 0 | AC20: 0 | AD20: 0 | AE20: 0 | AF20: 0 | AG20: 0 | AH20: 0 | AI20: 0 | AM20: =IFERROR(VLOOKUP(F20,[1]Vendor!B:I,8,0),"") -> 
M21: 1900 | O21: 0 | P21: 0 | Q21: 0 | R21: 0 | S21: 0 | T21: 0 | U21: 0 | V21: 0 | W21: 0 | X21: 0 | Y21: 0 | Z21: 0 | AA21: 0 | AB21: 0 | AC21: 0 | AD21: 0 | AE21: 0 | AF21: 0 | AG21: 0 | AH21: 0 | AI21: 0 | AM21: =IFERROR(VLOOKUP(F21,[1]Vendor!B:I,8,0),"") -> 
M22: 1900 | O22: 0 | P22: 0 | Q22: 0 | R22: 0 | S22: 0 | T22: 0 | U22: 0 | V22: 0 | W22: 0 | X22: 0 | Y22: =IF($M22=Y$12,$N22,0)+X22*Y$11+X22 -> 0 | Z22: 0 | AA22: 0 | AB22: 0 | AC22: 0 | AD22: 0 | AE22: 0 | AF22: 0 | AG22: 0 | AH22: 0 | AI22: 0 | AM22: =IFERROR(VLOOKUP(F22,[1]Vendor!B:I,8,0),"") -> 
M23: 1900 | O23: 0 | P23: =IF($M23=P$12,$N23,0)+O23*P$11+O23 -> 0 | Q23: 0 | R23: 0 | S23: 0 | T23: 0 | U23: 0 | V23: 0 | W23: 0 | X23: 0 | Y23: 0 | Z23: 0 | AA23: 0 | AB23: 0 | AC23: 0 | AD23: 0 | AE23: 0 | AF23: 0 | AG23: 0 | AH23: 0 | AI23: 0 | AM23: =IFERROR(VLOOKUP(F23,[1]Vendor!B:I,8,0),"") -> 
M24: 1900 | O24: 0 | P24: 0 | Q24: 0 | R24: 0 | S24: 0 | T24: 0 | U24: 0 | V24: 0 | W24: 0 | X24: 0 | Y24: 0 | Z24: 0 | AA24: 0 | AB24: 0 | AC24: 0 | AD24: 0 | AE24: 0 | AF24: 0 | AG24: 0 | AH24: 0 | AI24: 0 | AM24: =IFERROR(VLOOKUP(F24,[1]Vendor!B:I,8,0),"") -> 
M25: 1900 | O25: 0 | P25: 0 | Q25: 0 | R25: 0 | S25: 0 | T25: 0 | U25: 0 | V25: 0 | W25: 0 | X25: 0 | Y25: 0 | Z25: 0 | AA25: 0 | AB25: 0 | AC25: 0 | AD25: 0 | AE25: 0 | AF25: 0 | AG25: 0 | AH25: 0 | AI25: 0 | AM25: =IFERROR(VLOOKUP(F25,[1]Vendor!B:I,8,0),"") -> 
M26: 1900 | O26: 0 | P26: 0 | Q26: 0 | R26: 0 | S26: 0 | T26: 0 | U26: 0 | V26: 0 | W26: 0 | X26: 0 | Y26: 0 | Z26: 0 | AA26: 0 | AB26: 0 | AC26: 0 | AD26: 0 | AE26: 0 | AF26: 0 | AG26: 0 | AH26: 0 | AI26: 0 | AM26: =IFERROR(VLOOKUP(F26,[1]Vendor!B:I,8,0),"") -> 
M27: 1900 | O27: 0 | P27: 0 | Q27: 0 | R27: 0 | S27: 0 | T27: 0 | U27: 0 | V27: 0 | W27: 0 | X27: 0 | Y27: 0 | Z27: 0 | AA27: 0 | AB27: 0 | AC27: 0 | AD27: 0 | AE27: 0 | AF27: 0 | AG27: 0 | AH27: 0 | AI27: 0 | AM27: =IFERROR(VLOOKUP(F27,[1]Vendor!B:I,8,0),"") -> 
M28: 1900 | O28: 0 | P28: 0 | Q28: 0 | R28: 0 | S28: 0 | T28: 0 | U28: 0 | V28: 0 | W28: 0 | X28: 0 | Y28: 0 | Z28: 0 | AA28: 0 | AB28: 0 | AC28: 0 | AD28: 0 | AE28: 0 | AF28: 0 | AG28: 0 | AH28: 0 | AI28: 0 | AM28: =IFERROR(VLOOKUP(F28,[1]Vendor!B:I,8,0),"") -> 
M29: 1900 | O29: 0 | P29: 0 | Q29: 0 | R29: 0 | S29: 0 | T29: 0 | U29: 0 | V29: 0 | W29: 0 | X29: 0 | Y29: 0 | Z29: 0 | AA29: 0 | AB29: 0 | AC29: 0 | AD29: 0 | AE29: 0 | AF29: 0 | AG29: 0 | AH29: 0 | AI29: 0 | AM29: =IFERROR(VLOOKUP(F29,[1]Vendor!B:I,8,0),"") -> 
M30: 1900 | O30: 0 | P30: 0 | Q30: 0 | R30: 0 | S30: 0 | T30: 0 | U30: 0 | V30: 0 | W30: 0 | X30: 0 | Y30: 0 | Z30: 0 | AA30: 0 | AB30: 0 | AC30: 0 | AD30: 0 | AE30: 0 | AF30: 0 | AG30: 0 | AH30: 0 | AI30: 0 | AM30: =IFERROR(VLOOKUP(F30,[1]Vendor!B:I,8,0),"") -> 
M31: 1900 | O31: 0 | P31: 0 | Q31: 0 | R31: 0 | S31: 0 | T31: 0 | U31: 0 | V31: 0 | W31: 0 | X31: 0 | Y31: 0 | Z31: 0 | AA31: 0 | AB31: 0 | AC31: 0 | AD31: 0 | AE31: 0 | AF31: 0 | AG31: 0 | AH31: 0 | AI31: 0 | AM31: =IFERROR(VLOOKUP(F31,[1]Vendor!B:I,8,0),"") -> 
M32: 1900 | O32: 0 | P32: 0 | Q32: 0 | R32: 0 | S32: 0 | T32: 0 | U32: 0 | V32: 0 | W32: 0 | X32: 0 | Y32: 0 | Z32: 0 | AA32: 0 | AB32: 0 | AC32: 0 | AD32: 0 | AE32: 0 | AF32: 0 | AG32: 0 | AH32: 0 | AI32: 0 | AM32: =IFERROR(VLOOKUP(F32,[1]Vendor!B:I,8,0),"") -> 
M33: 1900 | O33: 0 | P33: 0 | Q33: 0 | R33: 0 | S33: 0 | T33: 0 | U33: 0 | V33: 0 | W33: 0 | X33: 0 | Y33: 0 | Z33: 0 | AA33: 0 | AB33: 0 | AC33: 0 | AD33: 0 | AE33: 0 | AF33: 0 | AG33: 0 | AH33: 0 | AI33: 0 | AM33: =IFERROR(VLOOKUP(F33,[1]Vendor!B:I,8,0),"") -> 
M34: 1900 | O34: 0 | P34: 0 | Q34: 0 | R34: 0 | S34: 0 | T34: 0 | U34: 0 | V34: 0 | W34: 0 | X34: 0 | Y34: 0 | Z34: 0 | AA34: 0 | AB34: 0 | AC34: 0 | AD34: 0 | AE34: 0 | AF34: 0 | AG34: 0 | AH34: 0 | AI34: 0 | AM34: =IFERROR(VLOOKUP(F34,[1]Vendor!B:I,8,0),"") -> 
M35: 1900 | O35: 0 | P35: =IF($M35=P$12,$N35,0)+O35*P$11+O35 -> 0 | Q35: 0 | R35: 0 | S35: 0 | T35: 0 | U35: 0 | V35: 0 | W35: 0 | X35: 0 | Y35: 0 | Z35: 0 | AA35: 0 | AB35: 0 | AC35: 0 | AD35: 0 | AE35: 0 | AF35: =IF($M35=AF$12,$N35,0)+AE35*AF$11+AE35 -> 0 | AG35: 0 | AH35: 0 | AI35: 0 | AM35: =IFERROR(VLOOKUP(F35,[1]Vendor!B:I,8,0),"") -> 
M36: 1900 | O36: 0 | P36: 0 | Q36: 0 | R36: 0 | S36: 0 | T36: 0 | U36: 0 | V36: 0 | W36: 0 | X36: 0 | Y36: 0 | Z36: 0 | AA36: 0 | AB36: 0 | AC36: 0 | AD36: 0 | AE36: 0 | AF36: 0 | AG36: 0 | AH36: 0 | AI36: 0 | AM36: =IFERROR(VLOOKUP(F36,[1]Vendor!B:I,8,0),"") -> 
M37: 1900 | O37: 0 | P37: 0 | Q37: 0 | R37: 0 | S37: 0 | T37: 0 | U37: 0 | V37: 0 | W37: 0 | X37: 0 | Y37: 0 | Z37: 0 | AA37: 0 | AB37: 0 | AC37: 0 | AD37: 0 | AE37: 0 | AF37: 0 | AG37: 0 | AH37: 0 | AI37: 0 | AM37: =IFERROR(VLOOKUP(F37,[1]Vendor!B:I,8,0),"") -> 
M38: 1900 | O38: 0 | P38: 0 | Q38: 0 | R38: 0 | S38: 0 | T38: 0 | U38: 0 | V38: 0 | W38: 0 | X38: 0 | Y38: 0 | Z38: 0 | AA38: 0 | AB38: 0 | AC38: 0 | AD38: 0 | AE38: 0 | AF38: 0 | AG38: 0 | AH38: 0 | AI38: 0 | AM38: =IFERROR(VLOOKUP(F38,[1]Vendor!B:I,8,0),"") -> 
M39: 1900 | O39: 0 | P39: 0 | Q39: 0 | R39: 0 | S39: 0 | T39: 0 | U39: 0 | V39: 0 | W39: 0 | X39: 0 | Y39: 0 | Z39: 0 | AA39: 0 | AB39: 0 | AC39: 0 | AD39: 0 | AE39: 0 | AF39: 0 | AG39: 0 | AH39: 0 | AI39: 0 | AM39: =IFERROR(VLOOKUP(F39,[1]Vendor!B:I,8,0),"") -> 
M40: 1900 | O40: 0 | P40: 0 | Q40: 0 | R40: 0 | S40: 0 | T40: 0 | U40: 0 | V40: 0 | W40: 0 | X40: 0 | Y40: 0 | Z40: 0 | AA40: 0 | AB40: 0 | AC40: 0 | AD40: 0 | AE40: 0 | AF40: 0 | AG40: 0 | AH40: 0 | AI40: 0 | AM40: =IFERROR(VLOOKUP(F40,[1]Vendor!B:I,8,0),"") -> 
M41: 1900 | O41: 0 | P41: 0 | Q41: 0 | R41: 0 | S41: 0 | T41: 0 | U41: 0 | V41: 0 | W41: 0 | X41: 0 | Y41: 0 | Z41: 0 | AA41: 0 | AB41: 0 | AC41: 0 | AD41: 0 | AE41: 0 | AF41: 0 | AG41: 0 | AH41: 0 | AI41: 0 | AM41: =IFERROR(VLOOKUP(F41,[1]Vendor!B:I,8,0),"") -> 
M42: 1900 | O42: 0 | P42: 0 | Q42: 0 | R42: 0 | S42: 0 | T42: 0 | U42: 0 | V42: 0 | W42: 0 | X42: 0 | Y42: 0 | Z42: 0 | AA42: 0 | AB42: 0 | AC42: 0 | AD42: 0 | AE42: 0 | AF42: 0 | AG42: 0 | AH42: 0 | AI42: 0 | AM42: =IFERROR(VLOOKUP(F42,[1]Vendor!B:I,8,0),"") -> 
M43: 1900 | O43: 0 | P43: 0 | Q43: 0 | R43: 0 | S43: 0 | T43: 0 | U43: 0 | V43: 0 | W43: 0 | X43: 0 | Y43: 0 | Z43: 0 | AA43: 0 | AB43: 0 | AC43: 0 | AD43: 0 | AE43: 0 | AF43: 0 | AG43: 0 | AH43: 0 | AI43: 0 | AM43: =IFERROR(VLOOKUP(F43,[1]Vendor!B:I,8,0),"") -> 
M44: 1900 | O44: 0 | P44: 0 | Q44: 0 | R44: 0 | S44: 0 | T44: 0 | U44: 0 | V44: 0 | W44: 0 | X44: 0 | Y44: 0 | Z44: 0 | AA44: 0 | AB44: 0 | AC44: 0 | AD44: 0 | AE44: 0 | AF44: 0 | AG44: 0 | AH44: 0 | AI44: 0 | AM44: =IFERROR(VLOOKUP(F44,[1]Vendor!B:I,8,0),"") -> 
M45: 1900 | O45: 0 | P45: 0 | Q45: 0 | R45: 0 | S45: 0 | T45: 0 | U45: 0 | V45: 0 | W45: 0 | X45: 0 | Y45: 0 | Z45: 0 | AA45: 0 | AB45: 0 | AC45: 0 | AD45: 0 | AE45: 0 | AF45: 0 | AG45: 0 | AH45: 0 | AI45: 0 | AM45: =IFERROR(VLOOKUP(F45,[1]Vendor!B:I,8,0),"") -> 
M46: 1900 | O46: 0 | P46: 0 | Q46: 0 | R46: 0 | S46: 0 | T46: 0 | U46: 0 | V46: 0 | W46: 0 | X46: 0 | Y46: 0 | Z46: 0 | AA46: 0 | AB46: 0 | AC46: 0 | AD46: 0 | AE46: 0 | AF46: 0 | AG46: 0 | AH46: 0 | AI46: 0 | AM46: =IFERROR(VLOOKUP(F46,[1]Vendor!B:I,8,0),"") -> 
M47: 1900 | O47: 0 | P47: 0 | Q47: 0 | R47: 0 | S47: 0 | T47: 0 | U47: 0 | V47: 0 | W47: 0 | X47: 0 | Y47: 0 | Z47: 0 | AA47: 0 | AB47: 0 | AC47: 0 | AD47: 0 | AE47: 0 | AF47: 0 | AG47: 0 | AH47: 0 | AI47: 0 | AM47: =IFERROR(VLOOKUP(F47,[1]Vendor!B:I,8,0),"") -> 
M48: 1900 | O48: 0 | P48: 0 | Q48: 0 | R48: 0 | S48: 0 | T48: 0 | U48: 0 | V48: 0 | W48: 0 | X48: 0 | Y48: 0 | Z48: 0 | AA48: 0 | AB48: 0 | AC48: 0 | AD48: 0 | AE48: 0 | AF48: 0 | AG48: 0 | AH48: 0 | AI48: 0 | AM48: =IFERROR(VLOOKUP(F48,[1]Vendor!B:I,8,0),"") -> 
M49: 1900 | O49: 0 | P49: 0 | Q49: 0 | R49: 0 | S49: 0 | T49: 0 | U49: 0 | V49: 0 | W49: 0 | X49: 0 | Y49: 0 | Z49: 0 | AA49: 0 | AB49: 0 | AC49: 0 | AD49: 0 | AE49: 0 | AF49: 0 | AG49: 0 | AH49: 0 | AI49: 0 | AM49: =IFERROR(VLOOKUP(F49,[1]Vendor!B:I,8,0),"") -> 
M50: 1900 | O50: 0 | P50: 0 | Q50: 0 | R50: 0 | S50: 0 | T50: 0 | U50: 0 | V50: 0 | W50: 0 | X50: 0 | Y50: 0 | Z50: 0 | AA50: 0 | AB50: 0 | AC50: 0 | AD50: 0 | AE50: =IF($M50=AE$12,$N50,0)+AD50*AE$11+AD50 -> 0 | AF50: 0 | AG50: 0 | AH50: 0 | AI50: 0 | AM50: =IFERROR(VLOOKUP(F50,[1]Vendor!B:I,8,0),"") -> 
M51: 1900 | O51: 0 | P51: =IF($M51=P$12,$N51,0)+O51*P$11+O51 -> 0 | Q51: 0 | R51: 0 | S51: 0 | T51: 0 | U51: 0 | V51: 0 | W51: 0 | X51: 0 | Y51: 0 | Z51: 0 | AA51: 0 | AB51: 0 | AC51: 0 | AD51: 0 | AE51: 0 | AF51: 0 | AG51: 0 | AH51: 0 | AI51: 0 | AM51: =IFERROR(VLOOKUP(F51,[1]Vendor!B:I,8,0),"") -> 
M52: 1900 | O52: 0 | P52: 0 | Q52: 0 | R52: 0 | S52: 0 | T52: 0 | U52: 0 | V52: 0 | W52: 0 | X52: 0 | Y52: 0 | Z52: 0 | AA52: 0 | AB52: 0 | AC52: 0 | AD52: 0 | AE52: 0 | AF52: 0 | AG52: 0 | AH52: 0 | AI52: 0 | AM52: =IFERROR(VLOOKUP(F52,[1]Vendor!B:I,8,0),"") -> 
M53: 1900 | O53: 0 | P53: 0 | Q53: 0 | R53: 0 | S53: 0 | T53: 0 | U53: 0 | V53: 0 | W53: 0 | X53: 0 | Y53: 0 | Z53: 0 | AA53: 0 | AB53: 0 | AC53: 0 | AD53: 0 | AE53: 0 | AF53: 0 | AG53: 0 | AH53: 0 | AI53: 0 | AM53: =IFERROR(VLOOKUP(F53,[1]Vendor!B:I,8,0),"") -> 
M54: 1900 | O54: 0 | P54: 0 | Q54: 0 | R54: 0 | S54: 0 | T54: 0 | U54: 0 | V54: 0 | W54: 0 | X54: 0 | Y54: 0 | Z54: 0 | AA54: 0 | AB54: 0 | AC54: 0 | AD54: 0 | AE54: 0 | AF54: 0 | AG54: 0 | AH54: 0 | AI54: 0 | AM54: =IFERROR(VLOOKUP(F54,[1]Vendor!B:I,8,0),"") -> 
M55: 1900 | O55: 0 | P55: 0 | Q55: 0 | R55: 0 | S55: 0 | T55: 0 | U55: 0 | V55: 0 | W55: 0 | X55: 0 | Y55: 0 | Z55: 0 | AA55: 0 | AB55: 0 | AC55: 0 | AD55: 0 | AE55: 0 | AF55: 0 | AG55: 0 | AH55: 0 | AI55: 0 | AM55: =IFERROR(VLOOKUP(F55,[1]Vendor!B:I,8,0),"") -> 
M56: 1900 | O56: 0 | P56: 0 | Q56: 0 | R56: 0 | S56: 0 | T56: 0 | U56: 0 | V56: 0 | W56: 0 | X56: 0 | Y56: 0 | Z56: 0 | AA56: 0 | AB56: 0 | AC56: 0 | AD56: 0 | AE56: 0 | AF56: 0 | AG56: 0 | AH56: 0 | AI56: 0 | AM56: =IFERROR(VLOOKUP(F56,[1]Vendor!B:I,8,0),"") -> 
M57: 1900 | O57: 0 | P57: 0 | Q57: 0 | R57: 0 | S57: 0 | T57: 0 | U57: 0 | V57: 0 | W57: 0 | X57: 0 | Y57: 0 | Z57: 0 | AA57: 0 | AB57: 0 | AC57: 0 | AD57: 0 | AE57: 0 | AF57: 0 | AG57: 0 | AH57: 0 | AI57: 0 | AM57: =IFERROR(VLOOKUP(F57,[1]Vendor!B:I,8,0),"") -> 
M58: 1900 | O58: 0 | P58: 0 | Q58: 0 | R58: 0 | S58: 0 | T58: 0 | U58: 0 | V58: 0 | W58: 0 | X58: 0 | Y58: 0 | Z58: 0 | AA58: 0 | AB58: 0 | AC58: 0 | AD58: 0 | AE58: 0 | AF58: 0 | AG58: 0 | AH58: 0 | AI58: 0 | AM58: =IFERROR(VLOOKUP(F58,[1]Vendor!B:I,8,0),"") -> 
M59: 1900 | O59: 0 | P59: 0 | Q59: 0 | R59: 0 | S59: 0 | T59: 0 | U59: 0 | V59: 0 | W59: 0 | X59: 0 | Y59: 0 | Z59: 0 | AA59: 0 | AB59: 0 | AC59: 0 | AD59: 0 | AE59: 0 | AF59: 0 | AG59: 0 | AH59: 0 | AI59: 0 | AM59: =IFERROR(VLOOKUP(F59,[1]Vendor!B:I,8,0),"") -> 
M60: 1900 | O60: 0 | P60: 0 | Q60: 0 | R60: 0 | S60: 0 | T60: 0 | U60: 0 | V60: 0 | W60: 0 | X60: 0 | Y60: 0 | Z60: 0 | AA60: 0 | AB60: 0 | AC60: 0 | AD60: 0 | AE60: 0 | AF60: 0 | AG60: 0 | AH60: 0 | AI60: 0 | AM60: =IFERROR(VLOOKUP(F60,[1]Vendor!B:I,8,0),"") -> 
M61: 1900 | O61: 0 | P61: 0 | Q61: 0 | R61: 0 | S61: 0 | T61: 0 | U61: 0 | V61: 0 | W61: 0 | X61: 0 | Y61: 0 | Z61: 0 | AA61: 0 | AB61: 0 | AC61: 0 | AD61: 0 | AE61: 0 | AF61: 0 | AG61: 0 | AH61: 0 | AI61: 0 | AM61: =IFERROR(VLOOKUP(F61,[1]Vendor!B:I,8,0),"") -> 
M62: 1900 | O62: 0 | P62: 0 | Q62: 0 | R62: 0 | S62: 0 | T62: 0 | U62: 0 | V62: 0 | W62: 0 | X62: 0 | Y62: 0 | Z62: 0 | AA62: 0 | AB62: 0 | AC62: 0 | AD62: 0 | AE62: 0 | AF62: 0 | AG62: 0 | AH62: 0 | AI62: 0 | AM62: =IFERROR(VLOOKUP(F62,[1]Vendor!B:I,8,0),"") -> 
M63: 1900 | O63: 0 | P63: 0 | Q63: 0 | R63: 0 | S63: 0 | T63: 0 | U63: 0 | V63: 0 | W63: 0 | X63: 0 | Y63: 0 | Z63: 0 | AA63: 0 | AB63: 0 | AC63: 0 | AD63: 0 | AE63: 0 | AF63: 0 | AG63: 0 | AH63: 0 | AI63: 0 | AM63: =IFERROR(VLOOKUP(F63,[1]Vendor!B:I,8,0),"") -> 
M64: 1900 | O64: 0 | P64: 0 | Q64: 0 | R64: 0 | S64: 0 | T64: 0 | U64: 0 | V64: 0 | W64: 0 | X64: 0 | Y64: 0 | Z64: 0 | AA64: 0 | AB64: 0 | AC64: 0 | AD64: 0 | AE64: 0 | AF64: 0 | AG64: 0 | AH64: 0 | AI64: 0 | AM64: =IFERROR(VLOOKUP(F64,[1]Vendor!B:I,8,0),"") -> 
M65: 1900 | O65: 0 | P65: 0 | Q65: 0 | R65: 0 | S65: 0 | T65: 0 | U65: 0 | V65: 0 | W65: 0 | X65: 0 | Y65: 0 | Z65: 0 | AA65: 0 | AB65: 0 | AC65: 0 | AD65: 0 | AE65: 0 | AF65: 0 | AG65: 0 | AH65: 0 | AI65: 0 | AM65: =IFERROR(VLOOKUP(F65,[1]Vendor!B:I,8,0),"") -> 
M66: 1900 | O66: 0 | P66: 0 | Q66: 0 | R66: 0 | S66: 0 | T66: 0 | U66: 0 | V66: 0 | W66: 0 | X66: 0 | Y66: 0 | Z66: 0 | AA66: 0 | AB66: 0 | AC66: 0 | AD66: 0 | AE66: 0 | AF66: 0 | AG66: 0 | AH66: 0 | AI66: 0 | AM66: =IFERROR(VLOOKUP(F66,[1]Vendor!B:I,8,0),"") -> 
M67: 1900 | O67: 0 | P67: 0 | Q67: 0 | R67: 0 | S67: 0 | T67: 0 | U67: 0 | V67: 0 | W67: 0 | X67: 0 | Y67: 0 | Z67: 0 | AA67: 0 | AB67: 0 | AC67: 0 | AD67: 0 | AE67: 0 | AF67: 0 | AG67: 0 | AH67: 0 | AI67: 0 | AM67: =IFERROR(VLOOKUP(F67,[1]Vendor!B:I,8,0),"") -> 
M68: 1900 | O68: 0 | P68: =IF($M68=P$12,$N68,0)+O68*P$11+O68 -> 0 | Q68: 0 | R68: 0 | S68: 0 | T68: 0 | U68: 0 | V68: 0 | W68: 0 | X68: 0 | Y68: 0 | Z68: 0 | AA68: 0 | AB68: 0 | AC68: 0 | AD68: 0 | AE68: 0 | AF68: 0 | AG68: 0 | AH68: 0 | AI68: 0 | AM68: =IFERROR(VLOOKUP(F68,[1]Vendor!B:I,8,0),"") -> 
M69: =IFERROR(YEAR(J69),"") -> 1900 | O69: =IF($M69=O$12,$N69,0) -> 0 | P69: 0 | Q69: 0 | R69: 0 | S69: 0 | T69: 0 | U69: 0 | V69: 0 | W69: 0 | X69: 0 | Y69: 0 | Z69: 0 | AA69: 0 | AB69: 0 | AC69: 0 | AD69: 0 | AE69: 0 | AF69: 0 | AG69: 0 | AH69: 0 | AI69: =Z69-Y69 -> 0 | AM69: =IFERROR(VLOOKUP(F69,[1]Vendor!B:I,8,0),"") -> 
M70: 1900 | N70: =IFERROR(I70/H70,"") ->  | O70: 0 | P70: 0 | Q70: 0 | R70: 0 | S70: 0 | T70: 0 | U70: 0 | V70: 0 | W70: 0 | X70: 0 | Y70: 0 | Z70: 0 | AA70: 0 | AB70: 0 | AC70: 0 | AD70: 0 | AE70: 0 | AF70: 0 | AG70: 0 | AH70: 0 | AI70: 0 | AM70: =IFERROR(VLOOKUP(F70,[1]Vendor!B:I,8,0),"") -> 
M71: 1900 | O71: 0 | P71: 0 | Q71: 0 | R71: 0 | S71: 0 | T71: 0 | U71: 0 | V71: 0 | W71: 0 | X71: 0 | Y71: 0 | Z71: 0 | AA71: 0 | AB71: 0 | AC71: 0 | AD71: 0 | AE71: 0 | AF71: 0 | AG71: 0 | AH71: 0 | AI71: 0 | AM71: =IFERROR(VLOOKUP(F71,[1]Vendor!B:I,8,0),"") -> 
M72: 1900 | O72: 0 | P72: 0 | Q72: 0 | R72: 0 | S72: 0 | T72: 0 | U72: 0 | V72: 0 | W72: 0 | X72: 0 | Y72: 0 | Z72: 0 | AA72: 0 | AB72: 0 | AC72: 0 | AD72: 0 | AE72: 0 | AF72: 0 | AG72: 0 | AH72: 0 | AI72: 0 | AM72: =IFERROR(VLOOKUP(F72,[1]Vendor!B:I,8,0),"") -> 
M73: 1900 | O73: 0 | P73: 0 | Q73: 0 | R73: 0 | S73: 0 | T73: 0 | U73: 0 | V73: 0 | W73: 0 | X73: 0 | Y73: 0 | Z73: 0 | AA73: 0 | AB73: 0 | AC73: 0 | AD73: 0 | AE73: 0 | AF73: 0 | AG73: 0 | AH73: 0 | AI73: 0 | AM73: =IFERROR(VLOOKUP(F73,[1]Vendor!B:I,8,0),"") -> 
M74: 1900 | O74: 0 | P74: 0 | Q74: 0 | R74: 0 | S74: 0 | T74: 0 | U74: 0 | V74: 0 | W74: 0 | X74: 0 | Y74: 0 | Z74: 0 | AA74: 0 | AB74: 0 | AC74: 0 | AD74: 0 | AE74: 0 | AF74: 0 | AG74: 0 | AH74: 0 | AI74: 0 | AM74: =IFERROR(VLOOKUP(F74,[1]Vendor!B:I,8,0),"") -> 
M75: 1900 | O75: 0 | P75: 0 | Q75: 0 | R75: 0 | S75: 0 | T75: 0 | U75: 0 | V75: 0 | W75: 0 | X75: 0 | Y75: 0 | Z75: 0 | AA75: 0 | AB75: 0 | AC75: 0 | AD75: 0 | AE75: 0 | AF75: 0 | AG75: 0 | AH75: 0 | AI75: 0 | AM75: =IFERROR(VLOOKUP(F75,[1]Vendor!B:I,8,0),"") -> 
M76: 1900 | O76: 0 | P76: 0 | Q76: 0 | R76: 0 | S76: 0 | T76: 0 | U76: 0 | V76: 0 | W76: 0 | X76: 0 | Y76: 0 | Z76: 0 | AA76: 0 | AB76: 0 | AC76: 0 | AD76: 0 | AE76: 0 | AF76: 0 | AG76: 0 | AH76: 0 | AI76: 0 | AM76: =IFERROR(VLOOKUP(F76,[1]Vendor!B:I,8,0),"") -> 
M77: 1900 | O77: 0 | P77: 0 | Q77: 0 | R77: 0 | S77: 0 | T77: 0 | U77: 0 | V77: 0 | W77: 0 | X77: 0 | Y77: 0 | Z77: 0 | AA77: 0 | AB77: 0 | AC77: 0 | AD77: 0 | AE77: 0 | AF77: 0 | AG77: 0 | AH77: 0 | AI77: 0 | AM77: =IFERROR(VLOOKUP(F77,[1]Vendor!B:I,8,0),"") -> 
M78: 1900 | O78: 0 | P78: 0 | Q78: 0 | R78: 0 | S78: 0 | T78: 0 | U78: 0 | V78: 0 | W78: 0 | X78: 0 | Y78: 0 | Z78: 0 | AA78: 0 | AB78: 0 | AC78: 0 | AD78: 0 | AE78: 0 | AF78: 0 | AG78: 0 | AH78: 0 | AI78: 0 | AM78: =IFERROR(VLOOKUP(F78,[1]Vendor!B:I,8,0),"") -> 
M79: 1900 | O79: 0 | P79: 0 | Q79: 0 | R79: 0 | S79: 0 | T79: 0 | U79: 0 | V79: 0 | W79: 0 | X79: 0 | Y79: 0 | Z79: 0 | AA79: 0 | AB79: 0 | AC79: 0 | AD79: 0 | AE79: 0 | AF79: 0 | AG79: 0 | AH79: 0 | AI79: 0 | AJ79: =IFERROR(AI79/Y79,"") ->  | AL79: =IFERROR(AK79/AA79,"") ->  | AM79: =IFERROR(VLOOKUP(F79,[1]Vendor!B:I,8,0),"") ->  | AO79: =IFERROR(AN79-AK79,"")/AK79 -> 
M80: 1900 | O80: 0 | P80: 0 | Q80: 0 | R80: 0 | S80: 0 | T80: 0 | U80: 0 | V80: 0 | W80: 0 | X80: 0 | Y80: 0 | Z80: 0 | AA80: 0 | AB80: 0 | AC80: 0 | AD80: 0 | AE80: 0 | AF80: 0 | AG80: 0 | AH80: 0 | AI80: 0 | AM80: =IFERROR(VLOOKUP(F80,[1]Vendor!B:I,8,0),"") -> 
M81: 1900 | O81: 0 | P81: 0 | Q81: 0 | R81: 0 | S81: 0 | T81: 0 | U81: 0 | V81: 0 | W81: 0 | X81: 0 | Y81: 0 | Z81: 0 | AA81: 0 | AB81: 0 | AC81: 0 | AD81: 0 | AE81: 0 | AF81: 0 | AG81: 0 | AH81: 0 | AI81: 0 | AM81: =IFERROR(VLOOKUP(F81,[1]Vendor!B:I,8,0),"") -> 
M82: 1900 | O82: 0 | P82: 0 | Q82: 0 | R82: 0 | S82: 0 | T82: 0 | U82: 0 | V82: 0 | W82: 0 | X82: 0 | Y82: 0 | Z82: 0 | AA82: 0 | AB82: 0 | AC82: 0 | AD82: 0 | AE82: 0 | AF82: 0 | AG82: 0 | AH82: 0 | AI82: 0 | AM82: =IFERROR(VLOOKUP(F82,[1]Vendor!B:I,8,0),"") -> 
M83: 1900 | O83: 0 | P83: 0 | Q83: 0 | R83: 0 | S83: 0 | T83: 0 | U83: 0 | V83: 0 | W83: 0 | X83: 0 | Y83: 0 | Z83: 0 | AA83: 0 | AB83: 0 | AC83: 0 | AD83: 0 | AE83: 0 | AF83: 0 | AG83: 0 | AH83: 0 | AI83: 0 | AM83: =IFERROR(VLOOKUP(F83,[1]Vendor!B:I,8,0),"") -> 
M84: 1900 | O84: 0 | P84: 0 | Q84: 0 | R84: 0 | S84: 0 | T84: 0 | U84: 0 | V84: 0 | W84: 0 | X84: 0 | Y84: 0 | Z84: 0 | AA84: 0 | AB84: 0 | AC84: 0 | AD84: 0 | AE84: 0 | AF84: 0 | AG84: 0 | AH84: 0 | AI84: 0 | AM84: =IFERROR(VLOOKUP(F84,[1]Vendor!B:I,8,0),"") -> 
M85: 1900 | O85: 0 | P85: =IF($M85=P$12,$N85,0)+O85*P$11+O85 -> 0 | Q85: 0 | R85: 0 | S85: 0 | T85: 0 | U85: 0 | V85: 0 | W85: 0 | X85: 0 | Y85: 0 | Z85: 0 | AA85: 0 | AB85: 0 | AC85: 0 | AD85: 0 | AE85: 0 | AF85: 0 | AG85: 0 | AH85: 0 | AI85: 0 | AM85: =IFERROR(VLOOKUP(F85,[1]Vendor!B:I,8,0),"") -> 
M86: 1900 | O86: 0 | P86: 0 | Q86: 0 | R86: 0 | S86: 0 | T86: 0 | U86: 0 | V86: 0 | W86: 0 | X86: 0 | Y86: 0 | Z86: 0 | AA86: 0 | AB86: 0 | AC86: 0 | AD86: 0 | AE86: 0 | AF86: 0 | AG86: 0 | AH86: 0 | AI86: 0 | AM86: =IFERROR(VLOOKUP(F86,[1]Vendor!B:I,8,0),"") -> 
M87: 1900 | O87: 0 | P87: 0 | Q87: 0 | R87: 0 | S87: 0 | T87: 0 | U87: 0 | V87: 0 | W87: 0 | X87: 0 | Y87: 0 | Z87: 0 | AA87: 0 | AB87: 0 | AC87: 0 | AD87: 0 | AE87: 0 | AF87: 0 | AG87: 0 | AH87: 0 | AI87: 0 | AM87: =IFERROR(VLOOKUP(F87,[1]Vendor!B:I,8,0),"") -> 
M88: 1900 | O88: 0 | P88: 0 | Q88: 0 | R88: 0 | S88: 0 | T88: 0 | U88: 0 | V88: 0 | W88: 0 | X88: 0 | Y88: 0 | Z88: 0 | AA88: 0 | AB88: 0 | AC88: 0 | AD88: 0 | AE88: 0 | AF88: 0 | AG88: 0 | AH88: 0 | AI88: 0 | AM88: =IFERROR(VLOOKUP(F88,[1]Vendor!B:I,8,0),"") -> 
M89: 1900 | O89: 0 | P89: 0 | Q89: 0 | R89: 0 | S89: 0 | T89: 0 | U89: 0 | V89: 0 | W89: 0 | X89: 0 | Y89: 0 | Z89: 0 | AA89: 0 | AB89: 0 | AC89: 0 | AD89: 0 | AE89: 0 | AF89: 0 | AG89: 0 | AH89: 0 | AI89: 0 | AM89: =IFERROR(VLOOKUP(F89,[1]Vendor!B:I,8,0),"") -> 
M90: 1900 | O90: 0 | P90: =IF($M90=P$12,$N90,0)+O90*P$11+O90 -> 0 | Q90: 0 | R90: 0 | S90: 0 | T90: 0 | U90: 0 | V90: 0 | W90: 0 | X90: 0 | Y90: 0 | Z90: 0 | AA90: 0 | AB90: 0 | AC90: 0 | AD90: 0 | AE90: 0 | AF90: 0 | AG90: 0 | AH90: 0 | AI90: 0 | AM90: =IFERROR(VLOOKUP(F90,[1]Vendor!B:I,8,0),"") -> 
M91: 1900 | O91: 0 | P91: 0 | Q91: 0 | R91: 0 | S91: 0 | T91: 0 | U91: 0 | V91: 0 | W91: 0 | X91: 0 | Y91: 0 | Z91: 0 | AA91: 0 | AB91: 0 | AC91: 0 | AD91: 0 | AE91: 0 | AF91: 0 | AG91: 0 | AH91: 0 | AI91: 0 | AM91: =IFERROR(VLOOKUP(F91,[1]Vendor!B:I,8,0),"") -> 
M92: 1900 | O92: 0 | P92: 0 | Q92: 0 | R92: 0 | S92: 0 | T92: 0 | U92: 0 | V92: 0 | W92: 0 | X92: 0 | Y92: 0 | Z92: 0 | AA92: 0 | AB92: 0 | AC92: 0 | AD92: 0 | AE92: 0 | AF92: 0 | AG92: 0 | AH92: 0 | AI92: 0 | AM92: =IFERROR(VLOOKUP(F92,[1]Vendor!B:I,8,0),"") -> 
M93: 1900 | O93: 0 | P93: 0 | Q93: 0 | R93: 0 | S93: 0 | T93: 0 | U93: 0 | V93: 0 | W93: 0 | X93: 0 | Y93: 0 | Z93: 0 | AA93: 0 | AB93: 0 | AC93: 0 | AD93: 0 | AE93: 0 | AF93: 0 | AG93: 0 | AH93: 0 | AI93: 0 | AM93: =IFERROR(VLOOKUP(F93,[1]Vendor!B:I,8,0),"") -> 
M94: 1900 | O94: 0 | P94: 0 | Q94: 0 | R94: 0 | S94: 0 | T94: 0 | U94: 0 | V94: 0 | W94: 0 | X94: 0 | Y94: 0 | Z94: 0 | AA94: 0 | AB94: 0 | AC94: 0 | AD94: 0 | AE94: 0 | AF94: 0 | AG94: 0 | AH94: 0 | AI94: 0 | AM94: =IFERROR(VLOOKUP(F94,[1]Vendor!B:I,8,0),"") -> 
M95: 1900 | O95: 0 | P95: 0 | Q95: 0 | R95: 0 | S95: 0 | T95: 0 | U95: 0 | V95: 0 | W95: 0 | X95: 0 | Y95: 0 | Z95: 0 | AA95: 0 | AB95: 0 | AC95: 0 | AD95: 0 | AE95: 0 | AF95: 0 | AG95: 0 | AH95: 0 | AI95: 0 | AM95: =IFERROR(VLOOKUP(F95,[1]Vendor!B:I,8,0),"") -> 
M96: 1900 | O96: 0 | P96: 0 | Q96: 0 | R96: 0 | S96: 0 | T96: 0 | U96: 0 | V96: 0 | W96: 0 | X96: 0 | Y96: 0 | Z96: 0 | AA96: 0 | AB96: 0 | AC96: 0 | AD96: 0 | AE96: 0 | AF96: 0 | AG96: 0 | AH96: 0 | AI96: 0 | AM96: =IFERROR(VLOOKUP(F96,[1]Vendor!B:I,8,0),"") -> 
M97: 1900 | O97: 0 | P97: 0 | Q97: 0 | R97: 0 | S97: 0 | T97: 0 | U97: 0 | V97: 0 | W97: 0 | X97: 0 | Y97: 0 | Z97: 0 | AA97: 0 | AB97: 0 | AC97: 0 | AD97: 0 | AE97: 0 | AF97: 0 | AG97: 0 | AH97: 0 | AI97: 0 | AM97: =IFERROR(VLOOKUP(F97,[1]Vendor!B:I,8,0),"") -> 
M98: 1900 | O98: 0 | P98: 0 | Q98: 0 | R98: 0 | S98: 0 | T98: 0 | U98: 0 | V98: 0 | W98: 0 | X98: 0 | Y98: 0 | Z98: 0 | AA98: 0 | AB98: 0 | AC98: 0 | AD98: 0 | AE98: 0 | AF98: 0 | AG98: 0 | AH98: 0 | AI98: 0 | AM98: =IFERROR(VLOOKUP(F98,[1]Vendor!B:I,8,0),"") -> 
M99: 1900 | O99: 0 | P99: 0 | Q99: 0 | R99: 0 | S99: 0 | T99: 0 | U99: 0 | V99: 0 | W99: 0 | X99: 0 | Y99: 0 | Z99: 0 | AA99: 0 | AB99: 0 | AC99: 0 | AD99: 0 | AE99: 0 | AF99: 0 | AG99: 0 | AH99: 0 | AI99: 0 | AM99: =IFERROR(VLOOKUP(F99,[1]Vendor!B:I,8,0),"") -> 
M100: 1900 | O100: 0 | P100: 0 | Q100: 0 | R100: 0 | S100: 0 | T100: 0 | U100: 0 | V100: 0 | W100: 0 | X100: 0 | Y100: 0 | Z100: 0 | AA100: 0 | AB100: 0 | AC100: 0 | AD100: 0 | AE100: 0 | AF100: 0 | AG100: 0 | AH100: 0 | AI100: 0 | AM100: =IFERROR(VLOOKUP(F100,[1]Vendor!B:I,8,0),"") -> 
M101: 1900 | O101: 0 | P101: 0 | Q101: 0 | R101: 0 | S101: 0 | T101: 0 | U101: 0 | V101: 0 | W101: 0 | X101: 0 | Y101: 0 | Z101: 0 | AA101: 0 | AB101: 0 | AC101: 0 | AD101: 0 | AE101: 0 | AF101: 0 | AG101: 0 | AH101: 0 | AI101: 0 | AM101: =IFERROR(VLOOKUP(F101,[1]Vendor!B:I,8,0),"") -> 
M102: 1900 | O102: 0 | P102: 0 | Q102: 0 | R102: 0 | S102: 0 | T102: 0 | U102: 0 | V102: 0 | W102: 0 | X102: 0 | Y102: 0 | Z102: 0 | AA102: 0 | AB102: 0 | AC102: 0 | AD102: 0 | AE102: 0 | AF102: =IF($M102=AF$12,$N102,0)+AE102*AF$11+AE102 -> 0 | AG102: 0 | AH102: 0 | AI102: 0 | AM102: =IFERROR(VLOOKUP(F102,[1]Vendor!B:I,8,0),"") -> 
M103: 1900 | O103: 0 | P103: 0 | Q103: 0 | R103: 0 | S103: 0 | T103: 0 | U103: 0 | V103: 0 | W103: 0 | X103: 0 | Y103: 0 | Z103: 0 | AA103: 0 | AB103: 0 | AC103: 0 | AD103: 0 | AE103: 0 | AF103: 0 | AG103: 0 | AH103: 0 | AI103: 0 | AM103: =IFERROR(VLOOKUP(F103,[1]Vendor!B:I,8,0),"") -> 
M104: 1900 | O104: 0 | P104: 0 | Q104: 0 | R104: 0 | S104: 0 | T104: 0 | U104: 0 | V104: 0 | W104: 0 | X104: 0 | Y104: 0 | Z104: 0 | AA104: 0 | AB104: 0 | AC104: 0 | AD104: 0 | AE104: 0 | AF104: 0 | AG104: 0 | AH104: 0 | AI104: 0 | AM104: =IFERROR(VLOOKUP(F104,[1]Vendor!B:I,8,0),"") -> 
M105: 1900 | O105: 0 | P105: 0 | Q105: 0 | R105: 0 | S105: 0 | T105: 0 | U105: 0 | V105: 0 | W105: 0 | X105: 0 | Y105: 0 | Z105: 0 | AA105: 0 | AB105: 0 | AC105: 0 | AD105: 0 | AE105: 0 | AF105: 0 | AG105: 0 | AH105: 0 | AI105: 0 | AM105: =IFERROR(VLOOKUP(F105,[1]Vendor!B:I,8,0),"") -> 
M106: 1900 | O106: 0 | P106: 0 | Q106: 0 | R106: 0 | S106: 0 | T106: 0 | U106: 0 | V106: 0 | W106: 0 | X106: 0 | Y106: 0 | Z106: 0 | AA106: =IF($M106=AA$12,$N106,0)+Z106*AA$11+Z106 -> 0 | AB106: 0 | AC106: 0 | AD106: 0 | AE106: 0 | AF106: 0 | AG106: 0 | AH106: 0 | AI106: 0 | AM106: =IFERROR(VLOOKUP(F106,[1]Vendor!B:I,8,0),"") -> 
M107: 1900 | O107: 0 | P107: =IF($M107=P$12,$N107,0)+O107*P$11+O107 -> 0 | Q107: 0 | R107: 0 | S107: 0 | T107: 0 | U107: 0 | V107: 0 | W107: 0 | X107: 0 | Y107: 0 | Z107: 0 | AA107: 0 | AB107: 0 | AC107: 0 | AD107: 0 | AE107: 0 | AF107: 0 | AG107: 0 | AH107: 0 | AI107: 0 | AM107: =IFERROR(VLOOKUP(F107,[1]Vendor!B:I,8,0),"") -> 
M108: 1900 | O108: 0 | P108: 0 | Q108: 0 | R108: 0 | S108: 0 | T108: 0 | U108: 0 | V108: 0 | W108: 0 | X108: 0 | Y108: 0 | Z108: 0 | AA108: 0 | AB108: 0 | AC108: 0 | AD108: 0 | AE108: 0 | AF108: 0 | AG108: 0 | AH108: 0 | AI108: 0 | AM108: =IFERROR(VLOOKUP(F108,[1]Vendor!B:I,8,0),"") -> 
M109: 1900 | O109: 0 | P109: 0 | Q109: 0 | R109: 0 | S109: 0 | T109: 0 | U109: 0 | V109: 0 | W109: 0 | X109: 0 | Y109: 0 | Z109: 0 | AA109: 0 | AB109: 0 | AC109: 0 | AD109: 0 | AE109: 0 | AF109: 0 | AG109: 0 | AH109: 0 | AI109: 0 | AM109: =IFERROR(VLOOKUP(F109,[1]Vendor!B:I,8,0),"") -> 
M110: 1900 | O110: 0 | P110: 0 | Q110: 0 | R110: 0 | S110: 0 | T110: 0 | U110: 0 | V110: 0 | W110: 0 | X110: 0 | Y110: 0 | Z110: 0 | AA110: 0 | AB110: 0 | AC110: 0 | AD110: 0 | AE110: 0 | AF110: 0 | AG110: 0 | AH110: 0 | AI110: 0 | AM110: =IFERROR(VLOOKUP(F110,[1]Vendor!B:I,8,0),"") -> 
M111: 1900 | O111: 0 | P111: 0 | Q111: 0 | R111: 0 | S111: 0 | T111: 0 | U111: 0 | V111: 0 | W111: 0 | X111: 0 | Y111: 0 | Z111: 0 | AA111: 0 | AB111: 0 | AC111: 0 | AD111: 0 | AE111: 0 | AF111: 0 | AG111: 0 | AH111: 0 | AI111: 0 | AM111: =IFERROR(VLOOKUP(F111,[1]Vendor!B:I,8,0),"") -> 
M112: 1900 | O112: 0 | P112: 0 | Q112: 0 | R112: 0 | S112: 0 | T112: 0 | U112: 0 | V112: 0 | W112: 0 | X112: 0 | Y112: 0 | Z112: 0 | AA112: 0 | AB112: 0 | AC112: 0 | AD112: 0 | AE112: 0 | AF112: 0 | AG112: 0 | AH112: 0 | AI112: 0 | AM112: =IFERROR(VLOOKUP(F112,[1]Vendor!B:I,8,0),"") -> 
M113: 1900 | O113: 0 | P113: 0 | Q113: 0 | R113: 0 | S113: 0 | T113: 0 | U113: 0 | V113: 0 | W113: 0 | X113: 0 | Y113: 0 | Z113: 0 | AA113: 0 | AB113: 0 | AC113: 0 | AD113: 0 | AE113: 0 | AF113: 0 | AG113: 0 | AH113: 0 | AI113: 0 | AM113: =IFERROR(VLOOKUP(F113,[1]Vendor!B:I,8,0),"") -> 
M114: 1900 | O114: 0 | P114: 0 | Q114: 0 | R114: 0 | S114: 0 | T114: 0 | U114: 0 | V114: 0 | W114: 0 | X114: 0 | Y114: 0 | Z114: 0 | AA114: 0 | AB114: 0 | AC114: 0 | AD114: 0 | AE114: 0 | AF114: 0 | AG114: 0 | AH114: 0 | AI114: 0 | AM114: =IFERROR(VLOOKUP(F114,[1]Vendor!B:I,8,0),"") -> 
M115: 1900 | O115: 0 | P115: 0 | Q115: 0 | R115: 0 | S115: 0 | T115: 0 | U115: 0 | V115: 0 | W115: 0 | X115: 0 | Y115: 0 | Z115: 0 | AA115: 0 | AB115: 0 | AC115: 0 | AD115: 0 | AE115: 0 | AF115: 0 | AG115: 0 | AH115: 0 | AI115: 0 | AM115: =IFERROR(VLOOKUP(F115,[1]Vendor!B:I,8,0),"") -> 
M116: 1900 | O116: 0 | P116: 0 | Q116: 0 | R116: 0 | S116: 0 | T116: 0 | U116: 0 | V116: 0 | W116: 0 | X116: 0 | Y116: 0 | Z116: 0 | AA116: 0 | AB116: 0 | AC116: 0 | AD116: 0 | AE116: 0 | AF116: 0 | AG116: 0 | AH116: 0 | AI116: 0 | AM116: =IFERROR(VLOOKUP(F116,[1]Vendor!B:I,8,0),"") -> 
M117: 1900 | O117: 0 | P117: 0 | Q117: 0 | R117: 0 | S117: 0 | T117: 0 | U117: 0 | V117: 0 | W117: 0 | X117: 0 | Y117: 0 | Z117: 0 | AA117: 0 | AB117: 0 | AC117: 0 | AD117: 0 | AE117: 0 | AF117: 0 | AG117: 0 | AH117: 0 | AI117: 0 | AM117: =IFERROR(VLOOKUP(F117,[1]Vendor!B:I,8,0),"") -> 
M118: 1900 | O118: 0 | P118: 0 | Q118: 0 | R118: 0 | S118: 0 | T118: 0 | U118: 0 | V118: 0 | W118: 0 | X118: 0 | Y118: 0 | Z118: 0 | AA118: 0 | AB118: 0 | AC118: 0 | AD118: 0 | AE118: 0 | AF118: 0 | AG118: 0 | AH118: 0 | AI118: 0 | AM118: =IFERROR(VLOOKUP(F118,[1]Vendor!B:I,8,0),"") -> 
M119: 1900 | O119: 0 | P119: 0 | Q119: 0 | R119: 0 | S119: 0 | T119: 0 | U119: 0 | V119: 0 | W119: 0 | X119: 0 | Y119: 0 | Z119: 0 | AA119: 0 | AB119: 0 | AC119: 0 | AD119: 0 | AE119: 0 | AF119: 0 | AG119: 0 | AH119: 0 | AI119: 0 | AM119: =IFERROR(VLOOKUP(F119,[1]Vendor!B:I,8,0),"") -> 
M120: 1900 | O120: 0 | P120: 0 | Q120: 0 | R120: 0 | S120: 0 | T120: 0 | U120: 0 | V120: 0 | W120: 0 | X120: 0 | Y120: 0 | Z120: 0 | AA120: 0 | AB120: 0 | AC120: 0 | AD120: 0 | AE120: 0 | AF120: 0 | AG120: 0 | AH120: 0 | AI120: 0 | AM120: =IFERROR(VLOOKUP(F120,[1]Vendor!B:I,8,0),"") -> 
M121: =IFERROR(YEAR(J121),"") -> 1900 | O121: =IF($M121=O$12,$N121,0) -> 0 | P121: 0 | Q121: 0 | R121: 0 | S121: 0 | T121: 0 | U121: 0 | V121: 0 | W121: 0 | X121: 0 | Y121: 0 | Z121: 0 | AA121: 0 | AB121: 0 | AC121: 0 | AD121: 0 | AE121: 0 | AF121: 0 | AG121: 0 | AH121: 0 | AI121: =Z121-Y121 -> 0 | AM121: =IFERROR(VLOOKUP(F121,[1]Vendor!B:I,8,0),"") -> 
M122: 1900 | N122: =IFERROR(I122/H122,"") ->  | O122: 0 | P122: 0 | Q122: 0 | R122: 0 | S122: 0 | T122: 0 | U122: 0 | V122: 0 | W122: 0 | X122: 0 | Y122: 0 | Z122: 0 | AA122: 0 | AB122: 0 | AC122: 0 | AD122: 0 | AE122: 0 | AF122: 0 | AG122: 0 | AH122: 0 | AI122: 0 | AM122: =IFERROR(VLOOKUP(F122,[1]Vendor!B:I,8,0),"") -> 
M123: 1900 | O123: 0 | P123: 0 | Q123: 0 | R123: 0 | S123: 0 | T123: 0 | U123: 0 | V123: 0 | W123: 0 | X123: 0 | Y123: 0 | Z123: 0 | AA123: 0 | AB123: 0 | AC123: 0 | AD123: 0 | AE123: 0 | AF123: 0 | AG123: 0 | AH123: 0 | AI123: 0 | AM123: =IFERROR(VLOOKUP(F123,[1]Vendor!B:I,8,0),"") -> 
M124: 1900 | O124: 0 | P124: 0 | Q124: 0 | R124: 0 | S124: 0 | T124: 0 | U124: 0 | V124: 0 | W124: 0 | X124: 0 | Y124: 0 | Z124: 0 | AA124: 0 | AB124: 0 | AC124: 0 | AD124: 0 | AE124: 0 | AF124: 0 | AG124: 0 | AH124: 0 | AI124: 0 | AM124: =IFERROR(VLOOKUP(F124,[1]Vendor!B:I,8,0),"") -> 
M125: 1900 | O125: 0 | P125: 0 | Q125: 0 | R125: 0 | S125: 0 | T125: 0 | U125: 0 | V125: 0 | W125: 0 | X125: 0 | Y125: 0 | Z125: 0 | AA125: 0 | AB125: 0 | AC125: 0 | AD125: 0 | AE125: 0 | AF125: 0 | AG125: 0 | AH125: 0 | AI125: 0 | AM125: =IFERROR(VLOOKUP(F125,[1]Vendor!B:I,8,0),"") -> 
M126: 1900 | O126: 0 | P126: 0 | Q126: 0 | R126: 0 | S126: 0 | T126: 0 | U126: 0 | V126: 0 | W126: 0 | X126: 0 | Y126: 0 | Z126: 0 | AA126: 0 | AB126: 0 | AC126: 0 | AD126: 0 | AE126: 0 | AF126: 0 | AG126: 0 | AH126: 0 | AI126: 0 | AM126: =IFERROR(VLOOKUP(F126,[1]Vendor!B:I,8,0),"") -> 
M127: 1900 | O127: 0 | P127: 0 | Q127: 0 | R127: 0 | S127: 0 | T127: 0 | U127: 0 | V127: 0 | W127: 0 | X127: 0 | Y127: 0 | Z127: 0 | AA127: 0 | AB127: 0 | AC127: 0 | AD127: 0 | AE127: 0 | AF127: 0 | AG127: 0 | AH127: 0 | AI127: 0 | AM127: =IFERROR(VLOOKUP(F127,[1]Vendor!B:I,8,0),"") -> 
M128: 1900 | O128: 0 | P128: 0 | Q128: 0 | R128: 0 | S128: 0 | T128: 0 | U128: 0 | V128: 0 | W128: 0 | X128: 0 | Y128: 0 | Z128: 0 | AA128: 0 | AB128: 0 | AC128: 0 | AD128: 0 | AE128: 0 | AF128: 0 | AG128: 0 | AH128: 0 | AI128: 0 | AM128: =IFERROR(VLOOKUP(F128,[1]Vendor!B:I,8,0),"") -> 
M129: 1900 | O129: 0 | P129: 0 | Q129: 0 | R129: 0 | S129: 0 | T129: 0 | U129: 0 | V129: 0 | W129: 0 | X129: 0 | Y129: 0 | Z129: 0 | AA129: 0 | AB129: 0 | AC129: 0 | AD129: 0 | AE129: 0 | AF129: 0 | AG129: 0 | AH129: 0 | AI129: 0 | AM129: =IFERROR(VLOOKUP(F129,[1]Vendor!B:I,8,0),"") -> 
M130: 1900 | O130: 0 | P130: 0 | Q130: 0 | R130: =IF($M130=R$12,$N130,0)+Q130*R$11+Q130 -> 0 | S130: 0 | T130: 0 | U130: 0 | V130: 0 | W130: 0 | X130: 0 | Y130: 0 | Z130: 0 | AA130: 0 | AB130: 0 | AC130: 0 | AD130: 0 | AE130: 0 | AF130: 0 | AG130: 0 | AH130: 0 | AI130: 0 | AM130: =IFERROR(VLOOKUP(F130,[1]Vendor!B:I,8,0),"") -> 
M131: 1900 | O131: 0 | P131: =IF($M131=P$12,$N131,0)+O131*P$11+O131 -> 0 | Q131: 0 | R131: 0 | S131: 0 | T131: 0 | U131: 0 | V131: 0 | W131: 0 | X131: 0 | Y131: 0 | Z131: 0 | AA131: 0 | AB131: 0 | AC131: 0 | AD131: 0 | AE131: 0 | AF131: 0 | AG131: 0 | AH131: 0 | AI131: 0 | AJ131: =IFERROR(AI131/Y131,"") ->  | AL131: =IFERROR(AK131/AA131,"") ->  | AM131: =IFERROR(VLOOKUP(F131,[1]Vendor!B:I,8,0),"") ->  | AO131: =IFERROR(AN131-AK131,"")/AK131 -> 
M132: 1900 | O132: 0 | P132: 0 | Q132: 0 | R132: 0 | S132: 0 | T132: 0 | U132: 0 | V132: 0 | W132: 0 | X132: 0 | Y132: 0 | Z132: 0 | AA132: 0 | AB132: 0 | AC132: 0 | AD132: 0 | AE132: 0 | AF132: 0 | AG132: 0 | AH132: 0 | AI132: 0 | AM132: =IFERROR(VLOOKUP(F132,[1]Vendor!B:I,8,0),"") -> 
M133: 1900 | O133: 0 | P133: 0 | Q133: 0 | R133: 0 | S133: 0 | T133: 0 | U133: 0 | V133: 0 | W133: 0 | X133: 0 | Y133: 0 | Z133: 0 | AA133: 0 | AB133: 0 | AC133: 0 | AD133: 0 | AE133: 0 | AF133: 0 | AG133: 0 | AH133: 0 | AI133: 0 | AM133: =IFERROR(VLOOKUP(F133,[1]Vendor!B:I,8,0),"") -> 
M134: 1900 | O134: 0 | P134: 0 | Q134: 0 | R134: 0 | S134: 0 | T134: 0 | U134: 0 | V134: 0 | W134: 0 | X134: 0 | Y134: 0 | Z134: 0 | AA134: 0 | AB134: 0 | AC134: 0 | AD134: 0 | AE134: 0 | AF134: 0 | AG134: 0 | AH134: 0 | AI134: 0 | AM134: =IFERROR(VLOOKUP(F134,[1]Vendor!B:I,8,0),"") -> 
M135: 1900 | O135: 0 | P135: 0 | Q135: 0 | R135: 0 | S135: 0 | T135: 0 | U135: 0 | V135: 0 | W135: 0 | X135: 0 | Y135: 0 | Z135: 0 | AA135: 0 | AB135: 0 | AC135: 0 | AD135: 0 | AE135: 0 | AF135: 0 | AG135: 0 | AH135: 0 | AI135: 0 | AM135: =IFERROR(VLOOKUP(F135,[1]Vendor!B:I,8,0),"") -> 
M136: 1900 | O136: 0 | P136: 0 | Q136: 0 | R136: 0 | S136: 0 | T136: 0 | U136: 0 | V136: 0 | W136: 0 | X136: 0 | Y136: 0 | Z136: 0 | AA136: 0 | AB136: 0 | AC136: 0 | AD136: 0 | AE136: 0 | AF136: 0 | AG136: 0 | AH136: 0 | AI136: 0 | AM136: =IFERROR(VLOOKUP(F136,[1]Vendor!B:I,8,0),"") -> 
M137: 1900 | O137: 0 | P137: 0 | Q137: 0 | R137: 0 | S137: 0 | T137: 0 | U137: 0 | V137: 0 | W137: 0 | X137: 0 | Y137: 0 | Z137: 0 | AA137: 0 | AB137: 0 | AC137: 0 | AD137: 0 | AE137: 0 | AF137: 0 | AG137: 0 | AH137: 0 | AI137: 0 | AM137: =IFERROR(VLOOKUP(F137,[1]Vendor!B:I,8,0),"") -> 
M138: 1900 | O138: 0 | P138: 0 | Q138: 0 | R138: 0 | S138: 0 | T138: 0 | U138: 0 | V138: 0 | W138: 0 | X138: 0 | Y138: 0 | Z138: 0 | AA138: 0 | AB138: 0 | AC138: 0 | AD138: 0 | AE138: 0 | AF138: 0 | AG138: 0 | AH138: 0 | AI138: 0 | AM138: =IFERROR(VLOOKUP(F138,[1]Vendor!B:I,8,0),"") -> 
M139: 1900 | O139: 0 | P139: 0 | Q139: 0 | R139: 0 | S139: 0 | T139: 0 | U139: 0 | V139: 0 | W139: 0 | X139: 0 | Y139: 0 | Z139: 0 | AA139: 0 | AB139: 0 | AC139: 0 | AD139: 0 | AE139: 0 | AF139: 0 | AG139: 0 | AH139: 0 | AI139: 0 | AM139: =IFERROR(VLOOKUP(F139,[1]Vendor!B:I,8,0),"") -> 
M140: 1900 | O140: 0 | P140: 0 | Q140: 0 | R140: 0 | S140: 0 | T140: 0 | U140: 0 | V140: 0 | W140: 0 | X140: 0 | Y140: 0 | Z140: 0 | AA140: 0 | AB140: 0 | AC140: 0 | AD140: 0 | AE140: 0 | AF140: 0 | AG140: 0 | AH140: 0 | AI140: 0 | AM140: =IFERROR(VLOOKUP(F140,[1]Vendor!B:I,8,0),"") -> 
M141: 1900 | O141: 0 | P141: 0 | Q141: 0 | R141: 0 | S141: 0 | T141: 0 | U141: 0 | V141: 0 | W141: 0 | X141: 0 | Y141: 0 | Z141: 0 | AA141: 0 | AB141: 0 | AC141: 0 | AD141: 0 | AE141: 0 | AF141: 0 | AG141: 0 | AH141: 0 | AI141: 0 | AM141: =IFERROR(VLOOKUP(F141,[1]Vendor!B:I,8,0),"") -> 
M142: 1900 | O142: 0 | P142: 0 | Q142: 0 | R142: 0 | S142: 0 | T142: 0 | U142: 0 | V142: 0 | W142: 0 | X142: 0 | Y142: 0 | Z142: 0 | AA142: 0 | AB142: 0 | AC142: 0 | AD142: 0 | AE142: 0 | AF142: 0 | AG142: 0 | AH142: 0 | AI142: 0 | AM142: =IFERROR(VLOOKUP(F142,[1]Vendor!B:I,8,0),"") -> 
M143: 1900 | O143: 0 | P143: 0 | Q143: 0 | R143: 0 | S143: 0 | T143: 0 | U143: 0 | V143: 0 | W143: 0 | X143: 0 | Y143: 0 | Z143: 0 | AA143: 0 | AB143: 0 | AC143: 0 | AD143: 0 | AE143: 0 | AF143: 0 | AG143: 0 | AH143: 0 | AI143: 0 | AM143: =IFERROR(VLOOKUP(F143,[1]Vendor!B:I,8,0),"") -> 
M144: 1900 | O144: 0 | P144: 0 | Q144: 0 | R144: 0 | S144: 0 | T144: 0 | U144: 0 | V144: 0 | W144: 0 | X144: 0 | Y144: 0 | Z144: 0 | AA144: 0 | AB144: 0 | AC144: 0 | AD144: 0 | AE144: 0 | AF144: 0 | AG144: 0 | AH144: 0 | AI144: 0 | AM144: =IFERROR(VLOOKUP(F144,[1]Vendor!B:I,8,0),"") -> 
M145: 1900 | O145: 0 | P145: 0 | Q145: 0 | R145: 0 | S145: 0 | T145: 0 | U145: 0 | V145: 0 | W145: 0 | X145: 0 | Y145: 0 | Z145: 0 | AA145: 0 | AB145: 0 | AC145: 0 | AD145: 0 | AE145: 0 | AF145: 0 | AG145: 0 | AH145: 0 | AI145: 0 | AM145: =IFERROR(VLOOKUP(F145,[1]Vendor!B:I,8,0),"") -> 
M146: 1900 | O146: 0 | P146: 0 | Q146: 0 | R146: 0 | S146: 0 | T146: 0 | U146: 0 | V146: 0 | W146: 0 | X146: 0 | Y146: 0 | Z146: 0 | AA146: 0 | AB146: 0 | AC146: 0 | AD146: 0 | AE146: 0 | AF146: 0 | AG146: 0 | AH146: 0 | AI146: 0 | AM146: =IFERROR(VLOOKUP(F146,[1]Vendor!B:I,8,0),"") -> 
M147: 1900 | O147: 0 | P147: 0 | Q147: 0 | R147: 0 | S147: 0 | T147: 0 | U147: 0 | V147: 0 | W147: 0 | X147: 0 | Y147: 0 | Z147: 0 | AA147: 0 | AB147: 0 | AC147: 0 | AD147: 0 | AE147: 0 | AF147: 0 | AG147: 0 | AH147: 0 | AI147: 0 | AM147: =IFERROR(VLOOKUP(F147,[1]Vendor!B:I,8,0),"") -> 
M148: 1900 | O148: 0 | P148: 0 | Q148: 0 | R148: 0 | S148: 0 | T148: 0 | U148: 0 | V148: 0 | W148: 0 | X148: 0 | Y148: 0 | Z148: 0 | AA148: 0 | AB148: 0 | AC148: 0 | AD148: 0 | AE148: 0 | AF148: 0 | AG148: 0 | AH148: 0 | AI148: 0 | AM148: =IFERROR(VLOOKUP(F148,[1]Vendor!B:I,8,0),"") -> 
M149: 1900 | O149: 0 | P149: 0 | Q149: 0 | R149: 0 | S149: 0 | T149: 0 | U149: 0 | V149: 0 | W149: 0 | X149: 0 | Y149: 0 | Z149: 0 | AA149: 0 | AB149: 0 | AC149: 0 | AD149: 0 | AE149: 0 | AF149: 0 | AG149: 0 | AH149: 0 | AI149: 0 | AM149: =IFERROR(VLOOKUP(F149,[1]Vendor!B:I,8,0),"") -> 
M150: 1900 | O150: 0 | P150: 0 | Q150: 0 | R150: 0 | S150: 0 | T150: 0 | U150: 0 | V150: 0 | W150: 0 | X150: 0 | Y150: 0 | Z150: 0 | AA150: 0 | AB150: 0 | AC150: 0 | AD150: 0 | AE150: 0 | AF150: 0 | AG150: 0 | AH150: 0 | AI150: 0 | AM150: =IFERROR(VLOOKUP(F150,[1]Vendor!B:I,8,0),"") -> 
M151: 1900 | O151: 0 | P151: 0 | Q151: 0 | R151: 0 | S151: 0 | T151: 0 | U151: 0 | V151: 0 | W151: 0 | X151: 0 | Y151: 0 | Z151: 0 | AA151: 0 | AB151: 0 | AC151: 0 | AD151: 0 | AE151: 0 | AF151: 0 | AG151: 0 | AH151: 0 | AI151: 0 | AM151: =IFERROR(VLOOKUP(F151,[1]Vendor!B:I,8,0),"") -> 
M152: 1900 | O152: 0 | P152: 0 | Q152: 0 | R152: 0 | S152: 0 | T152: 0 | U152: 0 | V152: 0 | W152: 0 | X152: 0 | Y152: 0 | Z152: 0 | AA152: 0 | AB152: 0 | AC152: 0 | AD152: 0 | AE152: 0 | AF152: 0 | AG152: 0 | AH152: 0 | AI152: 0 | AM152: =IFERROR(VLOOKUP(F152,[1]Vendor!B:I,8,0),"") -> 
M153: 1900 | O153: 0 | P153: 0 | Q153: 0 | R153: 0 | S153: 0 | T153: 0 | U153: 0 | V153: 0 | W153: 0 | X153: 0 | Y153: 0 | Z153: 0 | AA153: 0 | AB153: 0 | AC153: 0 | AD153: 0 | AE153: 0 | AF153: 0 | AG153: 0 | AH153: 0 | AI153: 0 | AM153: =IFERROR(VLOOKUP(F153,[1]Vendor!B:I,8,0),"") -> 
M154: 1900 | O154: 0 | P154: 0 | Q154: 0 | R154: 0 | S154: 0 | T154: 0 | U154: 0 | V154: 0 | W154: 0 | X154: 0 | Y154: 0 | Z154: 0 | AA154: 0 | AB154: 0 | AC154: 0 | AD154: 0 | AE154: 0 | AF154: 0 | AG154: 0 | AH154: 0 | AI154: 0 | AM154: =IFERROR(VLOOKUP(F154,[1]Vendor!B:I,8,0),"") -> 
M155: 1900 | O155: 0 | P155: 0 | Q155: 0 | R155: 0 | S155: 0 | T155: 0 | U155: 0 | V155: 0 | W155: 0 | X155: 0 | Y155: 0 | Z155: 0 | AA155: 0 | AB155: 0 | AC155: 0 | AD155: 0 | AE155: 0 | AF155: 0 | AG155: 0 | AH155: 0 | AI155: 0 | AM155: =IFERROR(VLOOKUP(F155,[1]Vendor!B:I,8,0),"") -> 
M156: 1900 | O156: 0 | P156: 0 | Q156: 0 | R156: 0 | S156: 0 | T156: 0 | U156: 0 | V156: 0 | W156: 0 | X156: 0 | Y156: 0 | Z156: 0 | AA156: 0 | AB156: 0 | AC156: 0 | AD156: 0 | AE156: 0 | AF156: 0 | AG156: 0 | AH156: 0 | AI156: 0 | AM156: =IFERROR(VLOOKUP(F156,[1]Vendor!B:I,8,0),"") -> 
M157: 1900 | O157: 0 | P157: 0 | Q157: 0 | R157: 0 | S157: 0 | T157: 0 | U157: 0 | V157: 0 | W157: 0 | X157: 0 | Y157: 0 | Z157: 0 | AA157: 0 | AB157: 0 | AC157: 0 | AD157: =IF($M157=AD$12,$N157,0)+AC157*AD$11+AC157 -> 0 | AE157: 0 | AF157: 0 | AG157: 0 | AH157: 0 | AI157: 0 | AM157: =IFERROR(VLOOKUP(F157,[1]Vendor!B:I,8,0),"") -> 
M158: 1900 | O158: 0 | P158: 0 | Q158: 0 | R158: 0 | S158: 0 | T158: 0 | U158: 0 | V158: 0 | W158: 0 | X158: 0 | Y158: 0 | Z158: 0 | AA158: 0 | AB158: 0 | AC158: 0 | AD158: 0 | AE158: 0 | AF158: 0 | AG158: 0 | AH158: 0 | AI158: 0 | AM158: =IFERROR(VLOOKUP(F158,[1]Vendor!B:I,8,0),"") -> 
M159: 1900 | O159: 0 | P159: 0 | Q159: 0 | R159: 0 | S159: 0 | T159: 0 | U159: 0 | V159: 0 | W159: 0 | X159: 0 | Y159: 0 | Z159: 0 | AA159: 0 | AB159: 0 | AC159: 0 | AD159: 0 | AE159: 0 | AF159: 0 | AG159: 0 | AH159: 0 | AI159: 0 | AM159: =IFERROR(VLOOKUP(F159,[1]Vendor!B:I,8,0),"") -> 
M160: 1900 | O160: 0 | P160: 0 | Q160: 0 | R160: 0 | S160: 0 | T160: 0 | U160: 0 | V160: 0 | W160: 0 | X160: 0 | Y160: 0 | Z160: 0 | AA160: 0 | AB160: 0 | AC160: 0 | AD160: 0 | AE160: 0 | AF160: 0 | AG160: 0 | AH160: 0 | AI160: 0 | AM160: =IFERROR(VLOOKUP(F160,[1]Vendor!B:I,8,0),"") -> 
M161: 1900 | O161: 0 | P161: 0 | Q161: 0 | R161: 0 | S161: 0 | T161: 0 | U161: 0 | V161: 0 | W161: 0 | X161: 0 | Y161: 0 | Z161: 0 | AA161: 0 | AB161: 0 | AC161: 0 | AD161: 0 | AE161: 0 | AF161: 0 | AG161: 0 | AH161: 0 | AI161: 0 | AM161: =IFERROR(VLOOKUP(F161,[1]Vendor!B:I,8,0),"") -> 
M162: 1900 | O162: 0 | P162: 0 | Q162: 0 | R162: 0 | S162: 0 | T162: 0 | U162: 0 | V162: 0 | W162: 0 | X162: 0 | Y162: 0 | Z162: 0 | AA162: 0 | AB162: 0 | AC162: 0 | AD162: 0 | AE162: 0 | AF162: 0 | AG162: 0 | AH162: 0 | AI162: 0 | AM162: =IFERROR(VLOOKUP(F162,[1]Vendor!B:I,8,0),"") -> 
M163: 1900 | O163: 0 | P163: 0 | Q163: 0 | R163: 0 | S163: 0 | T163: 0 | U163: 0 | V163: 0 | W163: 0 | X163: 0 | Y163: 0 | Z163: 0 | AA163: 0 | AB163: 0 | AC163: 0 | AD163: 0 | AE163: 0 | AF163: 0 | AG163: 0 | AH163: 0 | AI163: 0 | AM163: =IFERROR(VLOOKUP(F163,[1]Vendor!B:I,8,0),"") -> 
M164: 1900 | O164: 0 | P164: 0 | Q164: 0 | R164: 0 | S164: 0 | T164: 0 | U164: 0 | V164: 0 | W164: 0 | X164: 0 | Y164: 0 | Z164: 0 | AA164: 0 | AB164: 0 | AC164: 0 | AD164: 0 | AE164: 0 | AF164: 0 | AG164: 0 | AH164: 0 | AI164: 0 | AM164: =IFERROR(VLOOKUP(F164,[1]Vendor!B:I,8,0),"") -> 
M165: 1900 | O165: 0 | P165: 0 | Q165: 0 | R165: 0 | S165: 0 | T165: 0 | U165: 0 | V165: 0 | W165: 0 | X165: 0 | Y165: 0 | Z165: 0 | AA165: 0 | AB165: 0 | AC165: 0 | AD165: 0 | AE165: 0 | AF165: 0 | AG165: 0 | AH165: 0 | AI165: 0 | AM165: =IFERROR(VLOOKUP(F165,[1]Vendor!B:I,8,0),"") -> 
M166: 1900 | O166: 0 | P166: 0 | Q166: 0 | R166: 0 | S166: 0 | T166: 0 | U166: 0 | V166: 0 | W166: 0 | X166: 0 | Y166: 0 | Z166: 0 | AA166: 0 | AB166: 0 | AC166: 0 | AD166: 0 | AE166: 0 | AF166: 0 | AG166: 0 | AH166: 0 | AI166: 0 | AM166: =IFERROR(VLOOKUP(F166,[1]Vendor!B:I,8,0),"") -> 
M167: 1900 | O167: 0 | P167: 0 | Q167: 0 | R167: 0 | S167: 0 | T167: 0 | U167: 0 | V167: 0 | W167: 0 | X167: 0 | Y167: 0 | Z167: 0 | AA167: 0 | AB167: 0 | AC167: 0 | AD167: 0 | AE167: 0 | AF167: 0 | AG167: 0 | AH167: 0 | AI167: 0 | AM167: =IFERROR(VLOOKUP(F167,[1]Vendor!B:I,8,0),"") -> 
M168: 1900 | O168: 0 | P168: 0 | Q168: 0 | R168: 0 | S168: 0 | T168: 0 | U168: 0 | V168: 0 | W168: 0 | X168: 0 | Y168: 0 | Z168: 0 | AA168: 0 | AB168: 0 | AC168: 0 | AD168: 0 | AE168: 0 | AF168: 0 | AG168: 0 | AH168: 0 | AI168: 0 | AM168: =IFERROR(VLOOKUP(F168,[1]Vendor!B:I,8,0),"") -> 
M169: 1900 | O169: 0 | P169: 0 | Q169: 0 | R169: 0 | S169: 0 | T169: 0 | U169: 0 | V169: 0 | W169: 0 | X169: 0 | Y169: 0 | Z169: 0 | AA169: 0 | AB169: 0 | AC169: 0 | AD169: 0 | AE169: 0 | AF169: 0 | AG169: 0 | AH169: 0 | AI169: 0 | AM169: =IFERROR(VLOOKUP(F169,[1]Vendor!B:I,8,0),"") -> 
M170: 1900 | O170: 0 | P170: 0 | Q170: 0 | R170: 0 | S170: 0 | T170: 0 | U170: 0 | V170: 0 | W170: 0 | X170: 0 | Y170: 0 | Z170: 0 | AA170: 0 | AB170: 0 | AC170: 0 | AD170: 0 | AE170: 0 | AF170: 0 | AG170: 0 | AH170: 0 | AI170: 0 | AM170: =IFERROR(VLOOKUP(F170,[1]Vendor!B:I,8,0),"") -> 
M171: 1900 | O171: 0 | P171: 0 | Q171: 0 | R171: 0 | S171: 0 | T171: 0 | U171: 0 | V171: 0 | W171: 0 | X171: 0 | Y171: 0 | Z171: 0 | AA171: 0 | AB171: 0 | AC171: 0 | AD171: 0 | AE171: 0 | AF171: 0 | AG171: 0 | AH171: 0 | AI171: 0 | AM171: =IFERROR(VLOOKUP(F171,[1]Vendor!B:I,8,0),"") -> 
M172: 1900 | O172: 0 | P172: 0 | Q172: 0 | R172: 0 | S172: 0 | T172: 0 | U172: =IF($M172=U$12,$N172,0)+T172*U$11+T172 -> 0 | V172: 0 | W172: 0 | X172: 0 | Y172: 0 | Z172: 0 | AA172: 0 | AB172: 0 | AC172: 0 | AD172: 0 | AE172: 0 | AF172: 0 | AG172: 0 | AH172: 0 | AI172: 0 | AM172: =IFERROR(VLOOKUP(F172,[1]Vendor!B:I,8,0),"") -> 
M173: 1900 | O173: 0 | P173: =IF($M173=P$12,$N173,0)+O173*P$11+O173 -> 0 | Q173: 0 | R173: 0 | S173: 0 | T173: 0 | U173: 0 | V173: 0 | W173: 0 | X173: 0 | Y173: 0 | Z173: 0 | AA173: 0 | AB173: 0 | AC173: 0 | AD173: 0 | AE173: 0 | AF173: 0 | AG173: 0 | AH173: 0 | AI173: 0 | AM173: =IFERROR(VLOOKUP(F173,[1]Vendor!B:I,8,0),"") -> 
M174: 1900 | O174: 0 | P174: 0 | Q174: 0 | R174: 0 | S174: 0 | T174: 0 | U174: 0 | V174: 0 | W174: 0 | X174: 0 | Y174: 0 | Z174: 0 | AA174: 0 | AB174: 0 | AC174: 0 | AD174: 0 | AE174: 0 | AF174: 0 | AG174: 0 | AH174: 0 | AI174: 0 | AM174: =IFERROR(VLOOKUP(F174,[1]Vendor!B:I,8,0),"") -> 
M175: 1900 | O175: 0 | P175: 0 | Q175: 0 | R175: 0 | S175: 0 | T175: 0 | U175: 0 | V175: 0 | W175: 0 | X175: 0 | Y175: 0 | Z175: 0 | AA175: 0 | AB175: 0 | AC175: 0 | AD175: 0 | AE175: 0 | AF175: 0 | AG175: 0 | AH175: 0 | AI175: 0 | AM175: =IFERROR(VLOOKUP(F175,[1]Vendor!B:I,8,0),"") -> 
M176: 1900 | O176: 0 | P176: 0 | Q176: 0 | R176: 0 | S176: 0 | T176: 0 | U176: 0 | V176: 0 | W176: 0 | X176: 0 | Y176: 0 | Z176: 0 | AA176: 0 | AB176: 0 | AC176: 0 | AD176: 0 | AE176: 0 | AF176: 0 | AG176: 0 | AH176: 0 | AI176: 0 | AM176: =IFERROR(VLOOKUP(F176,[1]Vendor!B:I,8,0),"") -> 
M177: 1900 | O177: 0 | P177: 0 | Q177: 0 | R177: 0 | S177: 0 | T177: 0 | U177: 0 | V177: 0 | W177: 0 | X177: 0 | Y177: 0 | Z177: 0 | AA177: 0 | AB177: 0 | AC177: 0 | AD177: 0 | AE177: 0 | AF177: 0 | AG177: 0 | AH177: 0 | AI177: 0 | AM177: =IFERROR(VLOOKUP(F177,[1]Vendor!B:I,8,0),"") -> 
M178: 1900 | O178: 0 | P178: 0 | Q178: 0 | R178: 0 | S178: 0 | T178: 0 | U178: 0 | V178: 0 | W178: 0 | X178: 0 | Y178: 0 | Z178: 0 | AA178: 0 | AB178: 0 | AC178: 0 | AD178: 0 | AE178: 0 | AF178: 0 | AG178: 0 | AH178: 0 | AI178: 0 | AM178: =IFERROR(VLOOKUP(F178,[1]Vendor!B:I,8,0),"") -> 
M179: 1900 | O179: 0 | P179: 0 | Q179: 0 | R179: 0 | S179: 0 | T179: 0 | U179: 0 | V179: 0 | W179: 0 | X179: 0 | Y179: 0 | Z179: 0 | AA179: 0 | AB179: 0 | AC179: 0 | AD179: 0 | AE179: 0 | AF179: 0 | AG179: 0 | AH179: 0 | AI179: 0 | AM179: =IFERROR(VLOOKUP(F179,[1]Vendor!B:I,8,0),"") -> 
M180: 1900 | O180: 0 | P180: 0 | Q180: 0 | R180: 0 | S180: 0 | T180: 0 | U180: 0 | V180: 0 | W180: 0 | X180: 0 | Y180: 0 | Z180: 0 | AA180: 0 | AB180: 0 | AC180: 0 | AD180: 0 | AE180: 0 | AF180: 0 | AG180: 0 | AH180: 0 | AI180: 0 | AM180: =IFERROR(VLOOKUP(F180,[1]Vendor!B:I,8,0),"") -> 
M181: 1900 | O181: 0 | P181: 0 | Q181: 0 | R181: 0 | S181: 0 | T181: 0 | U181: 0 | V181: 0 | W181: 0 | X181: 0 | Y181: 0 | Z181: 0 | AA181: 0 | AB181: 0 | AC181: 0 | AD181: 0 | AE181: 0 | AF181: 0 | AG181: 0 | AH181: 0 | AI181: 0 | AM181: =IFERROR(VLOOKUP(F181,[1]Vendor!B:I,8,0),"") -> 
M182: 1900 | O182: 0 | P182: 0 | Q182: 0 | R182: 0 | S182: 0 | T182: 0 | U182: 0 | V182: 0 | W182: 0 | X182: 0 | Y182: 0 | Z182: 0 | AA182: 0 | AB182: 0 | AC182: 0 | AD182: 0 | AE182: 0 | AF182: 0 | AG182: 0 | AH182: 0 | AI182: 0 | AM182: =IFERROR(VLOOKUP(F182,[1]Vendor!B:I,8,0),"") -> 
M183: 1900 | O183: 0 | P183: 0 | Q183: 0 | R183: 0 | S183: 0 | T183: 0 | U183: 0 | V183: 0 | W183: 0 | X183: 0 | Y183: 0 | Z183: 0 | AA183: 0 | AB183: 0 | AC183: 0 | AD183: 0 | AE183: 0 | AF183: 0 | AG183: 0 | AH183: 0 | AI183: 0 | AM183: =IFERROR(VLOOKUP(F183,[1]Vendor!B:I,8,0),"") -> 
M184: 1900 | O184: 0 | P184: 0 | Q184: 0 | R184: 0 | S184: 0 | T184: 0 | U184: 0 | V184: 0 | W184: 0 | X184: 0 | Y184: 0 | Z184: 0 | AA184: 0 | AB184: 0 | AC184: 0 | AD184: 0 | AE184: 0 | AF184: 0 | AG184: 0 | AH184: 0 | AI184: 0 | AM184: =IFERROR(VLOOKUP(F184,[1]Vendor!B:I,8,0),"") -> 
M185: =IFERROR(YEAR(J185),"") -> 1900 | O185: =IF($M185=O$12,$N185,0) -> 0 | P185: 0 | Q185: 0 | R185: 0 | S185: 0 | T185: 0 | U185: 0 | V185: 0 | W185: 0 | X185: 0 | Y185: 0 | Z185: 0 | AA185: 0 | AB185: 0 | AC185: 0 | AD185: 0 | AE185: 0 | AF185: 0 | AG185: 0 | AH185: 0 | AI185: =Z185-Y185 -> 0 | AM185: =IFERROR(VLOOKUP(F185,[1]Vendor!B:I,8,0),"") -> 
M186: 1900 | N186: =IFERROR(I186/H186,"") ->  | O186: 0 | P186: 0 | Q186: 0 | R186: 0 | S186: 0 | T186: 0 | U186: 0 | V186: 0 | W186: 0 | X186: 0 | Y186: 0 | Z186: 0 | AA186: 0 | AB186: 0 | AC186: 0 | AD186: 0 | AE186: 0 | AF186: 0 | AG186: 0 | AH186: 0 | AI186: 0 | AM186: =IFERROR(VLOOKUP(F186,[1]Vendor!B:I,8,0),"") -> 
M187: 1900 | O187: 0 | P187: 0 | Q187: 0 | R187: 0 | S187: 0 | T187: 0 | U187: 0 | V187: 0 | W187: 0 | X187: 0 | Y187: 0 | Z187: 0 | AA187: 0 | AB187: 0 | AC187: 0 | AD187: 0 | AE187: 0 | AF187: 0 | AG187: 0 | AH187: 0 | AI187: 0 | AM187: =IFERROR(VLOOKUP(F187,[1]Vendor!B:I,8,0),"") -> 
M188: 1900 | O188: 0 | P188: 0 | Q188: 0 | R188: 0 | S188: 0 | T188: 0 | U188: 0 | V188: 0 | W188: 0 | X188: 0 | Y188: 0 | Z188: 0 | AA188: 0 | AB188: 0 | AC188: 0 | AD188: 0 | AE188: 0 | AF188: 0 | AG188: 0 | AH188: 0 | AI188: 0 | AM188: =IFERROR(VLOOKUP(F188,[1]Vendor!B:I,8,0),"") -> 
M189: 1900 | O189: 0 | P189: 0 | Q189: 0 | R189: 0 | S189: 0 | T189: 0 | U189: 0 | V189: 0 | W189: 0 | X189: 0 | Y189: 0 | Z189: 0 | AA189: 0 | AB189: 0 | AC189: 0 | AD189: 0 | AE189: 0 | AF189: 0 | AG189: 0 | AH189: 0 | AI189: 0 | AM189: =IFERROR(VLOOKUP(F189,[1]Vendor!B:I,8,0),"") -> 
M190: 1900 | O190: 0 | P190: 0 | Q190: 0 | R190: 0 | S190: 0 | T190: 0 | U190: 0 | V190: 0 | W190: 0 | X190: 0 | Y190: 0 | Z190: 0 | AA190: 0 | AB190: 0 | AC190: 0 | AD190: 0 | AE190: 0 | AF190: 0 | AG190: 0 | AH190: 0 | AI190: 0 | AM190: =IFERROR(VLOOKUP(F190,[1]Vendor!B:I,8,0),"") -> 
M191: 1900 | O191: 0 | P191: 0 | Q191: 0 | R191: 0 | S191: 0 | T191: 0 | U191: 0 | V191: 0 | W191: 0 | X191: 0 | Y191: 0 | Z191: 0 | AA191: 0 | AB191: 0 | AC191: 0 | AD191: 0 | AE191: 0 | AF191: 0 | AG191: 0 | AH191: 0 | AI191: 0 | AM191: =IFERROR(VLOOKUP(F191,[1]Vendor!B:I,8,0),"") -> 
M192: 1900 | O192: 0 | P192: 0 | Q192: 0 | R192: 0 | S192: 0 | T192: 0 | U192: 0 | V192: 0 | W192: 0 | X192: 0 | Y192: 0 | Z192: 0 | AA192: 0 | AB192: 0 | AC192: 0 | AD192: 0 | AE192: 0 | AF192: 0 | AG192: 0 | AH192: 0 | AI192: 0 | AM192: =IFERROR(VLOOKUP(F192,[1]Vendor!B:I,8,0),"") -> 
M193: 1900 | O193: 0 | P193: 0 | Q193: 0 | R193: 0 | S193: 0 | T193: 0 | U193: 0 | V193: 0 | W193: 0 | X193: 0 | Y193: 0 | Z193: 0 | AA193: 0 | AB193: 0 | AC193: 0 | AD193: 0 | AE193: 0 | AF193: 0 | AG193: 0 | AH193: 0 | AI193: 0 | AM193: =IFERROR(VLOOKUP(F193,[1]Vendor!B:I,8,0),"") -> 
M194: 1900 | O194: 0 | P194: 0 | Q194: 0 | R194: 0 | S194: 0 | T194: 0 | U194: 0 | V194: 0 | W194: 0 | X194: 0 | Y194: 0 | Z194: 0 | AA194: 0 | AB194: 0 | AC194: 0 | AD194: 0 | AE194: 0 | AF194: 0 | AG194: 0 | AH194: 0 | AI194: 0 | AM194: =IFERROR(VLOOKUP(F194,[1]Vendor!B:I,8,0),"") -> 
M195: 1900 | O195: 0 | P195: 0 | Q195: 0 | R195: 0 | S195: 0 | T195: 0 | U195: 0 | V195: 0 | W195: 0 | X195: 0 | Y195: 0 | Z195: 0 | AA195: 0 | AB195: 0 | AC195: 0 | AD195: 0 | AE195: 0 | AF195: 0 | AG195: 0 | AH195: 0 | AI195: 0 | AJ195: =IFERROR(AI195/Y195,"") ->  | AL195: =IFERROR(AK195/AA195,"") ->  | AM195: =IFERROR(VLOOKUP(F195,[1]Vendor!B:I,8,0),"") ->  | AO195: =IFERROR(AN195-AK195,"")/AK195 -> 
M196: 1900 | O196: 0 | P196: 0 | Q196: 0 | R196: 0 | S196: 0 | T196: 0 | U196: 0 | V196: 0 | W196: 0 | X196: 0 | Y196: 0 | Z196: 0 | AA196: 0 | AB196: 0 | AC196: 0 | AD196: 0 | AE196: 0 | AF196: 0 | AG196: 0 | AH196: 0 | AI196: 0 | AM196: =IFERROR(VLOOKUP(F196,[1]Vendor!B:I,8,0),"") -> 
M197: 1900 | O197: 0 | P197: 0 | Q197: 0 | R197: 0 | S197: 0 | T197: 0 | U197: 0 | V197: 0 | W197: 0 | X197: 0 | Y197: 0 | Z197: 0 | AA197: 0 | AB197: 0 | AC197: 0 | AD197: 0 | AE197: 0 | AF197: 0 | AG197: 0 | AH197: 0 | AI197: 0 | AM197: =IFERROR(VLOOKUP(F197,[1]Vendor!B:I,8,0),"") -> 
M198: 1900 | O198: 0 | P198: 0 | Q198: 0 | R198: 0 | S198: 0 | T198: 0 | U198: 0 | V198: 0 | W198: 0 | X198: 0 | Y198: 0 | Z198: 0 | AA198: 0 | AB198: 0 | AC198: 0 | AD198: 0 | AE198: 0 | AF198: 0 | AG198: 0 | AH198: 0 | AI198: 0 | AM198: =IFERROR(VLOOKUP(F198,[1]Vendor!B:I,8,0),"") -> 
M199: 1900 | O199: 0 | P199: 0 | Q199: 0 | R199: 0 | S199: 0 | T199: 0 | U199: 0 | V199: 0 | W199: 0 | X199: 0 | Y199: 0 | Z199: 0 | AA199: 0 | AB199: 0 | AC199: 0 | AD199: 0 | AE199: 0 | AF199: 0 | AG199: 0 | AH199: 0 | AI199: 0 | AM199: =IFERROR(VLOOKUP(F199,[1]Vendor!B:I,8,0),"") -> 
M200: 1900 | O200: 0 | P200: 0 | Q200: 0 | R200: 0 | S200: 0 | T200: 0 | U200: 0 | V200: 0 | W200: 0 | X200: =IF($M200=X$12,$N200,0)+W200*X$11+W200 -> 0 | Y200: 0 | Z200: 0 | AA200: 0 | AB200: 0 | AC200: 0 | AD200: 0 | AE200: 0 | AF200: 0 | AG200: 0 | AH200: 0 | AI200: 0 | AM200: =IFERROR(VLOOKUP(F200,[1]Vendor!B:I,8,0),"") -> 
M201: 1900 | O201: 0 | P201: 0 | Q201: 0 | R201: 0 | S201: 0 | T201: 0 | U201: 0 | V201: 0 | W201: 0 | X201: 0 | Y201: 0 | Z201: 0 | AA201: 0 | AB201: 0 | AC201: 0 | AD201: 0 | AE201: 0 | AF201: 0 | AG201: 0 | AH201: 0 | AI201: 0 | AM201: =IFERROR(VLOOKUP(F201,[1]Vendor!B:I,8,0),"") -> 
M202: 1900 | O202: 0 | P202: 0 | Q202: 0 | R202: 0 | S202: 0 | T202: 0 | U202: 0 | V202: 0 | W202: 0 | X202: 0 | Y202: 0 | Z202: 0 | AA202: 0 | AB202: 0 | AC202: 0 | AD202: 0 | AE202: 0 | AF202: 0 | AG202: 0 | AH202: 0 | AI202: 0 | AM202: =IFERROR(VLOOKUP(F202,[1]Vendor!B:I,8,0),"") -> 
M203: 1900 | O203: 0 | P203: 0 | Q203: 0 | R203: 0 | S203: 0 | T203: 0 | U203: 0 | V203: 0 | W203: 0 | X203: 0 | Y203: 0 | Z203: 0 | AA203: 0 | AB203: 0 | AC203: 0 | AD203: 0 | AE203: 0 | AF203: 0 | AG203: 0 | AH203: 0 | AI203: 0 | AM203: =IFERROR(VLOOKUP(F203,[1]Vendor!B:I,8,0),"") -> 
... 2047 more rows

Sheet Workings Other (hidden)
A1: ITEMS BELOW ARE 100% STEEL
O2: Inflation 7,8% 2022
Q5: Steel | R5: Inflation
R6: 1
N8: Copper | Q8: =5%*R6 -> 5% | R8: =7%*R6 -> 7% | S8: =4%*R6 -> 4% | T8: =-7%*R6 -> -7% | U8: =13%*R6 -> 13% | V8: =25%*R6 -> 25% | W8: =-8%*R6 -> -8% | X8: 0% | Y8: =25%*R6 -> 25% | Z8: =33%*R6 -> 33% | AA8: =20%*R6 -> 20% | AB8: =20%*R6 -> 20% | AC8: =20%*R6 -> 20%
N9: Steel | Q9: =-1%*$Q$6 -> 0% | R9: =17%*Q6 -> 0% | S9: =3%*Q6 -> 0% | T9: =-17%*Q6 -> 0% | U9: =36%*Q6 -> 0% | V9: =11%*$Q$6 -> 0% | W9: =5%*Q6 -> 0% | X9: =-7%*Q6 -> 0.00% | Y9: =20%*Q6 -> 0.00% | Z9: =56%*Q6 -> 0.00% | AA9: =10%*Q6 -> 0.00% | AB9: =AA9 -> 0.00% | AC9: =AB9 -> 0.00%
N10: Inflation | O10: =7%*$R$6 -> 7% | P10: =7%*$R$6 -> 7% | Q10: 7% | R10: 7% | S10: 7% | T10: 7% | U10: 7% | V10: =7%*$R$6 -> 7% | W10: =7%*$R$6 -> 7% | X10: =4.4%*$R$6 -> 4.40% | Y10: =3.1%*$R$6 -> 3.10% | Z10: =4.41%*$R$6 -> 4.41% | AA10: =7.8%*$R$6 -> 7.80% | AB10: =7.8%*$R$6 -> 7.80% | AC10: =7.8%*$R$6 -> 7.80% | AD10: =7.8%*$R$6 -> 7.80% | AE10: 7.80% | AF10: 7.80% | AG10: 7.80% | AH10: 7.80%
N11: total escalation | O11: =O10 -> 7% | P11: =P10 -> 7% | Q11: 7% | R11: 7% | S11: =S10 -> 7% | T11: 7% | U11: 7% | V11: 7% | W11: 7% | X11: 4% | Y11: 3% | Z11: 4% | AA11: 8% | AB11: 8% | AC11: 8% | AD11: 8% | AE11: 8% | AF11: 8% | AG11: 8% | AH11: 8% | AK11: 1st Year | AN11: 2nd Year
A12: Purch.Doc. | B12: Material | C12: Plant | D12: Short Text | E12: GR-IV | F12: Vendor | G12: I | H12: Quantity | I12: Net Order Value | J12: Doc. Date | K12: OUn | L12: Crcy | M12: Year | N12: Unit / Price | O12: 2010 | P12: 2011 | Q12: 2012 | R12: 2013 | S12: 2014 | T12: 2015 | U12: 2016 | V12: 2017 | W12: 2018 | X12: 2019 | Y12: 2020 | Z12: 2021 | AA12: 2022 | AB12: 2023 | AC12: 2024 | AD12: 2025 | AE12: 2026 | AF12: 2027 | AG12: 2028 | AH12: 2029 | AK12: Vendor Price | AM12: Supplier | AN12: Vendor Price | AS12: % Increase
A13: 4502936754 | B13: 068019652 | C13: 1407 | D13: PROVIDE, SERVICE;DESIGN VERIFICATION | F13: 0000531617 | H13: 1 | I13: 20000 | J13: 2021-04-06 | K13: EA | L13: ZAR | M13: =IFERROR(YEAR(J13),"") -> 2021 | N13: =IFERROR(I13/H13,"") -> R 20,000.00 | O13: =IF($M13=O$12,$N13,0) -> 0 | P13: =IF($M13=P$12,$N13,0)+O13*P$11+O13 -> 0 | Q13: 0 | R13: 0 | S13: 0 | T13: 0 | U13: 0 | V13: 0 | W13: 0 | X13: 0 | Y13: 0 | Z13: R 20,000.00 | AA13: R 21,560.00 | AB13: R 23,241.68 | AC13: R 25,054.53 | AD13: R 27,008.78 | AE13: R 29,115.47 | AF13: =IF($M13=AF$12,$N13,0)+AE13*AF$11+AE13 -> R 31,386.48 | AG13: R 33,834.62 | AH13: R 36,473.72 | AI13: =Z13-Y13 -> R 20,000.00 | AJ13: =IFERROR(AI13/Y13,"") ->  | AL13: =IFERROR(AK13-Z13,"")/Z13 -> -100% | AM13: =IFERROR(VLOOKUP(F13,[1]Vendor!B:I,8,0),"") ->  | AO13: =IFERROR(AN13-AK13,"")/AK13 -> 
A14: 4502779740 | B14: 068019643 | C14: 1407 | D14: PROVIDE SERVICE;VERIFY MAT AT SUPPLIER | F14: 0000531617 | H14: 4 | I14: 10264 | J14: 2019-03-28 | K14: EA | L14: ZAR | M14: 2019 | N14: =IFERROR(I14/H14,"") -> R 2,566.00 | O14: 0 | P14: 0 | Q14: =IF($M14=Q$12,$N14,0)+P14*Q$11+P14 -> 0 | R14: 0 | S14: 0 | T14: 0 | U14: 0 | V14: 0 | W14: 0 | X14: R 2,566.00 | Y14: R 2,645.55 | Z14: R 2,762.21 | AA14: R 2,977.67 | AB14: R 3,209.93 | AC14: R 3,460.30 | AD14: R 3,730.20 | AE14: R 4,021.16 | AF14: R 4,334.81 | AG14: R 4,672.92 | AH14: R 5,037.41 | AI14: R 116.67 | AJ14: 4% | AL14: -100% | AM14: =IFERROR(VLOOKUP(F14,[1]Vendor!B:I,8,0),"") ->  | AR14: 150 | AS14: =(AR14-Z14)/AR14 -> -1741%
A15: 4502858734 | B15: 068019634 | C15: 1407 | D15: INSPECT TANK;DEFECT DETECT,MARK OUT | F15: 0000531617 | H15: 20 | I15: 10000 | J15: 2020-01-27 | K15: EA | L15: ZAR | M15: 2020 | N15: R 500.00 | O15: 0 | P15: 0 | Q15: 0 | R15: 0 | S15: 0 | T15: 0 | U15: 0 | V15: 0 | W15: 0 | X15: 0 | Y15: R 500.00 | Z15: R 522.05 | AA15: R 562.77 | AB15: R 606.67 | AC15: R 653.99 | AD15: R 705.00 | AE15: R 759.99 | AF15: R 819.27 | AG15: R 883.17 | AH15: R 952.06 | AI15: R 22.05 | AJ15: 4% | AL15: -100% | AM15: =IFERROR(VLOOKUP(F15,[1]Vendor!B:I,8,0),"") ->  | AQ15: Price breakdown
A16: 4502930205 | B16: 068019647 | C16: 1405 | D16: MANAGE, COST;TRAVEL,TRICHARDT;260 KM | F16: 0000531617 | H16: 1640 | I16: 8692 | J16: 2021-03-02 | K16: EA | L16: ZAR | M16: 2021 | N16: R 5.30 | O16: 0 | P16: 0 | Q16: 0 | R16: 0 | S16: 0 | T16: 0 | U16: 0 | V16: 0 | W16: 0 | X16: 0 | Y16: 0 | Z16: R 5.30 | AA16: R 5.71 | AB16: R 6.16 | AC16: R 6.64 | AD16: R 7.16 | AE16: R 7.72 | AF16: R 8.32 | AG16: R 8.97 | AH16: R 9.67 | AI16: R 5.30 | AL16: -100% | AM16: =IFERROR(VLOOKUP(F16,[1]Vendor!B:I,8,0),"") ->  | AR16: 130 | AS16: =(AR16-Z16)/AR16 -> 96%
M17: 1900 | O17: 0 | P17: 0 | Q17: 0 | R17: 0 | S17: 0 | T17: 0 | U17: 0 | V17: 0 | W17: 0 | X17: 0 | Y17: 0 | Z17: 0 | AA17: 0 | AB17: 0 | AC17: 0 | AD17: 0 | AE17: 0 | AF17: 0 | AG17: 0 | AH17: 0 | AI17: 0 | AM17: =IFERROR(VLOOKUP(F17,[1]Vendor!B:I,8,0),"") ->  | AR17: 780 | AS17: =(AR17-Z17)/AR17 -> 100%
M18: 1900 | O18: 0 | P18: 0 | Q18: 0 | R18: 0 | S18: 0 | T18: 0 | U18: 0 | V18: 0 | W18: 0 | X18: 0 | Y18: 0 | Z18: 0 | AA18: 0 | AB18: 0 | AC18: 0 | AD18: 0 | AE18: 0 | AF18: 0 | AG18: 0 | AH18: 0 | AI18: 0 | AM18: =IFERROR(VLOOKUP(F18,[1]Vendor!B:I,8,0),"") -> 
M19: 1900 | O19: 0 | P19: 0 | Q19: 0 | R19: 0 | S19: 0 | T19: 0 | U19: 0 | V19: 0 | W19: 0 | X19: 0 | Y19: 0 | Z19: 0 | AA19: 0 | AB19: 0 | AC19: 0 | AD19: 0 | AE19: 0 | AF19: 0 | AG19: 0 | AH19: 0 | AI19: 0 | AM19: =IFERROR(VLOOKUP(F19,[1]Vendor!B:I,8,0),"") ->  | AQ19: Can give a bettere price | AR19: 940 | AS19: =(AR19-Z19)/AR19 -> 100%
M20: 1900 | O20: 0 | P20: 0 | Q20: 0 | R20: 0 | S20: 0 | T20: 0 | U20: 0 | V20: 0 | W20: 0 | X20: 0 | Y20: 0 | Z20: 0 | AA20: 0 | AB20: 0 | AC20: 0 | AD20: 0 | AE20: 0 | AF20: 0 | AG20: 0 | AH20: 0 | AI20: 0 | AJ20: =IFERROR(AI20/Y20,"") ->  | AL20: =IFERROR(AK20-Z20,"")/Z20 ->  | AM20: =IFERROR(VLOOKUP(F20,[1]Vendor!B:I,8,0),"") ->  | AO20: =IFERROR(AN20-AK20,"")/AK20 -> 
M21: 1900 | O21: 0 | P21: 0 | Q21: 0 | R21: 0 | S21: 0 | T21: 0 | U21: 0 | V21: 0 | W21: 0 | X21: 0 | Y21: 0 | Z21: 0 | AA21: 0 | AB21: 0 | AC21: 0 | AD21: 0 | AE21: 0 | AF21: 0 | AG21: 0 | AH21: 0 | AI21: 0 | AJ21: =IFERROR(AI21/Y21,"") ->  | AL21: =IFERROR(AK21-Z21,"")/Z21 ->  | AM21: =IFERROR(VLOOKUP(F21,[1]Vendor!B:I,8,0),"") ->  | AO21: =IFERROR(AN21-AK21,"")/AK21 -> 
M22: 1900 | O22: 0 | P22: 0 | Q22: 0 | R22: 0 | S22: 0 | T22: 0 | U22: 0 | V22: 0 | W22: 0 | X22: 0 | Y22: 0 | Z22: 0 | AA22: 0 | AB22: 0 | AC22: 0 | AD22: 0 | AE22: 0 | AF22: 0 | AG22: 0 | AH22: 0 | AI22: 0 | AJ22: =IFERROR(AI22/Y22,"") ->  | AL22: =IFERROR(AK22/AA22,"") ->  | AM22: =IFERROR(VLOOKUP(F22,[1]Vendor!B:I,8,0),"") ->  | AO22: =IFERROR(AN22-AK22,"")/AK22 -> 
M23: 1900 | O23: 0 | P23: 0 | Q23: 0 | R23: 0 | S23: 0 | T23: 0 | U23: 0 | V23: 0 | W23: 0 | X23: 0 | Y23: 0 | Z23: 0 | AA23: 0 | AB23: 0 | AC23: 0 | AD23: 0 | AE23: 0 | AF23: 0 | AG23: 0 | AH23: 0 | AI23: 0 | AM23: =IFERROR(VLOOKUP(F23,[1]Vendor!B:I,8,0),"") -> 
M24: 1900 | O24: 0 | P24: 0 | Q24: 0 | R24: 0 | S24: 0 | T24: 0 | U24: 0 | V24: 0 | W24: 0 | X24: 0 | Y24: 0 | Z24: 0 | AA24: 0 | AB24: 0 | AC24: 0 | AD24: 0 | AE24: 0 | AF24: 0 | AG24: 0 | AH24: 0 | AI24: 0 | AM24: =IFERROR(VLOOKUP(F24,[1]Vendor!B:I,8,0),"") -> 
M25: 1900 | O25: 0 | P25: 0 | Q25: 0 | R25: 0 | S25: 0 | T25: 0 | U25: 0 | V25: 0 | W25: 0 | X25: 0 | Y25: 0 | Z25: 0 | AA25: 0 | AB25: 0 | AC25: 0 | AD25: 0 | AE25: 0 | AF25: 0 | AG25: 0 | AH25: 0 | AI25: 0 | AM25: =IFERROR(VLOOKUP(F25,[1]Vendor!B:I,8,0),"") -> 
M26: 1900 | O26: 0 | P26: 0 | Q26: 0 | R26: 0 | S26: 0 | T26: 0 | U26: 0 | V26: 0 | W26: 0 | X26: 0 | Y26: 0 | Z26: 0 | AA26: 0 | AB26: 0 | AC26: 0 | AD26: 0 | AE26: 0 | AF26: 0 | AG26: 0 | AH26: 0 | AI26: 0 | AM26: =IFERROR(VLOOKUP(F26,[1]Vendor!B:I,8,0),"") -> 
M27: 1900 | O27: 0 | P27: =IF($M27=P$12,$N27,0)+O27*P$11+O27 -> 0 | Q27: 0 | R27: 0 | S27: 0 | T27: 0 | U27: 0 | V27: 0 | W27: 0 | X27: 0 | Y27: 0 | Z27: 0 | AA27: 0 | AB27: 0 | AC27: 0 | AD27: 0 | AE27: 0 | AF27: =IF($M27=AF$12,$N27,0)+AE27*AF$11+AE27 -> 0 | AG27: 0 | AH27: 0 | AI27: 0 | AM27: =IFERROR(VLOOKUP(F27,[1]Vendor!B:I,8,0),"") -> 
M28: 1900 | O28: 0 | P28: 0 | Q28: 0 | R28: 0 | S28: 0 | T28: 0 | U28: 0 | V28: 0 | W28: 0 | X28: 0 | Y28: 0 | Z28: 0 | AA28: 0 | AB28: 0 | AC28: 0 | AD28: 0 | AE28: 0 | AF28: 0 | AG28: 0 | AH28: 0 | AI28: 0 | AM28: =IFERROR(VLOOKUP(F28,[1]Vendor!B:I,8,0),"") -> 
M29: 1900 | O29: 0 | P29: 0 | Q29: 0 | R29: 0 | S29: 0 | T29: 0 | U29: 0 | V29: 0 | W29: 0 | X29: 0 | Y29: 0 | Z29: 0 | AA29: 0 | AB29: 0 | AC29: 0 | AD29: 0 | AE29: 0 | AF29: 0 | AG29: 0 | AH29: 0 | AI29: 0 | AM29: =IFERROR(VLOOKUP(F29,[1]Vendor!B:I,8,0),"") -> 
M30: 1900 | O30: 0 | P30: 0 | Q30: 0 | R30: 0 | S30: 0 | T30: 0 | U30: 0 | V30: 0 | W30: 0 | X30: 0 | Y30: 0 | Z30: 0 | AA30: 0 | AB30: 0 | AC30: 0 | AD30: 0 | AE30: 0 | AF30: 0 | AG30: 0 | AH30: 0 | AI30: 0 | AM30: =IFERROR(VLOOKUP(F30,[1]Vendor!B:I,8,0),"") -> 
M31: 1900 | O31: 0 | P31: 0 | Q31: 0 | R31: 0 | S31: 0 | T31: 0 | U31: 0 | V31: 0 | W31: 0 | X31: 0 | Y31: 0 | Z31: 0 | AA31: 0 | AB31: 0 | AC31: 0 | AD31: 0 | AE31: 0 | AF31: 0 | AG31: 0 | AH31: 0 | AI31: 0 | AM31: =IFERROR(VLOOKUP(F31,[1]Vendor!B:I,8,0),"") -> 
M32: 1900 | O32: 0 | P32: 0 | Q32: 0 | R32: 0 | S32: 0 | T32: 0 | U32: 0 | V32: 0 | W32: 0 | X32: 0 | Y32: 0 | Z32: 0 | AA32: 0 | AB32: 0 | AC32: 0 | AD32: 0 | AE32: 0 | AF32: 0 | AG32: 0 | AH32: 0 | AI32: 0 | AM32: =IFERROR(VLOOKUP(F32,[1]Vendor!B:I,8,0),"") -> 
M33: 1900 | O33: 0 | P33: 0 | Q33: 0 | R33: 0 | S33: 0 | T33: 0 | U33: 0 | V33: 0 | W33: 0 | X33: 0 | Y33: 0 | Z33: 0 | AA33: 0 | AB33: 0 | AC33: 0 | AD33: 0 | AE33: 0 | AF33: 0 | AG33: 0 | AH33: 0 | AI33: 0 | AM33: =IFERROR(VLOOKUP(F33,[1]Vendor!B:I,8,0),"") -> 
M34: 1900 | O34: 0 | P34: 0 | Q34: 0 | R34: 0 | S34: 0 | T34: 0 | U34: 0 | V34: 0 | W34: 0 | X34: 0 | Y34: 0 | Z34: 0 | AA34: 0 | AB34: 0 | AC34: 0 | AD34: 0 | AE34: 0 | AF34: 0 | AG34: 0 | AH34: 0 | AI34: 0 | AM34: =IFERROR(VLOOKUP(F34,[1]Vendor!B:I,8,0),"") -> 
M35: 1900 | O35: 0 | P35: 0 | Q35: 0 | R35: 0 | S35: 0 | T35: 0 | U35: 0 | V35: 0 | W35: 0 | X35: 0 | Y35: 0 | Z35: 0 | AA35: 0 | AB35: 0 | AC35: 0 | AD35: 0 | AE35: 0 | AF35: 0 | AG35: 0 | AH35: 0 | AI35: 0 | AM35: =IFERROR(VLOOKUP(F35,[1]Vendor!B:I,8,0),"") -> 
M36: 1900 | O36: 0 | P36: 0 | Q36: 0 | R36: 0 | S36: 0 | T36: 0 | U36: 0 | V36: 0 | W36: 0 | X36: 0 | Y36: 0 | Z36: 0 | AA36: 0 | AB36: 0 | AC36: 0 | AD36: 0 | AE36: 0 | AF36: 0 | AG36: 0 | AH36: 0 | AI36: 0 | AM36: =IFERROR(VLOOKUP(F36,[1]Vendor!B:I,8,0),"") -> 
M37: 1900 | O37: 0 | P37: 0 | Q37: 0 | R37: 0 | S37: 0 | T37: 0 | U37: 0 | V37: 0 | W37: 0 | X37: 0 | Y37: 0 | Z37: 0 | AA37: 0 | AB37: 0 | AC37: 0 | AD37: 0 | AE37: 0 | AF37: 0 | AG37: 0 | AH37: 0 | AI37: 0 | AM37: =IFERROR(VLOOKUP(F37,[1]Vendor!B:I,8,0),"") -> 
M38: 1900 | O38: 0 | P38: 0 | Q38: 0 | R38: 0 | S38: 0 | T38: 0 | U38: 0 | V38: 0 | W38: 0 | X38: 0 | Y38: 0 | Z38: 0 | AA38: 0 | AB38: 0 | AC38: 0 | AD38: 0 | AE38: 0 | AF38: 0 | AG38: 0 | AH38: 0 | AI38: 0 | AM38: =IFERROR(VLOOKUP(F38,[1]Vendor!B:I,8,0),"") -> 
M39: 1900 | O39: 0 | P39: 0 | Q39: 0 | R39: 0 | S39: 0 | T39: 0 | U39: 0 | V39: 0 | W39: 0 | X39: 0 | Y39: 0 | Z39: 0 | AA39: 0 | AB39: 0 | AC39: 0 | AD39: 0 | AE39: 0 | AF39: 0 | AG39: 0 | AH39: 0 | AI39: 0 | AM39: =IFERROR(VLOOKUP(F39,[1]Vendor!B:I,8,0),"") -> 
M40: 1900 | O40: 0 | P40: 0 | Q40: 0 | R40: 0 | S40: 0 | T40: 0 | U40: 0 | V40: 0 | W40: 0 | X40: 0 | Y40: 0 | Z40: 0 | AA40: 0 | AB40: 0 | AC40: 0 | AD40: 0 | AE40: 0 | AF40: 0 | AG40: 0 | AH40: 0 | AI40: 0 | AM40: =IFERROR(VLOOKUP(F40,[1]Vendor!B:I,8,0),"") -> 
M41: 1900 | O41: 0 | P41: 0 | Q41: 0 | R41: 0 | S41: 0 | T41: 0 | U41: 0 | V41: 0 | W41: 0 | X41: 0 | Y41: 0 | Z41: 0 | AA41: 0 | AB41: 0 | AC41: 0 | AD41: 0 | AE41: 0 | AF41: 0 | AG41: 0 | AH41: 0 | AI41: 0 | AM41: =IFERROR(VLOOKUP(F41,[1]Vendor!B:I,8,0),"") -> 
M42: 1900 | O42: 0 | P42: 0 | Q42: 0 | R42: 0 | S42: 0 | T42: 0 | U42: 0 | V42: 0 | W42: 0 | X42: 0 | Y42: 0 | Z42: 0 | AA42: 0 | AB42: 0 | AC42: 0 | AD42: 0 | AE42: 0 | AF42: 0 | AG42: 0 | AH42: 0 | AI42: 0 | AM42: =IFERROR(VLOOKUP(F42,[1]Vendor!B:I,8,0),"") -> 
M43: 1900 | O43: 0 | P43: =IF($M43=P$12,$N43,0)+O43*P$11+O43 -> 0 | Q43: 0 | R43: 0 | S43: 0 | T43: 0 | U43: 0 | V43: 0 | W43: 0 | X43: 0 | Y43: 0 | Z43: 0 | AA43: 0 | AB43: 0 | AC43: 0 | AD43: 0 | AE43: 0 | AF43: =IF($M43=AF$12,$N43,0)+AE43*AF$11+AE43 -> 0 | AG43: 0 | AH43: 0 | AI43: 0 | AM43: =IFERROR(VLOOKUP(F43,[1]Vendor!B:I,8,0),"") -> 
M44: 1900 | O44: 0 | P44: 0 | Q44: 0 | R44: 0 | S44: 0 | T44: 0 | U44: 0 | V44: 0 | W44: 0 | X44: 0 | Y44: 0 | Z44: 0 | AA44: 0 | AB44: 0 | AC44: 0 | AD44: 0 | AE44: 0 | AF44: 0 | AG44: 0 | AH44: 0 | AI44: 0 | AM44: =IFERROR(VLOOKUP(F44,[1]Vendor!B:I,8,0),"") -> 
M45: 1900 | O45: 0 | P45: 0 | Q45: 0 | R45: 0 | S45: 0 | T45: 0 | U45: 0 | V45: 0 | W45: 0 | X45: 0 | Y45: 0 | Z45: 0 | AA45: 0 | AB45: 0 | AC45: 0 | AD45: 0 | AE45: 0 | AF45: 0 | AG45: 0 | AH45: 0 | AI45: 0 | AM45: =IFERROR(VLOOKUP(F45,[1]Vendor!B:I,8,0),"") -> 
M46: 1900 | O46: 0 | P46: 0 | Q46: 0 | R46: 0 | S46: 0 | T46: 0 | U46: 0 | V46: 0 | W46: 0 | X46: 0 | Y46: 0 | Z46: 0 | AA46: 0 | AB46: 0 | AC46: 0 | AD46: 0 | AE46: 0 | AF46: 0 | AG46: 0 | AH46: 0 | AI46: 0 | AM46: =IFERROR(VLOOKUP(F46,[1]Vendor!B:I,8,0),"") -> 
M47: 1900 | O47: 0 | P47: 0 | Q47: 0 | R47: 0 | S47: 0 | T47: 0 | U47: 0 | V47: 0 | W47: 0 | X47: 0 | Y47: 0 | Z47: 0 | AA47: 0 | AB47: 0 | AC47: 0 | AD47: 0 | AE47: 0 | AF47: 0 | AG47: 0 | AH47: 0 | AI47: 0 | AM47: =IFERROR(VLOOKUP(F47,[1]Vendor!B:I,8,0),"") -> 
M48: 1900 | O48: 0 | P48: 0 | Q48: 0 | R48: 0 | S48: 0 | T48: 0 | U48: 0 | V48: 0 | W48: 0 | X48: 0 | Y48: 0 | Z48: 0 | AA48: 0 | AB48: 0 | AC48: 0 | AD48: 0 | AE48: 0 | AF48: 0 | AG48: 0 | AH48: 0 | AI48: 0 | AM48: =IFERROR(VLOOKUP(F48,[1]Vendor!B:I,8,0),"") -> 
M49: 1900 | O49: 0 | P49: 0 | Q49: 0 | R49: 0 | S49: 0 | T49: 0 | U49: 0 | V49: 0 | W49: 0 | X49: 0 | Y49: 0 | Z49: 0 | AA49: 0 | AB49: 0 | AC49: 0 | AD49: 0 | AE49: 0 | AF49: 0 | AG49: 0 | AH49: 0 | AI49: 0 | AM49: =IFERROR(VLOOKUP(F49,[1]Vendor!B:I,8,0),"") -> 
M50: 1900 | O50: 0 | P50: 0 | Q50: 0 | R50: 0 | S50: 0 | T50: 0 | U50: 0 | V50: 0 | W50: 0 | X50: 0 | Y50: 0 | Z50: 0 | AA50: 0 | AB50: 0 | AC50: 0 | AD50: 0 | AE50: 0 | AF50: 0 | AG50: 0 | AH50: 0 | AI50: 0 | AM50: =IFERROR(VLOOKUP(F50,[1]Vendor!B:I,8,0),"") -> 
M51: 1900 | O51: 0 | P51: 0 | Q51: 0 | R51: 0 | S51: 0 | T51: 0 | U51: 0 | V51: 0 | W51: 0 | X51: 0 | Y51: 0 | Z51: 0 | AA51: 0 | AB51: 0 | AC51: 0 | AD51: 0 | AE51: 0 | AF51: 0 | AG51: 0 | AH51: 0 | AI51: 0 | AM51: =IFERROR(VLOOKUP(F51,[1]Vendor!B:I,8,0),"") -> 
M52: 1900 | O52: 0 | P52: 0 | Q52: 0 | R52: 0 | S52: 0 | T52: 0 | U52: 0 | V52: 0 | W52: 0 | X52: 0 | Y52: 0 | Z52: 0 | AA52: 0 | AB52: 0 | AC52: 0 | AD52: 0 | AE52: 0 | AF52: 0 | AG52: 0 | AH52: 0 | AI52: 0 | AM52: =IFERROR(VLOOKUP(F52,[1]Vendor!B:I,8,0),"") -> 
M53: 1900 | O53: 0 | P53: 0 | Q53: 0 | R53: 0 | S53: 0 | T53: 0 | U53: 0 | V53: 0 | W53: 0 | X53: 0 | Y53: 0 | Z53: 0 | AA53: 0 | AB53: 0 | AC53: 0 | AD53: 0 | AE53: 0 | AF53: 0 | AG53: 0 | AH53: 0 | AI53: 0 | AM53: =IFERROR(VLOOKUP(F53,[1]Vendor!B:I,8,0),"") -> 
M54: 1900 | O54: 0 | P54: 0 | Q54: 0 | R54: 0 | S54: 0 | T54: 0 | U54: 0 | V54: 0 | W54: 0 | X54: 0 | Y54: 0 | Z54: 0 | AA54: 0 | AB54: 0 | AC54: 0 | AD54: 0 | AE54: 0 | AF54: 0 | AG54: 0 | AH54: 0 | AI54: 0 | AM54: =IFERROR(VLOOKUP(F54,[1]Vendor!B:I,8,0),"") -> 
M55: 1900 | O55: 0 | P55: 0 | Q55: 0 | R55: 0 | S55: 0 | T55: 0 | U55: 0 | V55: 0 | W55: 0 | X55: 0 | Y55: 0 | Z55: 0 | AA55: 0 | AB55: 0 | AC55: 0 | AD55: 0 | AE55: 0 | AF55: 0 | AG55: 0 | AH55: 0 | AI55: 0 | AM55: =IFERROR(VLOOKUP(F55,[1]Vendor!B:I,8,0),"") -> 
M56: 1900 | O56: 0 | P56: 0 | Q56: 0 | R56: 0 | S56: 0 | T56: 0 | U56: 0 | V56: 0 | W56: 0 | X56: 0 | Y56: 0 | Z56: 0 | AA56: 0 | AB56: 0 | AC56: 0 | AD56: 0 | AE56: 0 | AF56: 0 | AG56: 0 | AH56: 0 | AI56: 0 | AM56: =IFERROR(VLOOKUP(F56,[1]Vendor!B:I,8,0),"") -> 
M57: 1900 | O57: 0 | P57: 0 | Q57: 0 | R57: 0 | S57: 0 | T57: 0 | U57: 0 | V57: 0 | W57: 0 | X57: 0 | Y57: 0 | Z57: 0 | AA57: 0 | AB57: 0 | AC57: 0 | AD57: 0 | AE57: 0 | AF57: 0 | AG57: 0 | AH57: 0 | AI57: 0 | AM57: =IFERROR(VLOOKUP(F57,[1]Vendor!B:I,8,0),"") -> 
M58: 1900 | O58: 0 | P58: 0 | Q58: 0 | R58: 0 | S58: 0 | T58: 0 | U58: 0 | V58: 0 | W58: 0 | X58: 0 | Y58: 0 | Z58: 0 | AA58: 0 | AB58: 0 | AC58: 0 | AD58: 0 | AE58: =IF($M58=AE$12,$N58,0)+AD58*AE$11+AD58 -> 0 | AF58: 0 | AG58: 0 | AH58: 0 | AI58: 0 | AM58: =IFERROR(VLOOKUP(F58,[1]Vendor!B:I,8,0),"") -> 
M59: 1900 | O59: 0 | P59: =IF($M59=P$12,$N59,0)+O59*P$11+O59 -> 0 | Q59: 0 | R59: 0 | S59: 0 | T59: 0 | U59: 0 | V59: 0 | W59: 0 | X59: 0 | Y59: 0 | Z59: 0 | AA59: 0 | AB59: 0 | AC59: 0 | AD59: 0 | AE59: 0 | AF59: 0 | AG59: 0 | AH59: 0 | AI59: 0 | AM59: =IFERROR(VLOOKUP(F59,[1]Vendor!B:I,8,0),"") -> 
M60: 1900 | O60: 0 | P60: 0 | Q60: 0 | R60: 0 | S60: 0 | T60: 0 | U60: 0 | V60: 0 | W60: 0 | X60: 0 | Y60: 0 | Z60: 0 | AA60: 0 | AB60: 0 | AC60: 0 | AD60: 0 | AE60: 0 | AF60: 0 | AG60: 0 | AH60: 0 | AI60: 0 | AM60: =IFERROR(VLOOKUP(F60,[1]Vendor!B:I,8,0),"") -> 
M61: 1900 | O61: 0 | P61: 0 | Q61: 0 | R61: 0 | S61: 0 | T61: 0 | U61: 0 | V61: 0 | W61: 0 | X61: 0 | Y61: 0 | Z61: 0 | AA61: 0 | AB61: 0 | AC61: 0 | AD61: 0 | AE61: 0 | AF61: 0 | AG61: 0 | AH61: 0 | AI61: 0 | AM61: =IFERROR(VLOOKUP(F61,[1]Vendor!B:I,8,0),"") -> 
M62: 1900 | O62: 0 | P62: 0 | Q62: 0 | R62: 0 | S62: 0 | T62: 0 | U62: 0 | V62: 0 | W62: 0 | X62: 0 | Y62: 0 | Z62: 0 | AA62: 0 | AB62: 0 | AC62: 0 | AD62: 0 | AE62: 0 | AF62: 0 | AG62: 0 | AH62: 0 | AI62: 0 | AM62: =IFERROR(VLOOKUP(F62,[1]Vendor!B:I,8,0),"") -> 
M63: 1900 | O63: 0 | P63: 0 | Q63: 0 | R63: 0 | S63: 0 | T63: 0 | U63: 0 | V63: 0 | W63: 0 | X63: 0 | Y63: 0 | Z63: 0 | AA63: 0 | AB63: 0 | AC63: 0 | AD63: 0 | AE63: 0 | AF63: 0 | AG63: 0 | AH63: 0 | AI63: 0 | AM63: =IFERROR(VLOOKUP(F63,[1]Vendor!B:I,8,0),"") -> 
M64: 1900 | O64: 0 | P64: 0 | Q64: 0 | R64: 0 | S64: 0 | T64: 0 | U64: 0 | V64: 0 | W64: 0 | X64: 0 | Y64: 0 | Z64: 0 | AA64: 0 | AB64: 0 | AC64: 0 | AD64: 0 | AE64: 0 | AF64: 0 | AG64: 0 | AH64: 0 | AI64: 0 | AM64: =IFERROR(VLOOKUP(F64,[1]Vendor!B:I,8,0),"") -> 
M65: 1900 | O65: 0 | P65: 0 | Q65: 0 | R65: 0 | S65: 0 | T65: 0 | U65: 0 | V65: 0 | W65: 0 | X65: 0 | Y65: 0 | Z65: 0 | AA65: 0 | AB65: 0 | AC65: 0 | AD65: 0 | AE65: 0 | AF65: 0 | AG65: 0 | AH65: 0 | AI65: 0 | AM65: =IFERROR(VLOOKUP(F65,[1]Vendor!B:I,8,0),"") -> 
M66: 1900 | O66: 0 | P66: 0 | Q66: 0 | R66: 0 | S66: 0 | T66: 0 | U66: 0 | V66: 0 | W66: 0 | X66: 0 | Y66: 0 | Z66: 0 | AA66: 0 | AB66: 0 | AC66: 0 | AD66: 0 | AE66: 0 | AF66: 0 | AG66: 0 | AH66: 0 | AI66: 0 | AM66: =IFERROR(VLOOKUP(F66,[1]Vendor!B:I,8,0),"") -> 
M67: 1900 | O67: 0 | P67: 0 | Q67: 0 | R67: 0 | S67: 0 | T67: 0 | U67: 0 | V67: 0 | W67: 0 | X67: 0 | Y67: 0 | Z67: 0 | AA67: 0 | AB67: 0 | AC67: 0 | AD67: 0 | AE67: 0 | AF67: 0 | AG67: 0 | AH67: 0 | AI67: 0 | AM67: =IFERROR(VLOOKUP(F67,[1]Vendor!B:I,8,0),"") -> 
M68: 1900 | O68: 0 | P68: 0 | Q68: 0 | R68: 0 | S68: 0 | T68: 0 | U68: 0 | V68: 0 | W68: 0 | X68: 0 | Y68: 0 | Z68: 0 | AA68: 0 | AB68: 0 | AC68: 0 | AD68: 0 | AE68: 0 | AF68: 0 | AG68: 0 | AH68: 0 | AI68: 0 | AM68: =IFERROR(VLOOKUP(F68,[1]Vendor!B:I,8,0),"") -> 
M69: 1900 | O69: 0 | P69: 0 | Q69: 0 | R69: 0 | S69: 0 | T69: 0 | U69: 0 | V69: 0 | W69: 0 | X69: 0 | Y69: 0 | Z69: 0 | AA69: 0 | AB69: 0 | AC69: 0 | AD69: 0 | AE69: 0 | AF69: 0 | AG69: 0 | AH69: 0 | AI69: 0 | AM69: =IFERROR(VLOOKUP(F69,[1]Vendor!B:I,8,0),"") -> 
M70: 1900 | O70: 0 | P70: 0 | Q70: 0 | R70: 0 | S70: 0 | T70: 0 | U70: 0 | V70: 0 | W70: 0 | X70: 0 | Y70: 0 | Z70: 0 | AA70: 0 | AB70: 0 | AC70: 0 | AD70: 0 | AE70: 0 | AF70: 0 | AG70: 0 | AH70: 0 | AI70: 0 | AM70: =IFERROR(VLOOKUP(F70,[1]Vendor!B:I,8,0),"") -> 
M71: 1900 | O71: 0 | P71: 0 | Q71: 0 | R71: 0 | S71: 0 | T71: 0 | U71: 0 | V71: 0 | W71: 0 | X71: 0 | Y71: 0 | Z71: 0 | AA71: 0 | AB71: 0 | AC71: 0 | AD71: 0 | AE71: 0 | AF71: 0 | AG71: 0 | AH71: 0 | AI71: 0 | AM71: =IFERROR(VLOOKUP(F71,[1]Vendor!B:I,8,0),"") -> 
M72: 1900 | O72: 0 | P72: 0 | Q72: 0 | R72: 0 | S72: 0 | T72: 0 | U72: 0 | V72: 0 | W72: 0 | X72: 0 | Y72: 0 | Z72: 0 | AA72: 0 | AB72: 0 | AC72: 0 | AD72: 0 | AE72: 0 | AF72: 0 | AG72: 0 | AH72: 0 | AI72: 0 | AM72: =IFERROR(VLOOKUP(F72,[1]Vendor!B:I,8,0),"") -> 
M73: 1900 | O73: 0 | P73: 0 | Q73: 0 | R73: 0 | S73: 0 | T73: 0 | U73: 0 | V73: 0 | W73: 0 | X73: 0 | Y73: 0 | Z73: 0 | AA73: 0 | AB73: 0 | AC73: 0 | AD73: 0 | AE73: 0 | AF73: 0 | AG73: 0 | AH73: 0 | AI73: 0 | AM73: =IFERROR(VLOOKUP(F73,[1]Vendor!B:I,8,0),"") -> 
M74: 1900 | O74: 0 | P74: 0 | Q74: 0 | R74: 0 | S74: 0 | T74: 0 | U74: 0 | V74: 0 | W74: 0 | X74: 0 | Y74: 0 | Z74: 0 | AA74: 0 | AB74: 0 | AC74: 0 | AD74: 0 | AE74: 0 | AF74: 0 | AG74: 0 | AH74: 0 | AI74: 0 | AM74: =IFERROR(VLOOKUP(F74,[1]Vendor!B:I,8,0),"") -> 
M75: =IFERROR(YEAR(J75),"") -> 1900 | O75: =IF($M75=O$12,$N75,0) -> 0 | P75: 0 | Q75: 0 | R75: 0 | S75: 0 | T75: 0 | U75: 0 | V75: 0 | W75: 0 | X75: 0 | Y75: 0 | Z75: 0 | AA75: 0 | AB75: 0 | AC75: 0 | AD75: 0 | AE75: 0 | AF75: 0 | AG75: 0 | AH75: 0 | AI75: =Z75-Y75 -> 0 | AM75: =IFERROR(VLOOKUP(F75,[1]Vendor!B:I,8,0),"") -> 
M76: 1900 | N76: =IFERROR(I76/H76,"") ->  | O76: 0 | P76: =IF($M76=P$12,$N76,0)+O76*P$11+O76 -> 0 | Q76: 0 | R76: 0 | S76: 0 | T76: 0 | U76: 0 | V76: 0 | W76: 0 | X76: 0 | Y76: 0 | Z76: 0 | AA76: 0 | AB76: 0 | AC76: 0 | AD76: 0 | AE76: 0 | AF76: 0 | AG76: 0 | AH76: 0 | AI76: 0 | AM76: =IFERROR(VLOOKUP(F76,[1]Vendor!B:I,8,0),"") -> 
M77: 1900 | O77: 0 | P77: 0 | Q77: 0 | R77: 0 | S77: 0 | T77: 0 | U77: 0 | V77: 0 | W77: 0 | X77: 0 | Y77: 0 | Z77: 0 | AA77: 0 | AB77: 0 | AC77: 0 | AD77: 0 | AE77: 0 | AF77: 0 | AG77: 0 | AH77: 0 | AI77: 0 | AM77: =IFERROR(VLOOKUP(F77,[1]Vendor!B:I,8,0),"") -> 
M78: 1900 | O78: 0 | P78: 0 | Q78: 0 | R78: 0 | S78: 0 | T78: 0 | U78: 0 | V78: 0 | W78: 0 | X78: 0 | Y78: 0 | Z78: 0 | AA78: 0 | AB78: 0 | AC78: 0 | AD78: 0 | AE78: 0 | AF78: 0 | AG78: 0 | AH78: 0 | AI78: 0 | AM78: =IFERROR(VLOOKUP(F78,[1]Vendor!B:I,8,0),"") -> 
M79: 1900 | O79: 0 | P79: 0 | Q79: 0 | R79: 0 | S79: 0 | T79: 0 | U79: 0 | V79: 0 | W79: 0 | X79: 0 | Y79: 0 | Z79: 0 | AA79: 0 | AB79: 0 | AC79: 0 | AD79: 0 | AE79: 0 | AF79: 0 | AG79: 0 | AH79: 0 | AI79: 0 | AM79: =IFERROR(VLOOKUP(F79,[1]Vendor!B:I,8,0),"") -> 
M80: 1900 | O80: 0 | P80: 0 | Q80: 0 | R80: 0 | S80: 0 | T80: 0 | U80: 0 | V80: 0 | W80: 0 | X80: 0 | Y80: 0 | Z80: 0 | AA80: 0 | AB80: 0 | AC80: 0 | AD80: 0 | AE80: 0 | AF80: 0 | AG80: 0 | AH80: 0 | AI80: 0 | AM80: =IFERROR(VLOOKUP(F80,[1]Vendor!B:I,8,0),"") -> 
M81: 1900 | O81: 0 | P81: 0 | Q81: 0 | R81: 0 | S81: 0 | T81: 0 | U81: 0 | V81: 0 | W81: 0 | X81: 0 | Y81: 0 | Z81: 0 | AA81: 0 | AB81: 0 | AC81: 0 | AD81: 0 | AE81: 0 | AF81: 0 | AG81: 0 | AH81: 0 | AI81: 0 | AM81: =IFERROR(VLOOKUP(F81,[1]Vendor!B:I,8,0),"") -> 
M82: 1900 | O82: 0 | P82: 0 | Q82: 0 | R82: 0 | S82: 0 | T82: 0 | U82: 0 | V82: 0 | W82: 0 | X82: 0 | Y82: 0 | Z82: 0 | AA82: 0 | AB82: 0 | AC82: 0 | AD82: 0 | AE82: 0 | AF82: 0 | AG82: 0 | AH82: 0 | AI82: 0 | AM82: =IFERROR(VLOOKUP(F82,[1]Vendor!B:I,8,0),"") -> 
M83: 1900 | O83: 0 | P83: 0 | Q83: 0 | R83: 0 | S83: 0 | T83: 0 | U83: 0 | V83: 0 | W83: 0 | X83: 0 | Y83: 0 | Z83: 0 | AA83: 0 | AB83: 0 | AC83: 0 | AD83: 0 | AE83: 0 | AF83: 0 | AG83: 0 | AH83: 0 | AI83: 0 | AM83: =IFERROR(VLOOKUP(F83,[1]Vendor!B:I,8,0),"") -> 
M84: 1900 | O84: 0 | P84: 0 | Q84: 0 | R84: 0 | S84: 0 | T84: 0 | U84: 0 | V84: 0 | W84: 0 | X84: 0 | Y84: 0 | Z84: 0 | AA84: 0 | AB84: 0 | AC84: 0 | AD84: 0 | AE84: 0 | AF84: 0 | AG84: 0 | AH84: 0 | AI84: 0 | AM84: =IFERROR(VLOOKUP(F84,[1]Vendor!B:I,8,0),"") -> 
M85: 1900 | O85: 0 | P85: 0 | Q85: 0 | R85: 0 | S85: 0 | T85: 0 | U85: 0 | V85: 0 | W85: 0 | X85: 0 | Y85: 0 | Z85: 0 | AA85: 0 | AB85: 0 | AC85: 0 | AD85: 0 | AE85: 0 | AF85: 0 | AG85: 0 | AH85: 0 | AI85: 0 | AJ85: =IFERROR(AI85/Y85,"") ->  | AL85: =IFERROR(AK85/AA85,"") ->  | AM85: =IFERROR(VLOOKUP(F85,[1]Vendor!B:I,8,0),"") ->  | AO85: =IFERROR(AN85-AK85,"")/AK85 -> 
M86: 1900 | O86: 0 | P86: 0 | Q86: 0 | R86: 0 | S86: 0 | T86: 0 | U86: 0 | V86: 0 | W86: 0 | X86: 0 | Y86: 0 | Z86: 0 | AA86: 0 | AB86: 0 | AC86: 0 | AD86: 0 | AE86: 0 | AF86: 0 | AG86: 0 | AH86: 0 | AI86: 0 | AM86: =IFERROR(VLOOKUP(F86,[1]Vendor!B:I,8,0),"") -> 
M87: 1900 | O87: 0 | P87: 0 | Q87: 0 | R87: 0 | S87: 0 | T87: 0 | U87: 0 | V87: 0 | W87: 0 | X87: 0 | Y87: 0 | Z87: 0 | AA87: 0 | AB87: 0 | AC87: 0 | AD87: 0 | AE87: 0 | AF87: 0 | AG87: 0 | AH87: 0 | AI87: 0 | AM87: =IFERROR(VLOOKUP(F87,[1]Vendor!B:I,8,0),"") -> 
M88: 1900 | O88: 0 | P88: 0 | Q88: 0 | R88: 0 | S88: 0 | T88: 0 | U88: 0 | V88: 0 | W88: 0 | X88: 0 | Y88: 0 | Z88: 0 | AA88: 0 | AB88: 0 | AC88: 0 | AD88: 0 | AE88: 0 | AF88: 0 | AG88: 0 | AH88: 0 | AI88: 0 | AM88: =IFERROR(VLOOKUP(F88,[1]Vendor!B:I,8,0),"") -> 
M89: 1900 | O89: 0 | P89: 0 | Q89: 0 | R89: 0 | S89: 0 | T89: 0 | U89: 0 | V89: 0 | W89: 0 | X89: 0 | Y89: 0 | Z89: 0 | AA89: 0 | AB89: 0 | AC89: 0 | AD89: 0 | AE89: 0 | AF89: 0 | AG89: 0 | AH89: 0 | AI89: 0 | AM89: =IFERROR(VLOOKUP(F89,[1]Vendor!B:I,8,0),"") -> 
M90: 1900 | O90: 0 | P90: 0 | Q90: 0 | R90: 0 | S90: 0 | T90: 0 | U90: 0 | V90: 0 | W90: 0 | X90: 0 | Y90: 0 | Z90: 0 | AA90: 0 | AB90: 0 | AC90: 0 | AD90: 0 | AE90: 0 | AF90: 0 | AG90: 0 | AH90: 0 | AI90: 0 | AM90: =IFERROR(VLOOKUP(F90,[1]Vendor!B:I,8,0),"") -> 
M91: 1900 | O91: 0 | P91: 0 | Q91: 0 | R91: 0 | S91: 0 | T91: 0 | U91: 0 | V91: 0 | W91: 0 | X91: 0 | Y91: 0 | Z91: 0 | AA91: 0 | AB91: 0 | AC91: 0 | AD91: 0 | AE91: 0 | AF91: 0 | AG91: 0 | AH91: 0 | AI91: 0 | AM91: =IFERROR(VLOOKUP(F91,[1]Vendor!B:I,8,0),"") -> 
M92: 1900 | O92: 0 | P92: 0 | Q92: 0 | R92: 0 | S92: 0 | T92: 0 | U92: 0 | V92: 0 | W92: 0 | X92: 0 | Y92: 0 | Z92: 0 | AA92: 0 | AB92: 0 | AC92: 0 | AD92: 0 | AE92: 0 | AF92: 0 | AG92: 0 | AH92: 0 | AI92: 0 | AM92: =IFERROR(VLOOKUP(F92,[1]Vendor!B:I,8,0),"") -> 
M93: 1900 | O93: 0 | P93: =IF($M93=P$12,$N93,0)+O93*P$11+O93 -> 0 | Q93: 0 | R93: 0 | S93: 0 | T93: 0 | U93: 0 | V93: 0 | W93: 0 | X93: 0 | Y93: 0 | Z93: 0 | AA93: 0 | AB93: 0 | AC93: 0 | AD93: 0 | AE93: 0 | AF93: 0 | AG93: 0 | AH93: 0 | AI93: 0 | AM93: =IFERROR(VLOOKUP(F93,[1]Vendor!B:I,8,0),"") -> 
M94: 1900 | O94: 0 | P94: 0 | Q94: 0 | R94: 0 | S94: 0 | T94: 0 | U94: 0 | V94: 0 | W94: 0 | X94: 0 | Y94: 0 | Z94: 0 | AA94: 0 | AB94: 0 | AC94: 0 | AD94: 0 | AE94: 0 | AF94: 0 | AG94: 0 | AH94: 0 | AI94: 0 | AM94: =IFERROR(VLOOKUP(F94,[1]Vendor!B:I,8,0),"") -> 
M95: 1900 | O95: 0 | P95: 0 | Q95: 0 | R95: 0 | S95: 0 | T95: 0 | U95: 0 | V95: 0 | W95: 0 | X95: 0 | Y95: 0 | Z95: 0 | AA95: 0 | AB95: 0 | AC95: 0 | AD95: 0 | AE95: 0 | AF95: 0 | AG95: 0 | AH95: 0 | AI95: 0 | AM95: =IFERROR(VLOOKUP(F95,[1]Vendor!B:I,8,0),"") -> 
M96: 1900 | O96: 0 | P96: 0 | Q96: 0 | R96: 0 | S96: 0 | T96: 0 | U96: 0 | V96: 0 | W96: 0 | X96: 0 | Y96: 0 | Z96: 0 | AA96: 0 | AB96: 0 | AC96: 0 | AD96: 0 | AE96: 0 | AF96: 0 | AG96: 0 | AH96: 0 | AI96: 0 | AM96: =IFERROR(VLOOKUP(F96,[1]Vendor!B:I,8,0),"") -> 
M97: 1900 | O97: 0 | P97: 0 | Q97: 0 | R97: 0 | S97: 0 | T97: 0 | U97: 0 | V97: 0 | W97: 0 | X97: 0 | Y97: 0 | Z97: 0 | AA97: 0 | AB97: 0 | AC97: 0 | AD97: 0 | AE97: 0 | AF97: 0 | AG97: 0 | AH97: 0 | AI97: 0 | AM97: =IFERROR(VLOOKUP(F97,[1]Vendor!B:I,8,0),"") -> 
M98: 1900 | O98: 0 | P98: 0 | Q98: 0 | R98: 0 | S98: 0 | T98: 0 | U98: 0 | V98: 0 | W98: 0 | X98: 0 | Y98: 0 | Z98: 0 | AA98: 0 | AB98: 0 | AC98: 0 | AD98: 0 | AE98: 0 | AF98: 0 | AG98: 0 | AH98: 0 | AI98: 0 | AM98: =IFERROR(VLOOKUP(F98,[1]Vendor!B:I,8,0),"") -> 
M99: 1900 | O99: 0 | P99: 0 | Q99: 0 | R99: 0 | S99: 0 | T99: 0 | U99: 0 | V99: 0 | W99: 0 | X99: 0 | Y99: 0 | Z99: 0 | AA99: 0 | AB99: 0 | AC99: 0 | AD99: 0 | AE99: 0 | AF99: 0 | AG99: 0 | AH99: 0 | AI99: 0 | AM99: =IFERROR(VLOOKUP(F99,[1]Vendor!B:I,8,0),"") -> 
M100: 1900 | O100: 0 | P100: 0 | Q100: 0 | R100: 0 | S100: 0 | T100: 0 | U100: 0 | V100: 0 | W100: 0 | X100: 0 | Y100: 0 | Z100: 0 | AA100: 0 | AB100: 0 | AC100: 0 | AD100: 0 | AE100: 0 | AF100: 0 | AG100: 0 | AH100: 0 | AI100: 0 | AM100: =IFERROR(VLOOKUP(F100,[1]Vendor!B:I,8,0),"") -> 
M101: 1900 | O101: 0 | P101: 0 | Q101: 0 | R101: 0 | S101: 0 | T101: 0 | U101: 0 | V101: 0 | W101: 0 | X101: 0 | Y101: 0 | Z101: 0 | AA101: 0 | AB101: 0 | AC101: 0 | AD101: 0 | AE101: 0 | AF101: 0 | AG101: 0 | AH101: 0 | AI101: 0 | AM101: =IFERROR(VLOOKUP(F101,[1]Vendor!B:I,8,0),"") -> 
M102: 1900 | O102: 0 | P102: 0 | Q102: 0 | R102: 0 | S102: 0 | T102: 0 | U102: 0 | V102: 0 | W102: 0 | X102: 0 | Y102: 0 | Z102: 0 | AA102: 0 | AB102: 0 | AC102: 0 | AD102: 0 | AE102: 0 | AF102: 0 | AG102: 0 | AH102: 0 | AI102: 0 | AM102: =IFERROR(VLOOKUP(F102,[1]Vendor!B:I,8,0),"") -> 
M103: 1900 | O103: 0 | P103: 0 | Q103: 0 | R103: 0 | S103: 0 | T103: 0 | U103: 0 | V103: 0 | W103: 0 | X103: 0 | Y103: 0 | Z103: 0 | AA103: 0 | AB103: 0 | AC103: 0 | AD103: 0 | AE103: 0 | AF103: 0 | AG103: 0 | AH103: 0 | AI103: 0 | AM103: =IFERROR(VLOOKUP(F103,[1]Vendor!B:I,8,0),"") -> 
M104: 1900 | O104: 0 | P104: 0 | Q104: 0 | R104: 0 | S104: 0 | T104: 0 | U104: 0 | V104: 0 | W104: 0 | X104: 0 | Y104: 0 | Z104: 0 | AA104: 0 | AB104: 0 | AC104: 0 | AD104: 0 | AE104: 0 | AF104: 0 | AG104: 0 | AH104: 0 | AI104: 0 | AM104: =IFERROR(VLOOKUP(F104,[1]Vendor!B:I,8,0),"") -> 
M105: 1900 | O105: 0 | P105: 0 | Q105: 0 | R105: 0 | S105: 0 | T105: 0 | U105: 0 | V105: 0 | W105: 0 | X105: 0 | Y105: 0 | Z105: 0 | AA105: 0 | AB105: 0 | AC105: 0 | AD105: 0 | AE105: 0 | AF105: 0 | AG105: 0 | AH105: 0 | AI105: 0 | AM105: =IFERROR(VLOOKUP(F105,[1]Vendor!B:I,8,0),"") -> 
M106: 1900 | O106: 0 | P106: 0 | Q106: 0 | R106: 0 | S106: 0 | T106: 0 | U106: 0 | V106: 0 | W106: 0 | X106: 0 | Y106: 0 | Z106: 0 | AA106: 0 | AB106: 0 | AC106: 0 | AD106: 0 | AE106: 0 | AF106: 0 | AG106: 0 | AH106: 0 | AI106: 0 | AM106: =IFERROR(VLOOKUP(F106,[1]Vendor!B:I,8,0),"") -> 
M107: 1900 | O107: 0 | P107: 0 | Q107: 0 | R107: 0 | S107: 0 | T107: 0 | U107: 0 | V107: 0 | W107: 0 | X107: 0 | Y107: 0 | Z107: 0 | AA107: 0 | AB107: 0 | AC107: 0 | AD107: 0 | AE107: 0 | AF107: 0 | AG107: 0 | AH107: 0 | AI107: 0 | AM107: =IFERROR(VLOOKUP(F107,[1]Vendor!B:I,8,0),"") -> 
M108: 1900 | O108: 0 | P108: 0 | Q108: 0 | R108: 0 | S108: 0 | T108: 0 | U108: 0 | V108: 0 | W108: 0 | X108: 0 | Y108: 0 | Z108: 0 | AA108: 0 | AB108: 0 | AC108: 0 | AD108: 0 | AE108: 0 | AF108: 0 | AG108: 0 | AH108: 0 | AI108: 0 | AM108: =IFERROR(VLOOKUP(F108,[1]Vendor!B:I,8,0),"") -> 
M109: 1900 | O109: 0 | P109: 0 | Q109: 0 | R109: 0 | S109: 0 | T109: 0 | U109: 0 | V109: 0 | W109: 0 | X109: 0 | Y109: 0 | Z109: 0 | AA109: 0 | AB109: 0 | AC109: 0 | AD109: 0 | AE109: 0 | AF109: 0 | AG109: 0 | AH109: 0 | AI109: 0 | AM109: =IFERROR(VLOOKUP(F109,[1]Vendor!B:I,8,0),"") -> 
M110: 1900 | O110: 0 | P110: =IF($M110=P$12,$N110,0)+O110*P$11+O110 -> 0 | Q110: 0 | R110: 0 | S110: 0 | T110: 0 | U110: 0 | V110: 0 | W110: 0 | X110: 0 | Y110: 0 | Z110: 0 | AA110: 0 | AB110: 0 | AC110: 0 | AD110: 0 | AE110: 0 | AF110: 0 | AG110: 0 | AH110: 0 | AI110: 0 | AM110: =IFERROR(VLOOKUP(F110,[1]Vendor!B:I,8,0),"") -> 
M111: 1900 | O111: 0 | P111: 0 | Q111: 0 | R111: 0 | S111: 0 | T111: 0 | U111: 0 | V111: 0 | W111: 0 | X111: 0 | Y111: 0 | Z111: 0 | AA111: 0 | AB111: 0 | AC111: 0 | AD111: 0 | AE111: 0 | AF111: 0 | AG111: 0 | AH111: 0 | AI111: 0 | AM111: =IFERROR(VLOOKUP(F111,[1]Vendor!B:I,8,0),"") -> 
M112: 1900 | O112: 0 | P112: 0 | Q112: 0 | R112: 0 | S112: 0 | T112: 0 | U112: 0 | V112: 0 | W112: 0 | X112: 0 | Y112: 0 | Z112: 0 | AA112: 0 | AB112: 0 | AC112: 0 | AD112: 0 | AE112: 0 | AF112: 0 | AG112: 0 | AH112: 0 | AI112: 0 | AM112: =IFERROR(VLOOKUP(F112,[1]Vendor!B:I,8,0),"") -> 
M113: 1900 | O113: 0 | P113: 0 | Q113: 0 | R113: 0 | S113: 0 | T113: 0 | U113: 0 | V113: 0 | W113: 0 | X113: 0 | Y113: 0 | Z113: 0 | AA113: 0 | AB113: 0 | AC113: 0 | AD113: 0 | AE113: 0 | AF113: 0 | AG113: 0 | AH113: 0 | AI113: 0 | AM113: =IFERROR(VLOOKUP(F113,[1]Vendor!B:I,8,0),"") -> 
M114: 1900 | O114: 0 | P114: 0 | Q114: 0 | R114: 0 | S114: 0 | T114: 0 | U114: 0 | V114: 0 | W114: 0 | X114: 0 | Y114: 0 | Z114: 0 | AA114: 0 | AB114: 0 | AC114: 0 | AD114: 0 | AE114: 0 | AF114: 0 | AG114: 0 | AH114: 0 | AI114: 0 | AM114: =IFERROR(VLOOKUP(F114,[1]Vendor!B:I,8,0),"") -> 
M115: 1900 | O115: 0 | P115: 0 | Q115: 0 | R115: 0 | S115: 0 | T115: 0 | U115: 0 | V115: 0 | W115: 0 | X115: 0 | Y115: 0 | Z115: 0 | AA115: 0 | AB115: 0 | AC115: 0 | AD115: 0 | AE115: 0 | AF115: 0 | AG115: 0 | AH115: 0 | AI115: 0 | AM115: =IFERROR(VLOOKUP(F115,[1]Vendor!B:I,8,0),"") -> 
M116: 1900 | O116: 0 | P116: 0 | Q116: 0 | R116: 0 | S116: 0 | T116: 0 | U116: 0 | V116: 0 | W116: 0 | X116: 0 | Y116: 0 | Z116: 0 | AA116: 0 | AB116: 0 | AC116: 0 | AD116: 0 | AE116: 0 | AF116: 0 | AG116: 0 | AH116: 0 | AI116: 0 | AM116: =IFERROR(VLOOKUP(F116,[1]Vendor!B:I,8,0),"") -> 
M117: 1900 | O117: 0 | P117: 0 | Q117: 0 | R117: 0 | S117: 0 | T117: 0 | U117: 0 | V117: 0 | W117: 0 | X117: 0 | Y117: 0 | Z117: 0 | AA117: 0 | AB117: 0 | AC117: 0 | AD117: 0 | AE117: 0 | AF117: 0 | AG117: 0 | AH117: 0 | AI117: 0 | AM117: =IFERROR(VLOOKUP(F117,[1]Vendor!B:I,8,0),"") -> 
M118: 1900 | O118: 0 | P118: 0 | Q118: 0 | R118: 0 | S118: 0 | T118: 0 | U118: 0 | V118: 0 | W118: 0 | X118: 0 | Y118: 0 | Z118: 0 | AA118: 0 | AB118: 0 | AC118: 0 | AD118: 0 | AE118: 0 | AF118: 0 | AG118: 0 | AH118: 0 | AI118: 0 | AM118: =IFERROR(VLOOKUP(F118,[1]Vendor!B:I,8,0),"") -> 
M119: 1900 | O119: 0 | P119: 0 | Q119: 0 | R119: 0 | S119: 0 | T119: 0 | U119: 0 | V119: 0 | W119: 0 | X119: 0 | Y119: 0 | Z119: 0 | AA119: 0 | AB119: 0 | AC119: 0 | AD119: 0 | AE119: 0 | AF119: 0 | AG119: 0 | AH119: 0 | AI119: 0 | AM119: =IFERROR(VLOOKUP(F119,[1]Vendor!B:I,8,0),"") -> 
M120: 1900 | O120: 0 | P120: 0 | Q120: 0 | R120: 0 | S120: 0 | T120: 0 | U120: 0 | V120: 0 | W120: 0 | X120: 0 | Y120: 0 | Z120: 0 | AA120: 0 | AB120: 0 | AC120: 0 | AD120: 0 | AE120: 0 | AF120: 0 | AG120: 0 | AH120: 0 | AI120: 0 | AM120: =IFERROR(VLOOKUP(F120,[1]Vendor!B:I,8,0),"") -> 
M121: 1900 | O121: 0 | P121: 0 | Q121: 0 | R121: 0 | S121: 0 | T121: 0 | U121: 0 | V121: 0 | W121: 0 | X121: 0 | Y121: 0 | Z121: 0 | AA121: 0 | AB121: 0 | AC121: 0 | AD121: 0 | AE121: 0 | AF121: 0 | AG121: 0 | AH121: 0 | AI121: 0 | AM121: =IFERROR(VLOOKUP(F121,[1]Vendor!B:I,8,0),"") -> 
M122: 1900 | O122: 0 | P122: 0 | Q122: 0 | R122: 0 | S122: 0 | T122: 0 | U122: 0 | V122: 0 | W122: 0 | X122: 0 | Y122: 0 | Z122: 0 | AA122: 0 | AB122: 0 | AC122: 0 | AD122: 0 | AE122: 0 | AF122: =IF($M122=AF$12,$N122,0)+AE122*AF$11+AE122 -> 0 | AG122: 0 | AH122: 0 | AI122: 0 | AM122: =IFERROR(VLOOKUP(F122,[1]Vendor!B:I,8,0),"") -> 
M123: 1900 | O123: 0 | P123: 0 | Q123: 0 | R123: 0 | S123: 0 | T123: 0 | U123: 0 | V123: 0 | W123: 0 | X123: 0 | Y123: 0 | Z123: 0 | AA123: 0 | AB123: 0 | AC123: 0 | AD123: 0 | AE123: 0 | AF123: 0 | AG123: 0 | AH123: 0 | AI123: 0 | AM123: =IFERROR(VLOOKUP(F123,[1]Vendor!B:I,8,0),"") -> 
M124: 1900 | O124: 0 | P124: 0 | Q124: 0 | R124: 0 | S124: 0 | T124: 0 | U124: 0 | V124: 0 | W124: 0 | X124: 0 | Y124: 0 | Z124: 0 | AA124: 0 | AB124: 0 | AC124: 0 | AD124: 0 | AE124: 0 | AF124: 0 | AG124: 0 | AH124: 0 | AI124: 0 | AM124: =IFERROR(VLOOKUP(F124,[1]Vendor!B:I,8,0),"") -> 
M125: 1900 | O125: 0 | P125: 0 | Q125: 0 | R125: 0 | S125: 0 | T125: 0 | U125: 0 | V125: 0 | W125: 0 | X125: 0 | Y125: 0 | Z125: 0 | AA125: 0 | AB125: 0 | AC125: 0 | AD125: 0 | AE125: 0 | AF125: 0 | AG125: 0 | AH125: 0 | AI125: 0 | AM125: =IFERROR(VLOOKUP(F125,[1]Vendor!B:I,8,0),"") -> 
M126: 1900 | O126: 0 | P126: 0 | Q126: 0 | R126: 0 | S126: 0 | T126: 0 | U126: 0 | V126: 0 | W126: 0 | X126: 0 | Y126: =IF($M126=Y$12,$N126,0)+X126*Y$11+X126 -> 0 | Z126: 0 | AA126: 0 | AB126: 0 | AC126: 0 | AD126: 0 | AE126: 0 | AF126: 0 | AG126: 0 | AH126: 0 | AI126: 0 | AM126: =IFERROR(VLOOKUP(F126,[1]Vendor!B:I,8,0),"") -> 
M127: 1900 | O127: 0 | P127: 0 | Q127: 0 | R127: 0 | S127: 0 | T127: 0 | U127: 0 | V127: 0 | W127: 0 | X127: 0 | Y127: 0 | Z127: 0 | AA127: 0 | AB127: 0 | AC127: 0 | AD127: 0 | AE127: 0 | AF127: 0 | AG127: 0 | AH127: 0 | AI127: 0 | AM127: =IFERROR(VLOOKUP(F127,[1]Vendor!B:I,8,0),"") -> 
M128: 1900 | O128: 0 | P128: 0 | Q128: 0 | R128: 0 | S128: 0 | T128: 0 | U128: 0 | V128: 0 | W128: 0 | X128: 0 | Y128: 0 | Z128: 0 | AA128: 0 | AB128: 0 | AC128: 0 | AD128: 0 | AE128: 0 | AF128: 0 | AG128: 0 | AH128: 0 | AI128: 0 | AM128: =IFERROR(VLOOKUP(F128,[1]Vendor!B:I,8,0),"") -> 
M129: 1900 | O129: 0 | P129: 0 | Q129: 0 | R129: 0 | S129: 0 | T129: 0 | U129: 0 | V129: 0 | W129: 0 | X129: 0 | Y129: 0 | Z129: 0 | AA129: 0 | AB129: 0 | AC129: 0 | AD129: 0 | AE129: 0 | AF129: 0 | AG129: 0 | AH129: 0 | AI129: 0 | AM129: =IFERROR(VLOOKUP(F129,[1]Vendor!B:I,8,0),"") -> 
M130: 1900 | O130: 0 | P130: 0 | Q130: 0 | R130: 0 | S130: 0 | T130: 0 | U130: 0 | V130: 0 | W130: 0 | X130: 0 | Y130: 0 | Z130: 0 | AA130: 0 | AB130: 0 | AC130: 0 | AD130: 0 | AE130: 0 | AF130: 0 | AG130: 0 | AH130: 0 | AI130: 0 | AM130: =IFERROR(VLOOKUP(F130,[1]Vendor!B:I,8,0),"") -> 
M131: 1900 | O131: 0 | P131: 0 | Q131: 0 | R131: 0 | S131: 0 | T131: 0 | U131: 0 | V131: 0 | W131: 0 | X131: 0 | Y131: 0 | Z131: 0 | AA131: 0 | AB131: 0 | AC131: 0 | AD131: 0 | AE131: 0 | AF131: 0 | AG131: 0 | AH131: 0 | AI131: 0 | AM131: =IFERROR(VLOOKUP(F131,[1]Vendor!B:I,8,0),"") -> 
M132: 1900 | O132: 0 | P132: 0 | Q132: 0 | R132: 0 | S132: 0 | T132: 0 | U132: 0 | V132: 0 | W132: 0 | X132: 0 | Y132: 0 | Z132: 0 | AA132: 0 | AB132: 0 | AC132: 0 | AD132: 0 | AE132: 0 | AF132: 0 | AG132: 0 | AH132: 0 | AI132: 0 | AM132: =IFERROR(VLOOKUP(F132,[1]Vendor!B:I,8,0),"") -> 
M133: 1900 | O133: 0 | P133: 0 | Q133: 0 | R133: 0 | S133: 0 | T133: 0 | U133: 0 | V133: 0 | W133: 0 | X133: 0 | Y133: 0 | Z133: 0 | AA133: 0 | AB133: 0 | AC133: 0 | AD133: 0 | AE133: 0 | AF133: 0 | AG133: 0 | AH133: 0 | AI133: 0 | AM133: =IFERROR(VLOOKUP(F133,[1]Vendor!B:I,8,0),"") -> 
M134: 1900 | O134: 0 | P134: 0 | Q134: 0 | R134: 0 | S134: 0 | T134: 0 | U134: 0 | V134: 0 | W134: 0 | X134: 0 | Y134: 0 | Z134: 0 | AA134: 0 | AB134: 0 | AC134: 0 | AD134: 0 | AE134: 0 | AF134: 0 | AG134: 0 | AH134: 0 | AI134: 0 | AM134: =IFERROR(VLOOKUP(F134,[1]Vendor!B:I,8,0),"") -> 
M135: 1900 | O135: 0 | P135: 0 | Q135: 0 | R135: 0 | S135: 0 | T135: 0 | U135: 0 | V135: 0 | W135: 0 | X135: 0 | Y135: 0 | Z135: 0 | AA135: 0 | AB135: 0 | AC135: 0 | AD135: 0 | AE135: 0 | AF135: 0 | AG135: 0 | AH135: 0 | AI135: 0 | AM135: =IFERROR(VLOOKUP(F135,[1]Vendor!B:I,8,0),"") -> 
M136: 1900 | O136: 0 | P136: 0 | Q136: 0 | R136: 0 | S136: 0 | T136: 0 | U136: 0 | V136: 0 | W136: 0 | X136: 0 | Y136: 0 | Z136: 0 | AA136: 0 | AB136: 0 | AC136: 0 | AD136: 0 | AE136: 0 | AF136: 0 | AG136: 0 | AH136: 0 | AI136: 0 | AM136: =IFERROR(VLOOKUP(F136,[1]Vendor!B:I,8,0),"") -> 
M137: 1900 | O137: 0 | P137: 0 | Q137: 0 | R137: 0 | S137: 0 | T137: 0 | U137: 0 | V137: 0 | W137: 0 | X137: 0 | Y137: 0 | Z137: 0 | AA137: 0 | AB137: 0 | AC137: 0 | AD137: 0 | AE137: 0 | AF137: 0 | AG137: 0 | AH137: 0 | AI137: 0 | AM137: =IFERROR(VLOOKUP(F137,[1]Vendor!B:I,8,0),"") -> 
M138: 1900 | O138: 0 | P138: 0 | Q138: 0 | R138: 0 | S138: 0 | T138: 0 | U138: 0 | V138: 0 | W138: 0 | X138: 0 | Y138: 0 | Z138: 0 | AA138: 0 | AB138: 0 | AC138: 0 | AD138: 0 | AE138: 0 | AF138: 0 | AG138: 0 | AH138: 0 | AI138: 0 | AM138: =IFERROR(VLOOKUP(F138,[1]Vendor!B:I,8,0),"") -> 
M139: =IFERROR(YEAR(J139),"") -> 1900 | O139: =IF($M139=O$12,$N139,0) -> 0 | P139: 0 | Q139: 0 | R139: 0 | S139: 0 | T139: 0 | U139: 0 | V139: 0 | W139: 0 | X139: 0 | Y139: 0 | Z139: 0 | AA139: 0 | AB139: 0 | AC139: 0 | AD139: 0 | AE139: 0 | AF139: 0 | AG139: 0 | AH139: 0 | AI139: =Z139-Y139 -> 0 | AM139: =IFERROR(VLOOKUP(F139,[1]Vendor!B:I,8,0),"") -> 
M140: 1900 | N140: =IFERROR(I140/H140,"") ->  | O140: 0 | P140: 0 | Q140: 0 | R140: 0 | S140: 0 | T140: 0 | U140: 0 | V140: 0 | W140: 0 | X140: 0 | Y140: 0 | Z140: 0 | AA140: 0 | AB140: 0 | AC140: 0 | AD140: 0 | AE140: 0 | AF140: 0 | AG140: 0 | AH140: 0 | AI140: 0 | AM140: =IFERROR(VLOOKUP(F140,[1]Vendor!B:I,8,0),"") -> 
M141: 1900 | O141: 0 | P141: 0 | Q141: 0 | R141: 0 | S141: 0 | T141: 0 | U141: 0 | V141: 0 | W141: 0 | X141: 0 | Y141: 0 | Z141: 0 | AA141: 0 | AB141: 0 | AC141: 0 | AD141: 0 | AE141: 0 | AF141: 0 | AG141: 0 | AH141: 0 | AI141: 0 | AM141: =IFERROR(VLOOKUP(F141,[1]Vendor!B:I,8,0),"") -> 
M142: 1900 | O142: 0 | P142: 0 | Q142: 0 | R142: 0 | S142: 0 | T142: 0 | U142: 0 | V142: 0 | W142: 0 | X142: =IF($M142=X$12,$N142,0)+W142*X$11+W142 -> 0 | Y142: 0 | Z142: 0 | AA142: 0 | AB142: 0 | AC142: 0 | AD142: 0 | AE142: 0 | AF142: 0 | AG142: 0 | AH142: 0 | AI142: 0 | AM142: =IFERROR(VLOOKUP(F142,[1]Vendor!B:I,8,0),"") -> 
M143: 1900 | O143: 0 | P143: 0 | Q143: 0 | R143: 0 | S143: 0 | T143: 0 | U143: 0 | V143: 0 | W143: 0 | X143: 0 | Y143: 0 | Z143: 0 | AA143: 0 | AB143: 0 | AC143: 0 | AD143: 0 | AE143: 0 | AF143: 0 | AG143: 0 | AH143: 0 | AI143: 0 | AM143: =IFERROR(VLOOKUP(F143,[1]Vendor!B:I,8,0),"") -> 
M144: 1900 | O144: 0 | P144: 0 | Q144: 0 | R144: 0 | S144: 0 | T144: 0 | U144: 0 | V144: 0 | W144: 0 | X144: 0 | Y144: 0 | Z144: 0 | AA144: 0 | AB144: 0 | AC144: 0 | AD144: 0 | AE144: 0 | AF144: 0 | AG144: 0 | AH144: 0 | AI144: 0 | AM144: =IFERROR(VLOOKUP(F144,[1]Vendor!B:I,8,0),"") -> 
M145: 1900 | O145: 0 | P145: 0 | Q145: 0 | R145: 0 | S145: 0 | T145: 0 | U145: 0 | V145: 0 | W145: 0 | X145: 0 | Y145: 0 | Z145: 0 | AA145: 0 | AB145: 0 | AC145: 0 | AD145: 0 | AE145: 0 | AF145: 0 | AG145: 0 | AH145: 0 | AI145: 0 | AM145: =IFERROR(VLOOKUP(F145,[1]Vendor!B:I,8,0),"") -> 
M146: 1900 | O146: 0 | P146: 0 | Q146: 0 | R146: 0 | S146: 0 | T146: 0 | U146: 0 | V146: 0 | W146: 0 | X146: 0 | Y146: 0 | Z146: 0 | AA146: 0 | AB146: 0 | AC146: 0 | AD146: 0 | AE146: 0 | AF146: 0 | AG146: 0 | AH146: 0 | AI146: 0 | AM146: =IFERROR(VLOOKUP(F146,[1]Vendor!B:I,8,0),"") -> 
M147: 1900 | O147: 0 | P147: 0 | Q147: 0 | R147: 0 | S147: 0 | T147: 0 | U147: 0 | V147: 0 | W147: 0 | X147: 0 | Y147: 0 | Z147: 0 | AA147: 0 | AB147: 0 | AC147: 0 | AD147: 0 | AE147: 0 | AF147: 0 | AG147: 0 | AH147: 0 | AI147: 0 | AM147: =IFERROR(VLOOKUP(F147,[1]Vendor!B:I,8,0),"") -> 
M148: 1900 | O148: 0 | P148: 0 | Q148: 0 | R148: 0 | S148: 0 | T148: 0 | U148: 0 | V148: 0 | W148: 0 | X148: 0 | Y148: 0 | Z148: 0 | AA148: 0 | AB148: 0 | AC148: 0 | AD148: 0 | AE148: 0 | AF148: 0 | AG148: 0 | AH148: 0 | AI148: 0 | AM148: =IFERROR(VLOOKUP(F148,[1]Vendor!B:I,8,0),"") -> 
M149: 1900 | O149: 0 | P149: 0 | Q149: 0 | R149: 0 | S149: 0 | T149: 0 | U149: 0 | V149: 0 | W149: 0 | X149: 0 | Y149: 0 | Z149: 0 | AA149: 0 | AB149: 0 | AC149: 0 | AD149: 0 | AE149: 0 | AF149: 0 | AG149: 0 | AH149: 0 | AI149: 0 | AJ149: =IFERROR(AI149/Y149,"") ->  | AL149: =IFERROR(AK149/AA149,"") ->  | AM149: =IFERROR(VLOOKUP(F149,[1]Vendor!B:I,8,0),"") ->  | AO149: =IFERROR(AN149-AK149,"")/AK149 -> 
M150: 1900 | O150: 0 | P150: 0 | Q150: 0 | R150: 0 | S150: 0 | T150: 0 | U150: 0 | V150: 0 | W150: 0 | X150: 0 | Y150: 0 | Z150: 0 | AA150: 0 | AB150: 0 | AC150: 0 | AD150: 0 | AE150: 0 | AF150: 0 | AG150: 0 | AH150: 0 | AI150: 0 | AM150: =IFERROR(VLOOKUP(F150,[1]Vendor!B:I,8,0),"") -> 
M151: 1900 | O151: 0 | P151: 0 | Q151: 0 | R151: 0 | S151: 0 | T151: 0 | U151: 0 | V151: 0 | W151: 0 | X151: 0 | Y151: 0 | Z151: 0 | AA151: 0 | AB151: 0 | AC151: 0 | AD151: 0 | AE151: 0 | AF151: 0 | AG151: 0 | AH151: 0 | AI151: 0 | AM151: =IFERROR(VLOOKUP(F151,[1]Vendor!B:I,8,0),"") -> 
M152: 1900 | O152: 0 | P152: 0 | Q152: 0 | R152: 0 | S152: 0 | T152: 0 | U152: 0 | V152: 0 | W152: 0 | X152: 0 | Y152: 0 | Z152: 0 | AA152: 0 | AB152: 0 | AC152: 0 | AD152: 0 | AE152: 0 | AF152: 0 | AG152: 0 | AH152: 0 | AI152: 0 | AM152: =IFERROR(VLOOKUP(F152,[1]Vendor!B:I,8,0),"") -> 
M153: 1900 | O153: 0 | P153: 0 | Q153: 0 | R153: 0 | S153: 0 | T153: 0 | U153: 0 | V153: 0 | W153: 0 | X153: 0 | Y153: 0 | Z153: 0 | AA153: 0 | AB153: 0 | AC153: 0 | AD153: 0 | AE153: 0 | AF153: 0 | AG153: 0 | AH153: 0 | AI153: 0 | AM153: =IFERROR(VLOOKUP(F153,[1]Vendor!B:I,8,0),"") -> 
M154: 1900 | O154: 0 | P154: 0 | Q154: 0 | R154: 0 | S154: 0 | T154: 0 | U154: 0 | V154: 0 | W154: 0 | X154: 0 | Y154: 0 | Z154: 0 | AA154: 0 | AB154: 0 | AC154: 0 | AD154: 0 | AE154: 0 | AF154: 0 | AG154: 0 | AH154: 0 | AI154: 0 | AM154: =IFERROR(VLOOKUP(F154,[1]Vendor!B:I,8,0),"") -> 
M155: 1900 | O155: 0 | P155: 0 | Q155: 0 | R155: 0 | S155: 0 | T155: 0 | U155: 0 | V155: 0 | W155: 0 | X155: 0 | Y155: 0 | Z155: 0 | AA155: 0 | AB155: 0 | AC155: 0 | AD155: 0 | AE155: 0 | AF155: 0 | AG155: 0 | AH155: 0 | AI155: 0 | AM155: =IFERROR(VLOOKUP(F155,[1]Vendor!B:I,8,0),"") -> 
M156: 1900 | O156: 0 | P156: 0 | Q156: 0 | R156: 0 | S156: 0 | T156: 0 | U156: 0 | V156: 0 | W156: 0 | X156: 0 | Y156: 0 | Z156: 0 | AA156: 0 | AB156: 0 | AC156: 0 | AD156: 0 | AE156: 0 | AF156: 0 | AG156: 0 | AH156: 0 | AI156: 0 | AM156: =IFERROR(VLOOKUP(F156,[1]Vendor!B:I,8,0),"") -> 
M157: 1900 | O157: 0 | P157: 0 | Q157: 0 | R157: 0 | S157: 0 | T157: 0 | U157: 0 | V157: 0 | W157: 0 | X157: 0 | Y157: 0 | Z157: 0 | AA157: 0 | AB157: 0 | AC157: 0 | AD157: 0 | AE157: 0 | AF157: 0 | AG157: 0 | AH157: 0 | AI157: 0 | AM157: =IFERROR(VLOOKUP(F157,[1]Vendor!B:I,8,0),"") -> 
M158: 1900 | O158: 0 | P158: 0 | Q158: 0 | R158: 0 | S158: 0 | T158: 0 | U158: 0 | V158: 0 | W158: =IF($M158=W$12,$N158,0)+V158*W$11+V158 -> 0 | X158: 0 | Y158: 0 | Z158: 0 | AA158: 0 | AB158: 0 | AC158: 0 | AD158: 0 | AE158: 0 | AF158: 0 | AG158: 0 | AH158: 0 | AI158: 0 | AM158: =IFERROR(VLOOKUP(F158,[1]Vendor!B:I,8,0),"") -> 
M159: 1900 | O159: 0 | P159: =IF($M159=P$12,$N159,0)+O159*P$11+O159 -> 0 | Q159: 0 | R159: 0 | S159: 0 | T159: 0 | U159: 0 | V159: 0 | W159: 0 | X159: 0 | Y159: 0 | Z159: 0 | AA159: 0 | AB159: 0 | AC159: 0 | AD159: 0 | AE159: 0 | AF159: 0 | AG159: 0 | AH159: 0 | AI159: 0 | AM159: =IFERROR(VLOOKUP(F159,[1]Vendor!B:I,8,0),"") -> 
M160: 1900 | O160: 0 | P160: 0 | Q160: 0 | R160: 0 | S160: 0 | T160: 0 | U160: 0 | V160: 0 | W160: 0 | X160: 0 | Y160: 0 | Z160: 0 | AA160: 0 | AB160: 0 | AC160: 0 | AD160: 0 | AE160: 0 | AF160: 0 | AG160: 0 | AH160: 0 | AI160: 0 | AM160: =IFERROR(VLOOKUP(F160,[1]Vendor!B:I,8,0),"") -> 
M161: 1900 | O161: 0 | P161: 0 | Q161: 0 | R161: 0 | S161: 0 | T161: 0 | U161: 0 | V161: 0 | W161: 0 | X161: 0 | Y161: 0 | Z161: 0 | AA161: 0 | AB161: 0 | AC161: 0 | AD161: 0 | AE161: 0 | AF161: 0 | AG161: 0 | AH161: 0 | AI161: 0 | AM161: =IFERROR(VLOOKUP(F161,[1]Vendor!B:I,8,0),"") -> 
M162: 1900 | O162: 0 | P162: 0 | Q162: 0 | R162: 0 | S162: 0 | T162: 0 | U162: 0 | V162: 0 | W162: 0 | X162: 0 | Y162: 0 | Z162: 0 | AA162: 0 | AB162: 0 | AC162: 0 | AD162: 0 | AE162: 0 | AF162: 0 | AG162: 0 | AH162: 0 | AI162: 0 | AM162: =IFERROR(VLOOKUP(F162,[1]Vendor!B:I,8,0),"") -> 
M163: 1900 | O163: 0 | P163: 0 | Q163: 0 | R163: 0 | S163: 0 | T163: 0 | U163: 0 | V163: 0 | W163: 0 | X163: 0 | Y163: 0 | Z163: 0 | AA163: 0 | AB163: 0 | AC163: 0 | AD163: 0 | AE163: 0 | AF163: 0 | AG163: 0 | AH163: 0 | AI163: 0 | AM163: =IFERROR(VLOOKUP(F163,[1]Vendor!B:I,8,0),"") -> 
M164: 1900 | O164: 0 | P164: 0 | Q164: 0 | R164: 0 | S164: 0 | T164: 0 | U164: 0 | V164: 0 | W164: 0 | X164: 0 | Y164: 0 | Z164: 0 | AA164: 0 | AB164: 0 | AC164: 0 | AD164: 0 | AE164: 0 | AF164: 0 | AG164: 0 | AH164: 0 | AI164: 0 | AM164: =IFERROR(VLOOKUP(F164,[1]Vendor!B:I,8,0),"") -> 
M165: 1900 | O165: 0 | P165: 0 | Q165: 0 | R165: 0 | S165: 0 | T165: 0 | U165: 0 | V165: 0 | W165: 0 | X165: 0 | Y165: 0 | Z165: 0 | AA165: 0 | AB165: 0 | AC165: 0 | AD165: 0 | AE165: 0 | AF165: 0 | AG165: 0 | AH165: 0 | AI165: 0 | AM165: =IFERROR(VLOOKUP(F165,[1]Vendor!B:I,8,0),"") -> 
M166: 1900 | O166: 0 | P166: 0 | Q166: 0 | R166: 0 | S166: 0 | T166: 0 | U166: 0 | V166: 0 | W166: 0 | X166: 0 | Y166: 0 | Z166: 0 | AA166: 0 | AB166: 0 | AC166: 0 | AD166: 0 | AE166: 0 | AF166: 0 | AG166: 0 | AH166: 0 | AI166: 0 | AM166: =IFERROR(VLOOKUP(F166,[1]Vendor!B:I,8,0),"") -> 
M167: 1900 | O167: 0 | P167: 0 | Q167: 0 | R167: 0 | S167: 0 | T167: 0 | U167: 0 | V167: 0 | W167: 0 | X167: 0 | Y167: 0 | Z167: 0 | AA167: 0 | AB167: 0 | AC167: 0 | AD167: 0 | AE167: 0 | AF167: 0 | AG167: 0 | AH167: 0 | AI167: 0 | AM167: =IFERROR(VLOOKUP(F167,[1]Vendor!B:I,8,0),"") -> 
M168: 1900 | O168: 0 | P168: 0 | Q168: 0 | R168: 0 | S168: 0 | T168: 0 | U168: 0 | V168: 0 | W168: 0 | X168: 0 | Y168: 0 | Z168: 0 | AA168: 0 | AB168: 0 | AC168: 0 | AD168: 0 | AE168: 0 | AF168: 0 | AG168: 0 | AH168: 0 | AI168: 0 | AM168: =IFERROR(VLOOKUP(F168,[1]Vendor!B:I,8,0),"") -> 
M169: 1900 | O169: 0 | P169: 0 | Q169: 0 | R169: 0 | S169: 0 | T169: 0 | U169: 0 | V169: 0 | W169: 0 | X169: 0 | Y169: 0 | Z169: 0 | AA169: 0 | AB169: 0 | AC169: 0 | AD169: 0 | AE169: 0 | AF169: 0 | AG169: 0 | AH169: 0 | AI169: 0 | AM169: =IFERROR(VLOOKUP(F169,[1]Vendor!B:I,8,0),"") -> 
M170: 1900 | O170: 0 | P170: 0 | Q170: 0 | R170: 0 | S170: 0 | T170: 0 | U170: 0 | V170: 0 | W170: 0 | X170: 0 | Y170: 0 | Z170: 0 | AA170: 0 | AB170: 0 | AC170: 0 | AD170: 0 | AE170: 0 | AF170: 0 | AG170: 0 | AH170: 0 | AI170: 0 | AM170: =IFERROR(VLOOKUP(F170,[1]Vendor!B:I,8,0),"") -> 
M171: 1900 | O171: 0 | P171: 0 | Q171: 0 | R171: 0 | S171: 0 | T171: 0 | U171: 0 | V171: 0 | W171: 0 | X171: 0 | Y171: 0 | Z171: 0 | AA171: 0 | AB171: 0 | AC171: 0 | AD171: 0 | AE171: 0 | AF171: 0 | AG171: 0 | AH171: 0 | AI171: 0 | AM171: =IFERROR(VLOOKUP(F171,[1]Vendor!B:I,8,0),"") -> 
M172: 1900 | O172: 0 | P172: 0 | Q172: 0 | R172: 0 | S172: 0 | T172: 0 | U172: 0 | V172: 0 | W172: 0 | X172: 0 | Y172: 0 | Z172: 0 | AA172: 0 | AB172: 0 | AC172: 0 | AD172: 0 | AE172: 0 | AF172: 0 | AG172: 0 | AH172: 0 | AI172: 0 | AM172: =IFERROR(VLOOKUP(F172,[1]Vendor!B:I,8,0),"") -> 
M173: 1900 | O173: 0 | P173: 0 | Q173: 0 | R173: 0 | S173: 0 | T173: 0 | U173: 0 | V173: 0 | W173: 0 | X173: 0 | Y173: 0 | Z173: 0 | AA173: 0 | AB173: 0 | AC173: 0 | AD173: 0 | AE173: 0 | AF173: 0 | AG173: 0 | AH173: 0 | AI173: 0 | AM173: =IFERROR(VLOOKUP(F173,[1]Vendor!B:I,8,0),"") -> 
M174: 1900 | O174: 0 | P174: 0 | Q174: 0 | R174: 0 | S174: 0 | T174: 0 | U174: 0 | V174: 0 | W174: 0 | X174: 0 | Y174: 0 | Z174: 0 | AA174: 0 | AB174: 0 | AC174: 0 | AD174: 0 | AE174: 0 | AF174: 0 | AG174: 0 | AH174: 0 | AI174: 0 | AM174: =IFERROR(VLOOKUP(F174,[1]Vendor!B:I,8,0),"") -> 
M175: 1900 | O175: 0 | P175: 0 | Q175: 0 | R175: 0 | S175: 0 | T175: 0 | U175: 0 | V175: 0 | W175: 0 | X175: 0 | Y175: 0 | Z175: 0 | AA175: 0 | AB175: 0 | AC175: 0 | AD175: 0 | AE175: 0 | AF175: 0 | AG175: 0 | AH175: 0 | AI175: 0 | AM175: =IFERROR(VLOOKUP(F175,[1]Vendor!B:I,8,0),"") -> 
M176: 1900 | O176: 0 | P176: 0 | Q176: 0 | R176: 0 | S176: 0 | T176: 0 | U176: 0 | V176: 0 | W176: 0 | X176: 0 | Y176: 0 | Z176: 0 | AA176: 0 | AB176: 0 | AC176: 0 | AD176: 0 | AE176: 0 | AF176: 0 | AG176: 0 | AH176: 0 | AI176: 0 | AM176: =IFERROR(VLOOKUP(F176,[1]Vendor!B:I,8,0),"") -> 
M177: 1900 | O177: 0 | P177: 0 | Q177: 0 | R177: 0 | S177: 0 | T177: 0 | U177: 0 | V177: 0 | W177: 0 | X177: 0 | Y177: 0 | Z177: 0 | AA177: 0 | AB177: 0 | AC177: 0 | AD177: 0 | AE177: 0 | AF177: 0 | AG177: 0 | AH177: 0 | AI177: 0 | AM177: =IFERROR(VLOOKUP(F177,[1]Vendor!B:I,8,0),"") -> 
M178: 1900 | O178: 0 | P178: 0 | Q178: 0 | R178: 0 | S178: 0 | T178: 0 | U178: 0 | V178: 0 | W178: 0 | X178: 0 | Y178: 0 | Z178: 0 | AA178: 0 | AB178: 0 | AC178: 0 | AD178: 0 | AE178: 0 | AF178: 0 | AG178: 0 | AH178: 0 | AI178: 0 | AM178: =IFERROR(VLOOKUP(F178,[1]Vendor!B:I,8,0),"") -> 
M179: 1900 | O179: 0 | P179: 0 | Q179: 0 | R179: 0 | S179: 0 | T179: 0 | U179: 0 | V179: 0 | W179: 0 | X179: 0 | Y179: 0 | Z179: 0 | AA179: 0 | AB179: 0 | AC179: 0 | AD179: 0 | AE179: 0 | AF179: 0 | AG179: 0 | AH179: 0 | AI179: 0 | AM179: =IFERROR(VLOOKUP(F179,[1]Vendor!B:I,8,0),"") -> 
M180: 1900 | O180: 0 | P180: 0 | Q180: 0 | R180: 0 | S180: 0 | T180: 0 | U180: 0 | V180: 0 | W180: 0 | X180: 0 | Y180: 0 | Z180: 0 | AA180: 0 | AB180: 0 | AC180: 0 | AD180: 0 | AE180: 0 | AF180: 0 | AG180: 0 | AH180: 0 | AI180: 0 | AM180: =IFERROR(VLOOKUP(F180,[1]Vendor!B:I,8,0),"") -> 
M181: 1900 | O181: 0 | P181: 0 | Q181: 0 | R181: 0 | S181: 0 | T181: 0 | U181: 0 | V181: 0 | W181: 0 | X181: 0 | Y181: 0 | Z181: 0 | AA181: 0 | AB181: 0 | AC181: 0 | AD181: 0 | AE181: 0 | AF181: 0 | AG181: 0 | AH181: 0 | AI181: 0 | AM181: =IFERROR(VLOOKUP(F181,[1]Vendor!B:I,8,0),"") -> 
M182: 1900 | O182: 0 | P182: 0 | Q182: 0 | R182: 0 | S182: 0 | T182: 0 | U182: 0 | V182: 0 | W182: 0 | X182: 0 | Y182: 0 | Z182: 0 | AA182: 0 | AB182: 0 | AC182: 0 | AD182: 0 | AE182: 0 | AF182: 0 | AG182: 0 | AH182: 0 | AI182: 0 | AM182: =IFERROR(VLOOKUP(F182,[1]Vendor!B:I,8,0),"") -> 
M183: 1900 | O183: 0 | P183: 0 | Q183: 0 | R183: 0 | S183: 0 | T183: 0 | U183: 0 | V183: 0 | W183: 0 | X183: 0 | Y183: 0 | Z183: 0 | AA183: 0 | AB183: 0 | AC183: 0 | AD183: 0 | AE183: 0 | AF183: 0 | AG183: 0 | AH183: 0 | AI183: 0 | AM183: =IFERROR(VLOOKUP(F183,[1]Vendor!B:I,8,0),"") -> 
M184: 1900 | O184: 0 | P184: 0 | Q184: 0 | R184: 0 | S184: 0 | T184: 0 | U184: 0 | V184: 0 | W184: 0 | X184: 0 | Y184: 0 | Z184: 0 | AA184: 0 | AB184: 0 | AC184: 0 | AD184: 0 | AE184: 0 | AF184: 0 | AG184: 0 | AH184: 0 | AI184: 0 | AM184: =IFERROR(VLOOKUP(F184,[1]Vendor!B:I,8,0),"") -> 
M185: 1900 | O185: 0 | P185: 0 | Q185: 0 | R185: 0 | S185: 0 | T185: 0 | U185: 0 | V185: 0 | W185: 0 | X185: 0 | Y185: 0 | Z185: 0 | AA185: 0 | AB185: 0 | AC185: 0 | AD185: 0 | AE185: 0 | AF185: 0 | AG185: 0 | AH185: 0 | AI185: 0 | AM185: =IFERROR(VLOOKUP(F185,[1]Vendor!B:I,8,0),"") -> 
M186: 1900 | O186: 0 | P186: 0 | Q186: 0 | R186: 0 | S186: 0 | T186: 0 | U186: 0 | V186: 0 | W186: 0 | X186: 0 | Y186: 0 | Z186: 0 | AA186: 0 | AB186: 0 | AC186: 0 | AD186: 0 | AE186: 0 | AF186: =IF($M186=AF$12,$N186,0)+AE186*AF$11+AE186 -> 0 | AG186: 0 | AH186: 0 | AI186: 0 | AM186: =IFERROR(VLOOKUP(F186,[1]Vendor!B:I,8,0),"") -> 
M187: 1900 | O187: 0 | P187: 0 | Q187: 0 | R187: 0 | S187: 0 | T187: 0 | U187: 0 | V187: 0 | W187: 0 | X187: 0 | Y187: 0 | Z187: 0 | AA187: 0 | AB187: 0 | AC187: 0 | AD187: 0 | AE187: 0 | AF187: 0 | AG187: 0 | AH187: 0 | AI187: 0 | AM187: =IFERROR(VLOOKUP(F187,[1]Vendor!B:I,8,0),"") -> 
M188: 1900 | O188: 0 | P188: 0 | Q188: 0 | R188: 0 | S188: 0 | T188: 0 | U188: 0 | V188: 0 | W188: 0 | X188: 0 | Y188: 0 | Z188: 0 | AA188: 0 | AB188: 0 | AC188: 0 | AD188: 0 | AE188: 0 | AF188: 0 | AG188: 0 | AH188: 0 | AI188: 0 | AM188: =IFERROR(VLOOKUP(F188,[1]Vendor!B:I,8,0),"") -> 
M189: 1900 | O189: 0 | P189: 0 | Q189: 0 | R189: 0 | S189: 0 | T189: 0 | U189: 0 | V189: 0 | W189: 0 | X189: 0 | Y189: 0 | Z189: 0 | AA189: 0 | AB189: 0 | AC189: 0 | AD189: 0 | AE189: 0 | AF189: 0 | AG189: 0 | AH189: 0 | AI189: 0 | AM189: =IFERROR(VLOOKUP(F189,[1]Vendor!B:I,8,0),"") -> 
M190: 1900 | O190: 0 | P190: 0 | Q190: 0 | R190: 0 | S190: 0 | T190: 0 | U190: 0 | V190: 0 | W190: 0 | X190: 0 | Y190: 0 | Z190: 0 | AA190: 0 | AB190: 0 | AC190: =IF($M190=AC$12,$N190,0)+AB190*AC$11+AB190 -> 0 | AD190: 0 | AE190: 0 | AF190: 0 | AG190: 0 | AH190: 0 | AI190: 0 | AM190: =IFERROR(VLOOKUP(F190,[1]Vendor!B:I,8,0),"") -> 
M191: 1900 | O191: 0 | P191: =IF($M191=P$12,$N191,0)+O191*P$11+O191 -> 0 | Q191: 0 | R191: 0 | S191: 0 | T191: 0 | U191: 0 | V191: 0 | W191: 0 | X191: 0 | Y191: 0 | Z191: 0 | AA191: 0 | AB191: 0 | AC191: 0 | AD191: 0 | AE191: 0 | AF191: 0 | AG191: 0 | AH191: 0 | AI191: 0 | AM191: =IFERROR(VLOOKUP(F191,[1]Vendor!B:I,8,0),"") -> 
M192: 1900 | O192: 0 | P192: 0 | Q192: 0 | R192: 0 | S192: 0 | T192: 0 | U192: 0 | V192: 0 | W192: 0 | X192: 0 | Y192: 0 | Z192: 0 | AA192: 0 | AB192: 0 | AC192: 0 | AD192: 0 | AE192: 0 | AF192: 0 | AG192: 0 | AH192: 0 | AI192: 0 | AM192: =IFERROR(VLOOKUP(F192,[1]Vendor!B:I,8,0),"") -> 
M193: 1900 | O193: 0 | P193: 0 | Q193: 0 | R193: 0 | S193: 0 | T193: 0 | U193: 0 | V193: 0 | W193: 0 | X193: 0 | Y193: 0 | Z193: 0 | AA193: 0 | AB193: 0 | AC193: 0 | AD193: 0 | AE193: 0 | AF193: 0 | AG193: 0 | AH193: 0 | AI193: 0 | AM193: =IFERROR(VLOOKUP(F193,[1]Vendor!B:I,8,0),"") -> 
M194: 1900 | O194: 0 | P194: 0 | Q194: 0 | R194: 0 | S194: 0 | T194: 0 | U194: 0 | V194: 0 | W194: 0 | X194: 0 | Y194: 0 | Z194: 0 | AA194: 0 | AB194: 0 | AC194: 0 | AD194: 0 | AE194: 0 | AF194: 0 | AG194: 0 | AH194: 0 | AI194: 0 | AM194: =IFERROR(VLOOKUP(F194,[1]Vendor!B:I,8,0),"") -> 
M195: 1900 | O195: 0 | P195: 0 | Q195: 0 | R195: 0 | S195: 0 | T195: 0 | U195: 0 | V195: 0 | W195: 0 | X195: 0 | Y195: 0 | Z195: 0 | AA195: 0 | AB195: 0 | AC195: 0 | AD195: 0 | AE195: 0 | AF195: 0 | AG195: 0 | AH195: 0 | AI195: 0 | AM195: =IFERROR(VLOOKUP(F195,[1]Vendor!B:I,8,0),"") -> 
M196: 1900 | O196: 0 | P196: 0 | Q196: 0 | R196: 0 | S196: 0 | T196: 0 | U196: 0 | V196: 0 | W196: 0 | X196: 0 | Y196: 0 | Z196: 0 | AA196: 0 | AB196: 0 | AC196: 0 | AD196: 0 | AE196: 0 | AF196: 0 | AG196: 0 | AH196: 0 | AI196: 0 | AM196: =IFERROR(VLOOKUP(F196,[1]Vendor!B:I,8,0),"") -> 
M197: 1900 | O197: 0 | P197: 0 | Q197: 0 | R197: 0 | S197: 0 | T197: 0 | U197: 0 | V197: 0 | W197: 0 | X197: 0 | Y197: 0 | Z197: 0 | AA197: 0 | AB197: 0 | AC197: 0 | AD197: 0 | AE197: 0 | AF197: 0 | AG197: 0 | AH197: 0 | AI197: 0 | AM197: =IFERROR(VLOOKUP(F197,[1]Vendor!B:I,8,0),"") -> 
M198: 1900 | O198: 0 | P198: 0 | Q198: 0 | R198: 0 | S198: 0 | T198: 0 | U198: 0 | V198: 0 | W198: 0 | X198: 0 | Y198: 0 | Z198: 0 | AA198: 0 | AB198: 0 | AC198: 0 | AD198: 0 | AE198: 0 | AF198: 0 | AG198: 0 | AH198: 0 | AI198: 0 | AM198: =IFERROR(VLOOKUP(F198,[1]Vendor!B:I,8,0),"") -> 
M199: 1900 | O199: 0 | P199: 0 | Q199: 0 | R199: 0 | S199: 0 | T199: 0 | U199: 0 | V199: 0 | W199: 0 | X199: 0 | Y199: 0 | Z199: 0 | AA199: 0 | AB199: 0 | AC199: 0 | AD199: 0 | AE199: 0 | AF199: 0 | AG199: 0 | AH199: 0 | AI199: 0 | AM199: =IFERROR(VLOOKUP(F199,[1]Vendor!B:I,8,0),"") -> 
M200: 1900 | O200: 0 | P200: 0 | Q200: 0 | R200: 0 | S200: 0 | T200: 0 | U200: 0 | V200: 0 | W200: 0 | X200: 0 | Y200: 0 | Z200: 0 | AA200: 0 | AB200: 0 | AC200: 0 | AD200: 0 | AE200: 0 | AF200: 0 | AG200: 0 | AH200: 0 | AI200: 0 | AM200: =IFERROR(VLOOKUP(F200,[1]Vendor!B:I,8,0),"") -> 
M201: 1900 | O201: 0 | P201: 0 | Q201: 0 | R201: 0 | S201: 0 | T201: 0 | U201: 0 | V201: 0 | W201: 0 | X201: 0 | Y201: 0 | Z201: 0 | AA201: 0 | AB201: 0 | AC201: 0 | AD201: 0 | AE201: 0 | AF201: 0 | AG201: 0 | AH201: 0 | AI201: 0 | AM201: =IFERROR(VLOOKUP(F201,[1]Vendor!B:I,8,0),"") -> 
M202: 1900 | O202: 0 | P202: 0 | Q202: 0 | R202: 0 | S202: 0 | T202: 0 | U202: 0 | V202: 0 | W202: 0 | X202: 0 | Y202: 0 | Z202: 0 | AA202: 0 | AB202: 0 | AC202: 0 | AD202: 0 | AE202: 0 | AF202: 0 | AG202: 0 | AH202: 0 | AI202: 0 | AM202: =IFERROR(VLOOKUP(F202,[1]Vendor!B:I,8,0),"") -> 
M203: =IFERROR(YEAR(J203),"") -> 1900 | O203: =IF($M203=O$12,$N203,0) -> 0 | P203: 0 | Q203: 0 | R203: 0 | S203: 0 | T203: 0 | U203: 0 | V203: 0 | W203: 0 | X203: 0 | Y203: 0 | Z203: 0 | AA203: 0 | AB203: 0 | AC203: 0 | AD203: 0 | AE203: 0 | AF203: 0 | AG203: 0 | AH203: 0 | AI203: =Z203-Y203 -> 0 | AM203: =IFERROR(VLOOKUP(F203,[1]Vendor!B:I,8,0),"") -> 
... 2047 more rows
